Workbook

Sheet READ ME
C2: =Translate!$A$3&" "&E10 -> EFFC DFI Carbon Calculator Tool v4.0
C5: =Translate!$A$4 -> TITLE | E5: =C2 -> EFFC DFI Carbon Calculator Tool v4.0
C7: =Translate!$A$5 -> AUTHORS | E7: Jean-Yves Wilmotte | G7: Carbone 4 | H7: jean-yves.wilmotte@carbone4.com | K7: www.carbone4.com
E8: Sylvain Borie | G8: Carbone 4 | H8: sylvain.borie@carbone4.com
C10: =Translate!$A$6 -> VERSION NUMBER | E10: =Translate!$A$28 -> v4.0
C12: =Translate!$A$7 -> Copyright | E12: =Translate!$A$29 -> EFFC & DFI, 2012. All rights reserved.
C14: =Translate!$A$8 -> DATE | E14: 2020-09-01
C16: =Translate!$A$500 -> Language | F16: =Translate!$A$152 -> Emission factor database | K16: =Translate!$A$502 -> Units system
D18: English | F18: EFFC DFI methodology recommended emission factors | H18: =Translate!$A$237 -> Do not change the database unless you really need it | K18: Metric system
C22: =Translate!$A$9 -> WHAT IS THIS TOOL ?
D24: =Translate!$A$14 -> This excel spreadsheet is a carbon emission calculator for deep foundation techniques and projects.
D25: =Translate!$A$15 -> It has been developed to support EFFC and DFI members in calculating the carbon footprint of their projects, compare solutions and value technical innovation to reduce GHG emissions.
D26: =Translate!$A$16 -> On behalf of EFFC DFI, Carbone 4 developed a specific methodology and this tool to ensure coherence and comparability between various companies calculation
D27: =Translate!$A$17 -> Functionalities: calculation of the carbon footprint using standard or specific values, comparisons of projects, construction of complex project by adding simple techniques one to another.
C30: =Translate!$A$10 -> HOW TO USE THIS TOOL ? SOME QUICK TIPS
D32: =Translate!$A$18 -> 1) Please first make sure that you have the latest version of the tool - check EFFC relevant webpage. | I32: http://www.geotechnicalcarboncalculator.com/
D33: =Translate!$A$19 -> 2) Ensure you are trained to use this tool and understand its capabilities and limitations. Read the user guide and associated methodological document.
D34: =Translate!$A$20 -> 3) Load your own logo in the tool
D35: =Translate!$A$21 -> 4) Create one or more new subprojects using the "New Subproject sheet" button located in the HOME worksheet
D36: =Translate!$A$22 -> a) Enter all information relative to your different projects in the yellow tabs. You can add, duplicate or remove as many yellow tabs as you like.
D37: =Translate!$A$23 -> b) The input data for a given project are prioritised according to the technique used.
D38: =Translate!$A$24 -> 5) Create one or more new projects using the "New Project sheet" button located in the HOME worksheet
D39: =Translate!$A$25 -> A project is an ensemble of subprojects and projects
D40: =Translate!$A$26 -> 6) Export the result in a A4 PDF document
D41: =Translate!$A$27 -> 7) Compare different alternatives in the "Comparison" worksheet
C44: =Translate!$A$12 -> Color code
C45: =Translate!$A$13 -> In all worksheets
E46: =Translate!$A$30 -> Project input data (to be filled by user)
E47: =Translate!$A$31 -> Coloured cells : non editable cells
C50: =Translate!$A$501 -> Emission breakdown : Average results (based on samples studied to develop the methodology)

Sheet HOME
D2: =Translate!$A$32 -> EFFC DFI Project Carbon Calculator
D5: =Translate!$A$33 -> Kind of Worksheet | E5: =Translate!$A$41 -> Purpose | H5: =Translate!$A$56 -> Input | J5: =Lists!H9 -> General Principles : emission sources are split into two categories : - primary emission sources (represented in colors) - secondary emission sources (represented in gray) The method recommends to start with the primary emission sources,with the secondary emission sources being automatically estimated. Then you may want to fine tune the calculation using specific activity data for the secondary emission sources also.
D6: =Translate!$A$34 -> Subproject | E6: =Translate!$A$42 -> Calculate the carbon footprint of a part of a project | H6: =Translate!$A$57 -> Field activities data (USER SPECIFIED)
D7: =Translate!$A$35 -> Project | E7: =Translate!$A$43 -> Total other sheets | H7: =Translate!$A$58 -> Subproject sheets Project sheets
D8: =Translate!$A$36 -> Results | E8: =Translate!$A$44 -> Extract the main data in a printable layout | H8: =Translate!$A$58 -> Subproject sheets Project sheets
D9: =Translate!$A$37 -> Comparison | E9: =Translate!$A$45 -> Compare different projects or subprojects | H9: =Translate!$A$58 -> Subproject sheets Project sheets
E12: =Translate!$A$46 -> Create here your subproject sheets | J12: =Translate!$A$59 -> Existing Subprojects | K12: =Translate!$A$60 -> Existing Projects | L12: =Translate!$A$61 -> Results sheets | M12: =Translate!$A$62 -> Comparison sheets
D13: =Translate!$A$38 -> A subproject sheet is a spreadsheet in which you enter all activity data regarding one technique.
A14: =IF(ISBLANK(F14),1,IF(ISERROR(INDIRECT("'"&F14&"'!A1")),0,1)) -> 1 | E14: =Translate!$A$47 -> Name | G14: =IF(ISERROR(INDIRECT("'"&F14&"'!A1")),"",Translate!$A$54&F14&"' sheet already exists. Please choose another name or delete existing sheet.") -> 
E15: =Translate!$A$48 -> Technique | F15: =Translate!$A$281 -> Bored piles | H15: =INDEX('Emission factors'!$AF$343:$AF$361,MATCH(F15,'Emission factors'!$C$343:$C$361,0)) -> 1
E16: =Translate!$A$49 -> Copy from | G16: =Translate!$A$55 -> Leave empty to create an empty project
E22: =Translate!$A$50 -> Create here your projects sheets
D23: =Translate!$A$39 -> A project sheet is a results sheet where you compare and consolidate subproject & projects sheets
A24: =IF(ISBLANK(F24),1,IF(ISERROR(INDIRECT("'"&F24&"'!A1")),0,1)) -> 1 | E24: =Translate!$A$47 -> Name | G24: =IF(ISERROR(INDIRECT("'"&F24&"'!A1")),"",Translate!$A$54&F24&"' sheet already exists. Please choose another name or delete existing sheet.") -> 
E31: =Translate!$A$51 -> Create here a results sheet
A33: =IF(ISBLANK(F33),1,IF(ISERROR(INDIRECT("'"&F33&"'!A1")),0,1)) -> 1 | E33: =Translate!$A$47 -> Name | G33: =IF(ISERROR(INDIRECT("'"&F33&"'!A1")),"",Translate!$A$54&F33&"' sheet already exists. Please choose another name or delete existing sheet.") -> 
E40: =Translate!$A$52 -> Create here your comparison sheets
G41: =IF(ISERROR(INDIRECT("'"&F41&"'!A1")),"",Translate!$A$54&F41&"' sheet already exists. Please choose another name or delete existing sheet.") -> 
A42: =IF(ISBLANK(F42),1,IF(ISERROR(INDIRECT("'"&F42&"'!A1")),0,1)) -> 1 | E42: =Translate!$A$47 -> Name | G42: =IF(ISERROR(INDIRECT("'"&F42&"'!A1")),"",Translate!$A$54&F42&"' sheet already exists. Please choose another name or delete existing sheet.") -> 
E49: =Translate!$A$53 -> Load your own logo
D50: =Translate!$A$40 -> First time on this tool? Make sure your logo appears on the results page!

Sheet Subprojectzero1 (hidden)
A1: Subproject | M1: Total primary emission sources | P1: =SUMPRODUCT(($AH$17:$AH$177=1)*$AO$17:$AO$177) -> 0 | Q1: =SUMPRODUCT(($AH$17:$AH$177=1)*1,$AL$17:$AL$177) -> 0 | T1: externally calculated emissions | U1: =IF(SUMPRODUCT(($AG$17:$AG$172="ext")*1,$AJ$17:$AJ$172)<>0,TRUE) -> FALSE | V1: ratios used | W1: =IF(SUMPRODUCT(($AG$17:$AG$172="ratio")*1,$AJ$17:$AJ$172)<>0,TRUE) -> FALSE | AA1: Functional unit 1 | AB1: =IF(E13="value",1,0) -> 1 | AC1: country | AD1: 0 | AJ1: =Translate!$A$73 -> Concrete / Slurry / Grout mix | AK1: =Translate!$A$138 -> Steel | AL1: =Translate!$A$118 -> Other | AP1: ='Emission factors'!D342 -> Energy | AQ1: ='Emission factors'!E342 -> Materials | AR1: ='Emission factors'!F342 -> Freight | AS1: ='Emission factors'!G342 -> Mob/demob | AT1: ='Emission factors'!H342 -> People's transportation | AU1: ='Emission factors'!I342 -> Assets | AV1: ='Emission factors'!J342 -> Waste
M2: Total secondary emission sources | P2: =SUMPRODUCT(($AH$17:$AH$177=2)*$AO$17:$AO$177) -> 0 | Q2: =SUMPRODUCT(($AH$17:$AH$177=2)*1,$AL$17:$AL$177) -> 0 | AA2: Functional unit 2 | AB2: =IF(E14="value",1,0) -> 1 | AJ2: =SUMPRODUCT(($AK$17:$AK$172=AJ1)*1,$AJ$17:$AJ$172)/1000 -> 0 | AK2: =SUMPRODUCT(($AK$17:$AK$172=AK1)*1,$AJ$17:$AJ$172)/1000 -> 0 | AL2: =SUMPRODUCT(($AK$17:$AK$172=AL1)*1,$AJ$17:$AJ$172)/1000 -> 0 | AO2: Primary(1)/Secondary(2) | AP2: =VLOOKUP($E$6,'Emission factors'!$C$343:$AY$370,'Emission factors'!Y$340,0) -> 1 | AQ2: =VLOOKUP($E$6,'Emission factors'!$C$343:$AY$370,'Emission factors'!Z$340,0) -> 1 | AR2: =VLOOKUP($E$6,'Emission factors'!$C$343:$AY$370,'Emission factors'!AA$340,0) -> 2 | AS2: =VLOOKUP($E$6,'Emission factors'!$C$343:$AY$370,'Emission factors'!AB$340,0) -> 2 | AT2: =VLOOKUP($E$6,'Emission factors'!$C$343:$AY$370,'Emission factors'!AC$340,0) -> 2 | AU2: =VLOOKUP($E$6,'Emission factors'!$C$343:$AY$370,'Emission factors'!AD$340,0) -> 2 | AV2: =VLOOKUP($E$6,'Emission factors'!$C$343:$AY$370,'Emission factors'!AE$340,0) -> 2 | AY2: Messages
T3: =Translate!$A$123&AQ9&AP9&AR9&AS9&AT9&AU9&AV9 -> Primary emission sources : Materials, Energy, | AB3: =Translate!$A$131 -> Comments : | AO3: Project emission repartition | AP3: =IF(SUM($P$7:$P$13)=0,0,VLOOKUP(AP1,$H$7:$P$13,9,0)/SUM($P$7:$P$13)) -> 0 | AQ3: 0 | AR3: 0 | AS3: 0 | AT3: 0 | AU3: 0 | AV3: 0 | AX3: =IF(E9=0,AY3,"") -> Enter the number of working days | AY3: =Lists!H2 -> Enter the number of working days
AO4: Average ratio | AP4: =VLOOKUP($E$6,'Emission factors'!$C$343:$Y$370,'Emission factors'!D$340,0) -> 0.04091666396 | AQ4: =VLOOKUP($E$6,'Emission factors'!$C$343:$Y$370,'Emission factors'!E$340,0) -> 0.959083336 | AR4: =VLOOKUP($E$6,'Emission factors'!$C$343:$Y$370,'Emission factors'!F$340,0) -> 0.006411482467 | AS4: =VLOOKUP($E$6,'Emission factors'!$C$343:$Y$370,'Emission factors'!G$340,0) -> 0.003186874869 | AT4: =VLOOKUP($E$6,'Emission factors'!$C$343:$Y$370,'Emission factors'!H$340,0) -> 0.001869269592 | AU4: =VLOOKUP($E$6,'Emission factors'!$C$343:$Y$370,'Emission factors'!I$340,0) -> 0.004377484025 | AV4: =VLOOKUP($E$6,'Emission factors'!$C$343:$Y$370,'Emission factors'!J$340,0) -> 0.002659148019 | AX4: =IF(E10=0,AY4,"") -> Enter the average number of people working on the project | AY4: =Lists!H3 -> Enter the average number of people working on the project
D5: =Translate!$A$64 -> Subproject name | T5: =IF(NOT(AW10),Translate!$A$124,"") -> Please enter activities data relative to the primary emission sources | AO5: Ratio needed | AP5: =IF(AP2=1,0,IF(SUMPRODUCT($AO$17:$AO$183*($AI$17:$AI$183=AP1))>0,0,1)) -> 0 | AQ5: 0 | AR5: 1 | AS5: 1 | AT5: 1 | AU5: 1 | AV5: 1 | AX5: =IF(Translate!$A$300=E12,AY5,"") -> Select a country | AY5: =Lists!H4 -> Select a country | BA5: =Translate!$A$132 -> Primary emission sources | BB5: =P1/1000 -> 0 | BC5: =P2/1000 -> 0 | BD5: =Q1/1000 -> 0
B6: =Translate!$A$63 -> duplication + | D6: =Translate!$A$48 -> Technique | E6: =Translate!$A$281 -> Bored piles | H6: =Translate!$A$103 -> Sources | P6: =Translate!$A$115 -> tCO2e | Q6: =Translate!$A$115 -> tCO2e | T6: =IF(P14>0,AX3&AX4&AX5&AQ8&AP8&AR8&AS8&AT8&AU8&AV8,"") ->  | AO6: Too high | AP6: =VLOOKUP($E$6,'Emission factors'!$C$343:$Y$370,'Emission factors'!K$340,0) -> 0.15 | AQ6: =VLOOKUP($E$6,'Emission factors'!$C$343:$Y$370,'Emission factors'!L$340,0) -> 1 | AR6: =VLOOKUP($E$6,'Emission factors'!$C$343:$Y$370,'Emission factors'!M$340,0) -> 0.1 | AS6: =VLOOKUP($E$6,'Emission factors'!$C$343:$Y$370,'Emission factors'!N$340,0) -> 0.1 | AT6: =VLOOKUP($E$6,'Emission factors'!$C$343:$Y$370,'Emission factors'!O$340,0) -> 0.1 | AU6: =VLOOKUP($E$6,'Emission factors'!$C$343:$Y$370,'Emission factors'!P$340,0) -> 0.05 | AV6: =VLOOKUP($E$6,'Emission factors'!$C$343:$Y$370,'Emission factors'!Q$340,0) -> 0.05 | AY6: =Lists!H5 -> emissions are relatively high | BA6: =Translate!$A$133 -> Secondary emission sources | BB6: =BB5 -> 0 | BC6: =BC5 -> 0 | BD6: =Q2/1000 -> 0
D7: =Translate!$A$65 -> Date of calculation | H7: =Translate!$A$104 -> Materials | L7: =AJ2 -> 0 | M7: =AK2 -> 0 | N7: =AL2 -> 0 | O7: =AL3 -> 0 | P7: =SUMPRODUCT(($AI$17:$AI$172=$H7)*1,$AJ$17:$AJ$172)/1000 -> 0 | Q7: =SUMPRODUCT(($AI$17:$AI$172=$H7)*1,$AL$17:$AL$172)/1000 -> 0 | AO7: Too low | AP7: =VLOOKUP($E$6,'Emission factors'!$C$343:$Y$370,'Emission factors'!R$340,0) -> 0.02 | AQ7: =VLOOKUP($E$6,'Emission factors'!$C$343:$Y$370,'Emission factors'!S$340,0) -> 0.5 | AR7: =VLOOKUP($E$6,'Emission factors'!$C$343:$Y$370,'Emission factors'!T$340,0) -> 0.001 | AS7: =VLOOKUP($E$6,'Emission factors'!$C$343:$Y$370,'Emission factors'!U$340,0) -> 0.0001 | AT7: =VLOOKUP($E$6,'Emission factors'!$C$343:$Y$370,'Emission factors'!V$340,0) -> 0.0001 | AU7: =VLOOKUP($E$6,'Emission factors'!$C$343:$Y$370,'Emission factors'!W$340,0) -> 0.0005 | AV7: =VLOOKUP($E$6,'Emission factors'!$C$343:$Y$370,'Emission factors'!X$340,0) -> 0 | AY7: =Lists!H6 -> emissions are relatively low | BA7: =Translate!$A$134 -> Total | BB7: =BB6 -> 0 | BC7: =BC6 -> 0 | BD7: =BD5+BD6 -> 0 | BE7: =IF(P7=0,0,ROUND(P7,-ROUNDDOWN(LOG(ABS(P7)),0)+1)) -> 0
D8: =Translate!$A$66 -> Author | H8: =Translate!$A$105 -> Energy | O8: =P8 -> 0 | P8: 0 | Q8: 0 | AP8: =IF(AP7>AP3,AP1&$AY$7,IF(AP6<AP3,AP1&$AY$6,"")) -> Energy emissions are relatively low | AQ8: Materials emissions are relatively low | AR8: Freight emissions are relatively low | AS8: Mob/demob emissions are relatively low | AT8: People's transportation emissions are relatively low | AU8: Assets emissions are relatively low | AV8: =IF(AV7>AV3,AV1&$AY$7,IF(AV6<AV3,AV1&$AY$6,"")) ->  | AY8: =Lists!H7 -> (Primary source) | BE8: =IF(P8=0,0,ROUND(P8,-ROUNDDOWN(LOG(ABS(P8)),0)+1)) -> 0
D9: =Translate!$A$67 -> Working days | F9: =Translate!$A$67 -> Working days | H9: =Translate!$A$106 -> Freight | O9: 0 | P9: 0 | Q9: 0 | AP9: =IF(AP2=1,AP1&", ","") -> Energy, | AQ9: Materials, | AY9: =Lists!H8 -> (Secondary source) | BE9: 0
D10: =Translate!$A$68 -> Workforce | F10: =Translate!$A$94 -> Full-time equivalent | H10: =Translate!$A$107 -> Mob/demob | O10: 0 | P10: 0 | Q10: 0 | AO10: msg active | AP10: =IF((AP2=1),NOT(AP3=0),TRUE) -> FALSE | AQ10: =IF((AQ2=1),NOT(AQ3=0),TRUE) -> FALSE | AR10: TRUE | AS10: TRUE | AT10: TRUE | AU10: TRUE | AV10: TRUE | AW10: =AND(AP10:AV10) -> FALSE | BE10: 0
D11: =Translate!$A$69 -> Project value | F11: =Translate!$A$95 -> € | H11: =Translate!$A$108 -> People's transportation | O11: 0 | P11: 0 | Q11: 0 | AP11: =IF(AP2=1,AP1&$AY$8,AP1&$AY$9) -> Energy (Primary source) | AQ11: =IF(AQ2=1,AQ1&$AY$8,AQ1&$AY$9) -> Materials (Primary source) | AR11: Freight (Secondary source) | AS11: Mob/demob (Secondary source) | AT11: People's transportation (Secondary source) | AU11: Assets (Secondary source) | AV11: Waste (Secondary source) | BE11: 0
D12: =Translate!$A$70 -> Country | E12: =Translate!$A$300 -> -Select the project country | H12: =Translate!$A$109 -> Assets | O12: 0 | P12: 0 | Q12: 0 | T12: =Translate!$A$125 -> TOTAL GHG EMISSIONS | V12: =IF(P14=0,0,ROUND(P14,-ROUNDDOWN(LOG(ABS(P14)),0)+1)) -> 0 | Y12: =Translate!$A$115 -> tCO2e | BE12: 0
D13: =Translate!$A$71 -> Functional unit 1 | E13: =Translate!$A$87 -> value | F13: =Translate!$A$96 -> unit | H13: =Translate!$A$110 -> Waste | O13: 0 | P13: 0 | Q13: 0 | BE13: 0
D14: =Translate!$A$72 -> Functional unit 2 | E14: =Translate!$A$87 -> value | F14: =Translate!$A$96 -> unit | P14: =SUM(P7:P13) -> 0
I16: Activity data | K16: Emission factor | L16: GHG Emissions
D17: =AQ11 -> Materials (Primary source) | Q17: =AR11 -> Freight (Secondary source) | AH17: Emissions source importance | AI17: Emissions source | AJ17: Emissions | AK17: Material type | AL17: Uncertainties | AN17: Bloc height
D19: =Translate!$A$73 -> Concrete / Slurry / Grout mix
B20: + | AN20: =ROW(F43)-ROW(F19) -> 24
D21: =Translate!$A$47 -> Name | E21: =Translate!$A$88 -> Default concrete | L21: =Translate!$A$475 -> made at plant | M21: =IF(L21=Translate!$A$475,1,0) -> 1
D22: =Translate!$A$74 -> Quantity | F22: ='Emission factors'!$F$414 -> m3 | I22: =E22 -> 0 | J22: =F22 -> m3 | P22: =Translate!$A$112 -> Distance | Q22: =IF(L21="made on site",0,20) -> 20 | R22: ='Emission factors'!$F$410 -> km | S22: =Translate!$A$120 -> Type | T22: =Translate!$A$206 -> Road - Rigid >17t | U22: =Translate!$A$127 -> Load | V22: ='Emission factors'!$D$311 -> 8 | W22: =J22 -> m3 | X22: =IF(V22=0,0,ROUNDUP(I22/V22,0)) -> 0 | Y22: =Translate!$A$130 -> travels | Z22: =Translate!$A$128 -> empty-return rate | AA22: 1 | AB22: =VLOOKUP(T22,EFtable,3,0) -> 0.98244 | AC22: =Q22*X22*(1+AA22)*AB22 -> 0 | AD22: =Translate!$A$102 -> kgCO2e | AM22: 0
AH23: =HLOOKUP(AI23,$AP$1:$AV$2,2,0) -> 2 | AI23: =Translate!$A$106 -> Freight | AJ23: =AC22 -> 0 | AL23: =VLOOKUP(T22,EFtable,8,0)*AC22 -> 0 | AM23: =1+OFFSET(AM23,-1,0) -> 1 | AO23: =AJ23 -> 0
C24: + | D24: =Translate!$A$75 -> Cement | E24: =Translate!$A$181 -> CEM I | AM24: =1+OFFSET(AM24,-1,0) -> 2 | AN24: =ROW(F28)-ROW(F24) -> 4
D25: =Translate!$A$76 -> Total cementitious content | E25: =VLOOKUP($E$6,DefaultConcrete,3,0) -> 400 | F25: =OFFSET(AS25,-AM25+6,0) -> kg/m3 | P25: =Translate!$A$112 -> Distance | Q25: =IF(ISERROR(VLOOKUP(D24,StandardFreight,3,0)),VLOOKUP(Translate!$A$118,StandardFreight,3,0),VLOOKUP(D24,StandardFreight,3,0)) -> 20 | R25: ='Emission factors'!$F$410 -> km | S25: =Translate!$A$120 -> Type | T25: =IF(ISERROR(VLOOKUP(D24,StandardFreight,2,0)),VLOOKUP("Other",StandardFreight,2,0),VLOOKUP(D24,StandardFreight,2,0)) -> Road - Rigid >17t | U25: =Translate!$A$127 -> Load | V25: =VLOOKUP(T25,FreightLoadFactors,2,0) -> 7.5 | W25: =J28 -> t | X25: =IF(V25=0,0,ROUNDUP(I28/V25,0)) -> 0 | Y25: =Translate!$A$130 -> travels | Z25: =Translate!$A$128 -> empty-return rate | AA25: 1 | AB25: =VLOOKUP(T25,EFtable,3,0) -> 0.98244 | AC25: =Q25*X25*(1+AA25)*AB25 -> 0 | AD25: =Translate!$A$102 -> kgCO2e | AH25: =HLOOKUP(AI25,$AP$1:$AV$2,2,0) -> 1 | AI25: =Translate!$A$104 -> Materials | AJ25: =L28 -> 0 | AK25: =Translate!$A$73 -> Concrete / Slurry / Grout mix | AL25: =VLOOKUP("CEM I",EFtable,8,0)*L28 -> 0 | AM25: 3 | AO25: =AJ25 -> 0
D26: =Translate!$A$77 -> Secondary constituent | E26: =VLOOKUP(E24,'Emission factors'!$C$286:$M$294,2,0) -> - | AH26: =HLOOKUP(AI26,$AP$1:$AV$2,2,0) -> 2 | AI26: =Translate!$A$106 -> Freight | AJ26: =AC25 -> 0 | AL26: =VLOOKUP(T25,EFtable,8,0)*AC25 -> 0 | AM26: 4 | AO26: =AJ26 -> 0
D27: =Translate!$A$78 -> Secondary constituent content | E27: =Translate!$A$89 -> Default value | F27: =Translate!$A$97 -> Real Value | AM27: 5 | AS27: ='Emission factors'!$F$411 -> t
E28: =IF(F28="",VLOOKUP(E24,CementTypes,5,0),"") -> 0 | I28: =IF(F25=OFFSET(AS28,-AM28+6,0),E25*OFFSET(E28,-AM28,0)/IF(J28='Emission factors'!E411,1,1000),E25) -> 0 | J28: ='Emission factors'!$F$411 -> t | K28: =IF(E24="CEM I",VLOOKUP(E24,EFtable,3,0),(IF(F28="",E28,F28)*VLOOKUP(E26,EFtable,3,0)+(1-IF(F28="",E28,F28))*VLOOKUP("CEM I",EFtable,3,0))) -> 860 | L28: =I28*K28 -> 0 | M28: =Translate!$A$102 -> kgCO2e | AM28: 6 | AS28: ='Emission factors'!$F$413&"/"&F22 -> kg/m3
AM29: 7
C30: + | D30: =Translate!$A$177 -> Aggregate | E30: =IF(ISERROR(VLOOKUP($E$6,DefaultConcrete,HLOOKUP(D30,DefaultConcrete,2,0),0)),0,VLOOKUP($E$6,DefaultConcrete,HLOOKUP(D30,DefaultConcrete,2,0),0)) -> 900 | F30: =OFFSET(AS30,-AM30+6,0) -> kg/m3 | I30: =IF(F30=OFFSET(AS30,-AM30+6,0),E30*OFFSET(E30,-AM30,0)/IF(J30='Emission factors'!$E$411,1,1000),E30) -> 0 | J30: ='Emission factors'!$F$411 -> t | K30: =IF(ISERROR(E31*1),VLOOKUP(D30,EFtable,3,0),VLOOKUP(D30,EFtable,3,0)*(1-E31)+VLOOKUP(D30&Translate!$A$199,EFtable,3,0)*E31) -> 4 | L30: =IF(F31=Translate!$A$111,0,I30*K30) -> 0 | M30: =Translate!$A$102 -> kgCO2e | P30: =Translate!$A$112 -> Distance | Q30: =IF(ISERROR(VLOOKUP(D30,StandardFreight,3,0)),VLOOKUP(Translate!$A$118,StandardFreight,3,0),VLOOKUP(D30,StandardFreight,3,0)) -> 20 | R30: ='Emission factors'!$F$410 -> km | S30: =Translate!$A$120 -> Type | T30: =IF(ISERROR(VLOOKUP(D30,StandardFreight,2,0)),VLOOKUP("Other",StandardFreight,2,0),VLOOKUP(D30,StandardFreight,2,0)) -> Road - Articulated >33t | U30: =Translate!$A$127 -> Load | V30: =VLOOKUP(T30,FreightLoadFactors,2,0) -> 15 | W30: =J30 -> t | X30: =IF(V30=0,0,ROUNDUP(I30/V30,0)) -> 0 | Y30: =Translate!$A$130 -> travels | Z30: =Translate!$A$128 -> empty-return rate | AA30: 1 | AB30: =VLOOKUP(T30,EFtable,3,0) -> 0.93694 | AC30: =Q30*X30*(1+AA30)*AB30 -> 0 | AD30: =Translate!$A$102 -> kgCO2e | AH30: =HLOOKUP(AI30,$AP$1:$AV$2,2,0) -> 1 | AI30: =Translate!$A$104 -> Materials | AJ30: =L30 -> 0 | AK30: =VLOOKUP(D30,EFtable,7,0) -> Concrete / Slurry / Grout mix | AL30: =VLOOKUP(D30,EFtable,8,0)*L30 -> 0 | AM30: 8 | AN30: =ROW(F31)-ROW(F30) -> 1 | AO30: =AJ30 -> 0
D31: =Translate!$A$79 -> Recycled content | E31: =IF(ISERROR(VLOOKUP(D30,RecycledContent,2,0)),Translate!$A$90,VLOOKUP(D30,RecycledContent,2,0)) -> do not apply | F31: =Translate!$A$478 -> -new or recycled- | AH31: =HLOOKUP(AI31,$AP$1:$AV$2,2,0) -> 2 | AI31: =Translate!$A$106 -> Freight | AJ31: =AC30 -> 0 | AL31: =VLOOKUP(T30,EFtable,8,0)*AC30 -> 0 | AM31: 9 | AO31: 0
AM32: 10
C33: + | D33: =Translate!$A$190 -> Sand | E33: =IF(ISERROR(VLOOKUP($E$6,DefaultConcrete,HLOOKUP(D33,DefaultConcrete,2,0),0)),0,VLOOKUP($E$6,DefaultConcrete,HLOOKUP(D33,DefaultConcrete,2,0),0)) -> 800 | F33: =OFFSET(AS33,-AM33+6,0) -> kg/m3 | I33: =IF(F33=OFFSET(AS33,-AM33+6,0),E33*OFFSET(E33,-AM33,0)/IF(J33='Emission factors'!$E$411,1,1000),E33) -> 0 | J33: ='Emission factors'!$F$411 -> t | K33: =IF(ISERROR(E34*1),VLOOKUP(D33,EFtable,3,0),VLOOKUP(D33,EFtable,3,0)*(1-E34)+VLOOKUP(D33&Translate!$A$199,EFtable,3,0)*E34) -> 6 | L33: =IF(F34=Translate!$A$111,0,I33*K33) -> 0 | M33: =Translate!$A$102 -> kgCO2e | P33: =Translate!$A$112 -> Distance | Q33: =IF(ISERROR(VLOOKUP(D33,StandardFreight,3,0)),VLOOKUP(Translate!$A$118,StandardFreight,3,0),VLOOKUP(D33,StandardFreight,3,0)) -> 20 | R33: ='Emission factors'!$F$410 -> km | S33: =Translate!$A$120 -> Type | T33: =IF(ISERROR(VLOOKUP(D33,StandardFreight,2,0)),VLOOKUP("Other",StandardFreight,2,0),VLOOKUP(D33,StandardFreight,2,0)) -> Road - Articulated >33t | U33: =Translate!$A$127 -> Load | V33: =VLOOKUP(T33,FreightLoadFactors,2,0) -> 15 | W33: =J33 -> t | X33: =IF(V33=0,0,ROUNDUP(I33/V33,0)) -> 0 | Y33: =Translate!$A$130 -> travels | Z33: =Translate!$A$128 -> empty-return rate | AA33: 1 | AB33: =VLOOKUP(T33,EFtable,3,0) -> 0.93694 | AC33: =Q33*X33*(1+AA33)*AB33 -> 0 | AD33: =Translate!$A$102 -> kgCO2e | AH33: =HLOOKUP(AI33,$AP$1:$AV$2,2,0) -> 1 | AI33: =Translate!$A$104 -> Materials | AJ33: =L33 -> 0 | AK33: =VLOOKUP(D33,EFtable,7,0) -> Concrete / Slurry / Grout mix | AL33: =VLOOKUP(D33,EFtable,8,0)*L33 -> 0 | AM33: 11 | AN33: =ROW(F34)-ROW(F33) -> 1 | AO33: 0
D34: =Translate!$A$79 -> Recycled content | E34: =IF(ISERROR(VLOOKUP(D33,RecycledContent,2,0)),Translate!$A$90,VLOOKUP(D33,RecycledContent,2,0)) -> do not apply | F34: =Translate!$A$478 -> -new or recycled- | AH34: =HLOOKUP(AI34,$AP$1:$AV$2,2,0) -> 2 | AI34: =Translate!$A$106 -> Freight | AJ34: =AC33 -> 0 | AL34: =VLOOKUP(T33,EFtable,8,0)*AC33 -> 0 | AM34: 12 | AO34: 0
AM35: 13
C36: + | D36: =Translate!$A$198 -> Water | E36: =IF(ISERROR(VLOOKUP($E$6,DefaultConcrete,HLOOKUP(D36,DefaultConcrete,2,0),0)),0,VLOOKUP($E$6,DefaultConcrete,HLOOKUP(D36,DefaultConcrete,2,0),0)) -> 200 | F36: =OFFSET(AS36,-AM36+6,0) -> kg/m3 | I36: =IF(F36=OFFSET(AS36,-AM36+6,0),E36*OFFSET(E36,-AM36,0)/IF(J36='Emission factors'!$E$411,1,1000),E36) -> 0 | J36: ='Emission factors'!$F$411 -> t | K36: =IF(ISERROR(E37*1),VLOOKUP(D36,EFtable,3,0),VLOOKUP(D36,EFtable,3,0)*(1-E37)+VLOOKUP(D36&Translate!$A$199,EFtable,3,0)*E37) -> 0.344 | L36: =IF(F37=Translate!$A$111,0,I36*K36) -> 0 | M36: =Translate!$A$102 -> kgCO2e | P36: =Translate!$A$112 -> Distance | Q36: =IF(ISERROR(VLOOKUP(D36,StandardFreight,3,0)),VLOOKUP(Translate!$A$118,StandardFreight,3,0),VLOOKUP(D36,StandardFreight,3,0)) -> 0 | R36: ='Emission factors'!$F$410 -> km | S36: =Translate!$A$120 -> Type | T36: =IF(ISERROR(VLOOKUP(D36,StandardFreight,2,0)),VLOOKUP("Other",StandardFreight,2,0),VLOOKUP(D36,StandardFreight,2,0)) -> Road - Rigid >3.5-7.5t | U36: =Translate!$A$127 -> Load | V36: =VLOOKUP(T36,FreightLoadFactors,2,0) -> 1.01232166 | W36: =J36 -> t | X36: =IF(V36=0,0,ROUNDUP(I36/V36,0)) -> 0 | Y36: =Translate!$A$130 -> travels | Z36: =Translate!$A$128 -> empty-return rate | AA36: 1 | AB36: =VLOOKUP(T36,EFtable,3,0) -> 0.49041 | AC36: =Q36*X36*(1+AA36)*AB36 -> 0 | AD36: =Translate!$A$102 -> kgCO2e | AH36: =HLOOKUP(AI36,$AP$1:$AV$2,2,0) -> 1 | AI36: =Translate!$A$104 -> Materials | AJ36: =L36 -> 0 | AK36: =VLOOKUP(D36,EFtable,7,0) -> Concrete / Slurry / Grout mix | AL36: =VLOOKUP(D36,EFtable,8,0)*L36 -> 0 | AM36: 14 | AN36: =ROW(F37)-ROW(F36) -> 1 | AO36: 0
D37: =Translate!$A$79 -> Recycled content | E37: =IF(ISERROR(VLOOKUP(D36,RecycledContent,2,0)),Translate!$A$90,VLOOKUP(D36,RecycledContent,2,0)) -> do not apply | F37: =Translate!$A$478 -> -new or recycled- | AH37: =HLOOKUP(AI37,$AP$1:$AV$2,2,0) -> 2 | AI37: =Translate!$A$106 -> Freight | AJ37: =AC36 -> 0 | AL37: =VLOOKUP(T36,EFtable,8,0)*AC36 -> 0 | AM37: 15 | AO37: 0
AM38: 16
C39: + | D39: =Translate!$A$178 -> Bentonite | E39: =IF(ISERROR(VLOOKUP($E$6,DefaultConcrete,HLOOKUP(D39,DefaultConcrete,2,0),0)),0,VLOOKUP($E$6,DefaultConcrete,HLOOKUP(D39,DefaultConcrete,2,0),0)) -> 0 | F39: =OFFSET(AS39,-AM39+6,0) -> kg/m3 | I39: =IF(F39=OFFSET(AS39,-AM39+6,0),E39*OFFSET(E39,-AM39,0)/IF(J39='Emission factors'!$E$411,1,1000),E39) -> 0 | J39: ='Emission factors'!$F$411 -> t | K39: =IF(ISERROR(E40*1),VLOOKUP(D39,EFtable,3,0),VLOOKUP(D39,EFtable,3,0)*(1-E40)+VLOOKUP(D39&Translate!$A$199,EFtable,3,0)*E40) -> 474.97792 | L39: =IF(F40=Translate!$A$111,0,I39*K39) -> 0 | M39: =Translate!$A$102 -> kgCO2e | P39: =Translate!$A$112 -> Distance | Q39: =IF(ISERROR(VLOOKUP(D39,StandardFreight,3,0)),VLOOKUP(Translate!$A$118,StandardFreight,3,0),VLOOKUP(D39,StandardFreight,3,0)) -> 300 | R39: ='Emission factors'!$F$410 -> km | S39: =Translate!$A$120 -> Type | T39: =IF(ISERROR(VLOOKUP(D39,StandardFreight,2,0)),VLOOKUP(Translate!$A$118,StandardFreight,2,0),VLOOKUP(D39,StandardFreight,2,0)) -> Road - Articulated >33t | U39: =Translate!$A$127 -> Load | V39: =VLOOKUP(T39,FreightLoadFactors,2,0) -> 15 | W39: =J39 -> t | X39: =IF(V39=0,0,ROUNDUP(I39/V39,0)) -> 0 | Y39: =Translate!$A$130 -> travels | Z39: =Translate!$A$128 -> empty-return rate | AA39: 1 | AB39: =VLOOKUP(T39,EFtable,3,0) -> 0.93694 | AC39: =Q39*X39*(1+AA39)*AB39 -> 0 | AD39: =Translate!$A$102 -> kgCO2e | AH39: =HLOOKUP(AI39,$AP$1:$AV$2,2,0) -> 1 | AI39: =Translate!$A$104 -> Materials | AJ39: =L39 -> 0 | AK39: =VLOOKUP(D39,EFtable,7,0) -> Concrete / Slurry / Grout mix | AL39: =VLOOKUP(D39,EFtable,8,0)*L39 -> 0 | AM39: 17 | AN39: =ROW(F40)-ROW(F39) -> 1 | AO39: 0
D40: =Translate!$A$79 -> Recycled content | E40: =IF(ISERROR(VLOOKUP(D39,RecycledContent,2,0)),Translate!$A$90,VLOOKUP(D39,RecycledContent,2,0)) -> do not apply | F40: =Translate!$A$478 -> -new or recycled- | AH40: =HLOOKUP(AI40,$AP$1:$AV$2,2,0) -> 2 | AI40: =Translate!$A$106 -> Freight | AJ40: =AC39 -> 0 | AL40: =VLOOKUP(T39,EFtable,8,0)*AC39 -> 0 | AM40: 18 | AO40: 0
AM41: =1+OFFSET(AM41,-1,0) -> 19 | AO41: =AJ41 -> 0
E42: =IF(E22=0,0,SUM(I27:I41)/E22) -> 0 | F42: ='Emission factors'!$F$411&"/"&F22 -> t/m3 | AM42: =1+OFFSET(AM42,-1,0) -> 20 | AO42: =AJ42 -> 0
AM43: 21
B46: + | D46: =Translate!$A$193 -> Steel rebars | F46: =VLOOKUP(D46,EFtable,2,0) -> t | I46: =E46 -> 0 | J46: =F46 -> t | K46: =IF(ISERROR(E47*1),VLOOKUP(D46,EFtable,3,0),VLOOKUP(D46,EFtable,3,0)*(1-E47)+VLOOKUP(D46&Translate!$A$199,EFtable,3,0)*E47) -> 1444.1 | L46: =IF(F47=Translate!$A$111,0,I46*K46) -> 0 | M46: =Translate!$A$102 -> kgCO2e | P46: =Translate!$A$112 -> Distance | Q46: =IF(ISERROR(VLOOKUP(D46,StandardFreight,3,0)),VLOOKUP(Translate!$A$118,StandardFreight,3,0),VLOOKUP(D46,StandardFreight,3,0)) -> 300 | R46: ='Emission factors'!$F$410 -> km | S46: =Translate!$A$120 -> Type | T46: =IF(ISERROR(VLOOKUP(D45,StandardFreight,2,0)),VLOOKUP(Translate!$A$118,StandardFreight,2,0),VLOOKUP(D45,StandardFreight,2,0)) -> Road - Articulated >33t | U46: =Translate!$A$127 -> Load | V46: =VLOOKUP(T46,FreightLoadFactors,2,0) -> 15 | W46: =J46 -> t | X46: =IF(V46=0,0,ROUNDUP(I46/V46,0)) -> 0 | Y46: =Translate!$A$130 -> travels | Z46: =Translate!$A$128 -> empty-return rate | AA46: 0.5 | AB46: =VLOOKUP(T46,EFtable,3,0) -> 0.93694 | AC46: =Q46*X46*(1+AA46)*AB46 -> 0 | AD46: =Translate!$A$102 -> kgCO2e | AH46: =HLOOKUP(AI46,$AP$1:$AV$2,2,0) -> 1 | AI46: =Translate!$A$104 -> Materials | AJ46: =L46 -> 0 | AK46: =VLOOKUP(D46,EFtable,7,0) -> Steel | AL46: =VLOOKUP(D46,EFtable,8,0)*L46 -> 0 | AN46: =ROW(F48)-ROW(F45) -> 3 | AO46: =AJ46 -> 0
D47: =Translate!$A$79 -> Recycled content | E47: =IF(ISERROR(VLOOKUP(D46,RecycledContent,2,0)),Translate!$A$90,VLOOKUP(D46,RecycledContent,2,0)) -> 0.41 | F47: =Translate!$A$478 -> -new or recycled- | AH47: =HLOOKUP(AI47,$AP$1:$AV$2,2,0) -> 2 | AI47: =Translate!$A$106 -> Freight | AJ47: =AC46 -> 0 | AL47: =VLOOKUP(T46,EFtable,8,0)*AC46 -> 0 | AO47: =AJ47 -> 0
B51: + | D51: =Translate!$A$189 -> PVC pipes | F51: =VLOOKUP(D51,EFtable,2,0) -> t | I51: =E51 -> 0 | J51: =F51 -> t | K51: =IF(ISERROR(E52*1),VLOOKUP(D51,EFtable,3,0),VLOOKUP(D51,EFtable,3,0)*(1-E52)+VLOOKUP(D51&Translate!$A$199,EFtable,3,0)*E52) -> 3230 | L51: =IF(F52=Translate!$A$111,0,I51*K51) -> 0 | M51: =Translate!$A$102 -> kgCO2e | P51: =Translate!$A$112 -> Distance | Q51: =IF(ISERROR(VLOOKUP(D51,StandardFreight,3,0)),VLOOKUP(Translate!$A$118,StandardFreight,3,0),VLOOKUP(D51,StandardFreight,3,0)) -> 300 | R51: ='Emission factors'!$F$410 -> km | S51: =Translate!$A$120 -> Type | T51: =IF(ISERROR(VLOOKUP(D50,StandardFreight,2,0)),VLOOKUP(Translate!$A$118,StandardFreight,2,0),VLOOKUP(D50,StandardFreight,2,0)) -> Road - Articulated >33t | U51: =Translate!$A$127 -> Load | V51: =VLOOKUP(T51,FreightLoadFactors,2,0) -> 15 | W51: =J51 -> t | X51: =IF(V51=0,0,ROUNDUP(I51/V51,0)) -> 0 | Y51: =Translate!$A$130 -> travels | Z51: =Translate!$A$128 -> empty-return rate | AA51: 0.5 | AB51: =VLOOKUP(T51,EFtable,3,0) -> 0.93694 | AC51: =Q51*X51*(1+AA51)*AB51 -> 0 | AD51: =Translate!$A$102 -> kgCO2e | AH51: =HLOOKUP(AI51,$AP$1:$AV$2,2,0) -> 1 | AI51: =Translate!$A$104 -> Materials | AJ51: =L51 -> 0 | AK51: =VLOOKUP(D51,EFtable,7,0) -> Other | AL51: =VLOOKUP(D51,EFtable,8,0)*L51 -> 0 | AN51: =ROW(F53)-ROW(F50) -> 3 | AO51: =AJ51 -> 0
D52: =Translate!$A$79 -> Recycled content | E52: =IF(ISERROR(VLOOKUP(D51,RecycledContent,2,0)),Translate!$A$90,VLOOKUP(D51,RecycledContent,2,0)) -> do not apply | F52: =Translate!$A$478 -> -new or recycled- | AH52: =HLOOKUP(AI52,$AP$1:$AV$2,2,0) -> 2 | AI52: =Translate!$A$106 -> Freight | AJ52: =AC51 -> 0 | AL52: =VLOOKUP(T51,EFtable,8,0)*AC51 -> 0 | AO52: =AJ52 -> 0
B56: + | D56: =Translate!$A$179 -> Calcium chloride | F56: =VLOOKUP(D56,EFtable,2,0) -> t | I56: =E56 -> 0 | J56: =F56 -> t | K56: =IF(ISERROR(E57*1),VLOOKUP(D56,EFtable,3,0),VLOOKUP(D56,EFtable,3,0)*(1-E57)+VLOOKUP(D56&Translate!$A$199,EFtable,3,0)*E57) -> 493.43257 | L56: =IF(F57=Translate!$A$111,0,I56*K56) -> 0 | M56: =Translate!$A$102 -> kgCO2e | P56: =Translate!$A$112 -> Distance | Q56: =IF(ISERROR(VLOOKUP(D56,StandardFreight,3,0)),VLOOKUP(Translate!$A$118,StandardFreight,3,0),VLOOKUP(D56,StandardFreight,3,0)) -> 300 | R56: ='Emission factors'!$F$410 -> km | S56: =Translate!$A$120 -> Type | T56: =IF(ISERROR(VLOOKUP(D55,StandardFreight,2,0)),VLOOKUP(Translate!$A$118,StandardFreight,2,0),VLOOKUP(D55,StandardFreight,2,0)) -> Road - Articulated >33t | U56: =Translate!$A$127 -> Load | V56: =VLOOKUP(T56,FreightLoadFactors,2,0) -> 15 | W56: =J56 -> t | X56: =IF(V56=0,0,ROUNDUP(I56/V56,0)) -> 0 | Y56: =Translate!$A$130 -> travels | Z56: =Translate!$A$128 -> empty-return rate | AA56: 0.5 | AB56: =VLOOKUP(T56,EFtable,3,0) -> 0.93694 | AC56: =Q56*X56*(1+AA56)*AB56 -> 0 | AD56: =Translate!$A$102 -> kgCO2e | AH56: =HLOOKUP(AI56,$AP$1:$AV$2,2,0) -> 1 | AI56: =Translate!$A$104 -> Materials | AJ56: =L56 -> 0 | AK56: =VLOOKUP(D56,EFtable,7,0) -> Other | AL56: =VLOOKUP(D56,EFtable,8,0)*L56 -> 0 | AN56: =ROW(F58)-ROW(F55) -> 3 | AO56: =AJ56 -> 0
D57: =Translate!$A$79 -> Recycled content | E57: =IF(ISERROR(VLOOKUP(D56,RecycledContent,2,0)),Translate!$A$90,VLOOKUP(D56,RecycledContent,2,0)) -> do not apply | F57: =Translate!$A$478 -> -new or recycled- | AH57: =HLOOKUP(AI57,$AP$1:$AV$2,2,0) -> 2 | AI57: =Translate!$A$106 -> Freight | AJ57: =AC56 -> 0 | AL57: =VLOOKUP(T56,EFtable,8,0)*AC56 -> 0 | AO57: =AJ57 -> 0
D62: =AP11 -> Energy (Primary source)
B65: + | D65: =Translate!$A$80 -> Simplified ratio | E65: =IF(AND(AP5,F65=Translate!$A$91),AP4,Translate!$A$92) -> OFF | F65: =Translate!$A$91 -> Default | K65: =$P$1 -> 0 | L65: =IF(E65=Translate!$A$92,0,E65*K65) -> 0 | M65: =Translate!$A$102 -> kgCO2e | AG65: ratio | AH65: 2 | AI65: =Translate!$A$105 -> Energy | AJ65: =L65 -> 0 | AL65: =100%*L65 -> 0 | AN65: =ROW(F66)-ROW(F64) -> 2
B69: + | D69: =Translate!$A$200 -> Diesel | F69: =VLOOKUP(D69,EFtable,2,0) -> liter | K69: =VLOOKUP(D69,EFtable,3,0) -> 3.2112 | L69: =E69*K69 -> 0 | M69: =Translate!$A$102 -> kgCO2e | AH69: =HLOOKUP(AI69,$AP$1:$AV$2,2,0) -> 1 | AI69: =Translate!$A$105 -> Energy | AJ69: =L69 -> 0 | AL69: =VLOOKUP(D69,EFtable,8,0)*L69 -> 0 | AN69: =ROW(F70)-ROW(F68) -> 2 | AO69: =AJ69 -> 0
B73: + | D73: =Translate!$A$81 -> Network electricity | F73: =Translate!$A$98 -> kWh | K73: =IF(ISERROR(VLOOKUP(Translate!$A$202&" - "&$E$12,EFtable,3,0)),0,VLOOKUP(Translate!$A$202&" - "&$E$12,EFtable,3,0)) -> 0 | L73: =IF(ISERROR(K73),0,E73*K73) -> 0 | M73: =Translate!$A$102 -> kgCO2e | AH73: =HLOOKUP(AI73,$AP$1:$AV$2,2,0) -> 1 | AI73: =Translate!$A$105 -> Energy | AJ73: =L73 -> 0 | AL73: =10%*L73 -> 0 | AN73: =ROW(F74)-ROW(F72) -> 2 | AO73: =AJ73 -> 0
D78: =AS11 -> Mob/demob (Secondary source)
D81: =Translate!$A$80 -> Simplified ratio | E81: =IF(AND(AS5,F81=Translate!$A$91),AS4,Translate!$A$92) -> 0.003186874869 | F81: =Translate!$A$91 -> Default | K81: =$P$1 -> 0 | L81: =IF(E81=Translate!$A$92,0,E81*K81) -> 0 | M81: =Translate!$A$102 -> kgCO2e | AG81: ratio | AH81: =HLOOKUP(AI81,$AP$1:$AV$2,2,0) -> 2 | AI81: =Translate!$A$107 -> Mob/demob | AJ81: =L81 -> 0 | AL81: =100%*L81 -> 0
B85: + | D85: =Translate!$A$206 -> Road - Rigid >17t | F85: =Translate!$A$99 -> roundtrips | I85: =E85*M85*(1+V85) -> 0 | J85: ='Emission factors'!$F$410 -> km | K85: =VLOOKUP(D85,EFtable,3,0) -> 0.98244 | L85: =Translate!$A$112 -> Distance | M85: 50 | N85: ='Emission factors'!$F$410&" "&Translate!$A$114 -> km one way | R85: =I85*K85 -> 0 | S85: =Translate!$A$102 -> kgCO2e | U85: =Translate!$A$128 -> empty-return rate | V85: 0 | AH85: =HLOOKUP(AI85,$AP$1:$AV$2,2,0) -> 2 | AI85: =Translate!$A$107 -> Mob/demob | AJ85: =R85 -> 0 | AL85: =VLOOKUP(D85,EFtable,8,0)*R85 -> 0 | AN85: =ROW(F86)-ROW(F84) -> 2 | AO85: =AJ85 -> 0
B89: + | D89: =Translate!$A$208 -> Road - Articulated >33t | F89: =Translate!$A$99 -> roundtrips | I89: =E89*M89*(1+V89) -> 0 | J89: ='Emission factors'!$F$410 -> km | K89: =VLOOKUP(D89,EFtable,3,0) -> 0.93694 | L89: =Translate!$A$112 -> Distance | M89: 50 | N89: ='Emission factors'!$F$410&" "&Translate!$A$114 -> km one way | R89: =I89*K89 -> 0 | S89: =Translate!$A$102 -> kgCO2e | U89: =Translate!$A$128 -> empty-return rate | V89: 0 | AH89: =HLOOKUP(AI89,$AP$1:$AV$2,2,0) -> 2 | AI89: =Translate!$A$107 -> Mob/demob | AJ89: =R89 -> 0 | AL89: =VLOOKUP(D89,EFtable,8,0)*R89 -> 0 | AN89: =ROW(F90)-ROW(F88) -> 2 | AO89: =AJ89 -> 0
D94: =AT11 -> People's transportation (Secondary source)
D97: =Translate!$A$82 -> Coming by | E97: =Translate!$A$93 -> Number of roundtrips | F97: =Translate!$A$100 -> every X day(s) | L97: =Translate!$A$113&" ("&'Emission factors'!$F$410&Translate!$A$114&")" -> Average distance (km one way)
C99: + | D99: =Translate!$A$217 -> Car | E99: =$E$10 -> 0 | F99: 1 | I99: =L99*E99*$E$9*2/F99 -> 0 | J99: =VLOOKUP(D99,EFtable,2,0) -> vkm | K99: =VLOOKUP(D99,EFtable,3,0) -> 0.21471 | L99: 50 | P99: =I99*K99 -> 0 | Q99: =Translate!$A$102 -> kgCO2e | AH99: =HLOOKUP(AI99,$AP$1:$AV$2,2,0) -> 2 | AI99: =Translate!$A$108 -> People's transportation | AJ99: =P99 -> 0 | AL99: =VLOOKUP(D99,EFtable,8,0)*P99 -> 0 | AN99: 2 | AO99: =AJ99 -> 0
C103: + | D103: =Translate!$A$216 -> Bus | F103: 1 | I103: =L103*E103*$E$9*2/F103 -> 0 | J103: =VLOOKUP(D103,EFtable,2,0) -> pkm | K103: =VLOOKUP(D103,EFtable,3,0) -> 0.12971 | L103: 50 | P103: =I103*K103 -> 0 | Q103: =Translate!$A$102 -> kgCO2e | AH103: =HLOOKUP(AI103,$AP$1:$AV$2,2,0) -> 2 | AI103: =Translate!$A$108 -> People's transportation | AJ103: =P103 -> 0 | AL103: =VLOOKUP(D103,EFtable,8,0)*P103 -> 0 | AN103: 2 | AO103: =AJ103 -> 0
C107: + | D107: =Translate!$A$218 -> Train | F107: 5 | I107: =L107*E107*$E$9*2/F107 -> 0 | J107: =VLOOKUP(D107,EFtable,2,0) -> pkm | K107: =VLOOKUP(D107,EFtable,3,0) -> 0.04905 | L107: 300 | P107: =I107*K107 -> 0 | Q107: =Translate!$A$102 -> kgCO2e | AH107: =HLOOKUP(AI107,$AP$1:$AV$2,2,0) -> 2 | AI107: =Translate!$A$108 -> People's transportation | AJ107: =P107 -> 0 | AL107: =VLOOKUP(D107,EFtable,8,0)*P107 -> 0 | AN107: 2 | AO107: =AJ107 -> 0
B113: + | D113: =Translate!$A$218 -> Train | F113: =VLOOKUP(D113,EFtable,2,0) -> pkm | K113: =VLOOKUP(D113,EFtable,3,0) -> 0.04905 | L113: =E113*K113 -> 0 | M113: =Translate!$A$102 -> kgCO2e | AH113: =HLOOKUP(AI113,$AP$1:$AV$2,2,0) -> 2 | AI113: =Translate!$A$108 -> People's transportation | AJ113: =L113 -> 0 | AL113: =VLOOKUP(D113,EFtable,8,0)*L113 -> 0 | AN113: =ROW(F114)-ROW(F112) -> 2 | AO113: =AJ113 -> 0
D118: =AU11 -> Assets (Secondary source)
D121: =Translate!$A$80 -> Simplified ratio | E121: =IF(AND(AU5,F121=Translate!$A$91),AU4,Translate!$A$92) -> 0.004377484025 | F121: =Translate!$A$91 -> Default | K121: =$P$1 -> 0 | L121: =IF(E121=Translate!$A$92,0,E121*K121) -> 0 | M121: =Translate!$A$102 -> kgCO2e | AG121: ratio | AH121: =HLOOKUP(AI121,$AP$1:$AV$2,2,0) -> 2 | AI121: =Translate!$A$109 -> Assets | AJ121: =L121 -> 0 | AL121: =100%*L121 -> 0
B125: + | D125: =Translate!$A$222 -> Machines | F125: =VLOOKUP(D125,EFtable,2,0) -> t | I125: =E125*U125/(Z125*R125) -> 0 | J125: =VLOOKUP(D125,EFtable,2,0) -> t | K125: =VLOOKUP(D125,EFtable,3,0) -> 3666.666667 | L125: =I125*K125 -> 0 | M125: =Translate!$A$102 -> kgCO2e | P125: =Translate!$A$116 -> Lifetime | R125: 10 | S125: =Translate!$A$121 -> years | T125: =Translate!$A$126 -> Use time | U125: =$E$9 -> 0 | V125: =Translate!$A$129 -> days | X125: =Translate!$A$67 -> Working days | Z125: 150 | AA125: =Translate!$A$129&" / "&Translate!$A$122 -> days / year | AH125: =HLOOKUP(AI125,$AP$1:$AV$2,2,0) -> 2 | AI125: =Translate!$A$109 -> Assets | AJ125: =L125 -> 0 | AL125: =VLOOKUP("Machines",EFtable,8,0)*L125 -> 0 | AN125: =ROW(F126)-ROW(F124) -> 2 | AO125: =AJ125 -> 0
D130: =AV11 -> Waste (Secondary source)
D133: =Translate!$A$80 -> Simplified ratio | E133: =IF(AND(AV5,F133=Translate!$A$91),AV4,Translate!$A$92) -> 0.002659148019 | F133: =Translate!$A$91 -> Default | K133: =$P$1 -> 0 | L133: =IF(E133=Translate!$A$92,0,E133*K133) -> 0 | M133: =Translate!$A$102 -> kgCO2e | AG133: ratio | AH133: =HLOOKUP(AI133,$AP$1:$AV$2,2,0) -> 2 | AI133: =Translate!$A$110 -> Waste | AJ133: =L133 -> 0 | AL133: =100%*L133 -> 0
B137: + | D137: =Translate!$A$84 -> Waste 1 | F137: ='Emission factors'!$F$411 -> t | I137: =Q137*X137*(1+AA137) -> 0 | J137: ='Emission factors'!$F$410 -> km | K137: =VLOOKUP(T137,EFtable,3,0) -> 0.98244 | L137: =I137*K137 -> 0 | M137: =Translate!$A$102 -> kgCO2e | P137: =Translate!$A$112 -> Distance | Q137: 10 | R137: ='Emission factors'!$F$410 -> km | S137: =Translate!$A$120 -> Type | T137: =Translate!$A$206 -> Road - Rigid >17t | U137: =Translate!$A$127 -> Load | V137: =VLOOKUP(T137,'Emission factors'!$C$313:$E$329,2,0) -> 7.5 | W137: =F137 -> t | X137: =IF(V137=0,0,ROUNDUP(E137/V137,0)) -> 0 | Y137: =Translate!$A$130 -> travels | Z137: =Translate!$A$128 -> empty-return rate | AA137: 0.5 | AH137: =HLOOKUP(AI137,$AP$1:$AV$2,2,0) -> 2 | AI137: =Translate!$A$110 -> Waste | AJ137: =L137 -> 0 | AL137: =VLOOKUP(T137,EFtable,8,0)*L137 -> 0 | AN137: =ROW(F138)-ROW(F136) -> 2 | AO137: =AJ137 -> 0
B141: =Translate!$A$242 -> - | D141: =Translate!$A$85 -> Waste 2 | F141: ='Emission factors'!$F$411 -> t | I141: =Q141*X141*(1+AA141) -> 0 | J141: ='Emission factors'!$F$410 -> km | K141: =VLOOKUP(T141,EFtable,3,0) -> 0.98244 | L141: =I141*K141 -> 0 | M141: =Translate!$A$102 -> kgCO2e | P141: =Translate!$A$112 -> Distance | Q141: 10 | R141: ='Emission factors'!$F$410 -> km | S141: =Translate!$A$120 -> Type | T141: =Translate!$A$206 -> Road - Rigid >17t | U141: =Translate!$A$127 -> Load | V141: =VLOOKUP(T141,'Emission factors'!$C$313:$E$329,2,0) -> 7.5 | W141: =F141 -> t | X141: =IF(V141=0,0,ROUNDUP(E141/V141,0)) -> 0 | Y141: =Translate!$A$130 -> travels | Z141: =Translate!$A$128 -> empty-return rate | AA141: 0.5 | AH141: =HLOOKUP(AI141,$AP$1:$AV$2,2,0) -> 2 | AI141: =Translate!$A$110 -> Waste | AJ141: =L141 -> 0 | AL141: =VLOOKUP(T141,EFtable,8,0)*L141 -> 0 | AN141: =ROW(F142)-ROW(F140) -> 2 | AO141: =AJ141 -> 0
D146: =Translate!$A$86 -> Externaly calculated emissions
B149: + | D149: =Translate!$A$47 -> Name | F149: =Translate!$A$104 -> Materials | M149: =Translate!$A$102 -> kgCO2e | AG149: ext | AH149: =HLOOKUP(AI149,$AP$1:$AV$2,2,0) -> 1 | AI149: =F149 -> Materials | AJ149: =L149 -> 0 | AK149: =IF(F149=$AQ$1,Translate!$A$118,"") -> Other | AN149: =ROW(F150)-ROW(F148) -> 2

Sheet Subprojectzero2 (hidden)
A1: Subproject | M1: Total primary emission sources | P1: =SUMPRODUCT(($AH$17:$AH$177=1)*$AO$17:$AO$177) -> 0 | Q1: =SUMPRODUCT(($AH$17:$AH$177=1)*1,$AL$17:$AL$177) -> 0 | T1: externally calculated emissions | U1: =IF(SUMPRODUCT(($AG$17:$AG$172="ext")*1,$AJ$17:$AJ$172)<>0,TRUE) -> FALSE | V1: ratios used | W1: =IF(SUMPRODUCT(($AG$17:$AG$172="ratio")*1,$AJ$17:$AJ$172)<>0,TRUE) -> FALSE | AA1: Functional unit 1 | AB1: =IF(E13="value",1,0) -> 1 | AC1: country | AD1: 0 | AI1: t | AJ1: =Translate!$A$73 -> Concrete / Slurry / Grout mix | AK1: =Translate!$A$138 -> Steel | AL1: =Translate!$A$118 -> Other | AP1: ='Emission factors'!D342 -> Energy | AQ1: ='Emission factors'!E342 -> Materials | AR1: ='Emission factors'!F342 -> Freight | AS1: ='Emission factors'!G342 -> Mob/demob | AT1: ='Emission factors'!H342 -> People's transportation | AU1: ='Emission factors'!I342 -> Assets | AV1: ='Emission factors'!J342 -> Waste
M2: Total secondary emission sources | P2: =SUMPRODUCT(($AH$17:$AH$177=2)*$AO$17:$AO$177) -> 0 | Q2: =SUMPRODUCT(($AH$17:$AH$177=2)*1,$AL$17:$AL$177) -> 0 | AA2: Functional unit 2 | AB2: =IF(E14="value",1,0) -> 1 | AI2: ="kg/"&F37 -> kg/m3 | AJ2: =SUMPRODUCT(($AK$17:$AK$172=AJ1)*1,$AJ$17:$AJ$172)/1000 -> 0 | AK2: =SUMPRODUCT(($AK$17:$AK$172=AK1)*1,$AJ$17:$AJ$172)/1000 -> 0 | AL2: =SUMPRODUCT(($AK$17:$AK$172=AL1)*1,$AJ$17:$AJ$172)/1000 -> 0 | AO2: Primary(1)/Secondary(2) | AP2: =VLOOKUP($E$6,'Emission factors'!$C$343:$AY$370,'Emission factors'!Y$340,0) -> 1 | AQ2: =VLOOKUP($E$6,'Emission factors'!$C$343:$AY$370,'Emission factors'!Z$340,0) -> 1 | AR2: =VLOOKUP($E$6,'Emission factors'!$C$343:$AY$370,'Emission factors'!AA$340,0) -> 2 | AS2: =VLOOKUP($E$6,'Emission factors'!$C$343:$AY$370,'Emission factors'!AB$340,0) -> 2 | AT2: =VLOOKUP($E$6,'Emission factors'!$C$343:$AY$370,'Emission factors'!AC$340,0) -> 2 | AU2: =VLOOKUP($E$6,'Emission factors'!$C$343:$AY$370,'Emission factors'!AD$340,0) -> 2 | AV2: =VLOOKUP($E$6,'Emission factors'!$C$343:$AY$370,'Emission factors'!AE$340,0) -> 2 | AY2: Messages
T3: =Translate!$A$123&AQ9&AP9&AR9&AS9&AT9&AU9&AV9 -> Primary emission sources : Materials, Energy, | AB3: =Translate!$A$131 -> Comments : | AO3: Project emission repartition | AP3: =IF(SUM($P$7:$P$13)=0,0,VLOOKUP(AP1,$H$7:$P$13,9,0)/SUM($P$7:$P$13)) -> 0 | AQ3: 0 | AR3: 0 | AS3: 0 | AT3: 0 | AU3: 0 | AV3: 0 | AX3: =IF(E9=0,AY3,"") -> Enter the number of working days | AY3: =Lists!H2 -> Enter the number of working days
AO4: Average ratio | AP4: =VLOOKUP($E$6,'Emission factors'!$C$343:$Y$370,'Emission factors'!D$340,0) -> 0.04091666396 | AQ4: =VLOOKUP($E$6,'Emission factors'!$C$343:$Y$370,'Emission factors'!E$340,0) -> 0.959083336 | AR4: =VLOOKUP($E$6,'Emission factors'!$C$343:$Y$370,'Emission factors'!F$340,0) -> 0.006411482467 | AS4: =VLOOKUP($E$6,'Emission factors'!$C$343:$Y$370,'Emission factors'!G$340,0) -> 0.003186874869 | AT4: =VLOOKUP($E$6,'Emission factors'!$C$343:$Y$370,'Emission factors'!H$340,0) -> 0.001869269592 | AU4: =VLOOKUP($E$6,'Emission factors'!$C$343:$Y$370,'Emission factors'!I$340,0) -> 0.004377484025 | AV4: =VLOOKUP($E$6,'Emission factors'!$C$343:$Y$370,'Emission factors'!J$340,0) -> 0.002659148019 | AX4: =IF(E10=0,AY4,"") -> Enter the average number of people working on the project | AY4: =Lists!H3 -> Enter the average number of people working on the project
D5: =Translate!$A$64 -> Subproject name | T5: =IF(NOT(AW10),Translate!$A$124,"") -> Please enter activities data relative to the primary emission sources | AO5: Ratio needed | AP5: =IF(AP2=1,0,IF(SUMPRODUCT($AO$17:$AO$183*($AI$17:$AI$183=AP1))>0,0,1)) -> 0 | AQ5: 0 | AR5: 1 | AS5: 1 | AT5: 1 | AU5: 1 | AV5: 1 | AX5: =IF(Translate!$A$300=E12,AY5,"") -> Select a country | AY5: =Lists!H4 -> Select a country | BA5: =Translate!$A$132 -> Primary emission sources | BB5: =P1/1000 -> 0 | BC5: =P2/1000 -> 0 | BD5: =Q1/1000 -> 0
B6: =Translate!$A$63 -> duplication + | D6: =Translate!$A$48 -> Technique | E6: =Translate!$A$281 -> Bored piles | H6: =Translate!$A$103 -> Sources | P6: =Translate!$A$115 -> tCO2e | Q6: =Translate!$A$115 -> tCO2e | T6: =IF(P14>0,AX3&AX4&AX5&AQ8&AP8&AR8&AS8&AT8&AU8&AV8,"") ->  | AO6: Too high | AP6: =VLOOKUP($E$6,'Emission factors'!$C$343:$Y$370,'Emission factors'!K$340,0) -> 0.15 | AQ6: =VLOOKUP($E$6,'Emission factors'!$C$343:$Y$370,'Emission factors'!L$340,0) -> 1 | AR6: =VLOOKUP($E$6,'Emission factors'!$C$343:$Y$370,'Emission factors'!M$340,0) -> 0.1 | AS6: =VLOOKUP($E$6,'Emission factors'!$C$343:$Y$370,'Emission factors'!N$340,0) -> 0.1 | AT6: =VLOOKUP($E$6,'Emission factors'!$C$343:$Y$370,'Emission factors'!O$340,0) -> 0.1 | AU6: =VLOOKUP($E$6,'Emission factors'!$C$343:$Y$370,'Emission factors'!P$340,0) -> 0.05 | AV6: =VLOOKUP($E$6,'Emission factors'!$C$343:$Y$370,'Emission factors'!Q$340,0) -> 0.05 | AY6: =Lists!H5 -> emissions are relatively high | BA6: =Translate!$A$133 -> Secondary emission sources | BB6: =BB5 -> 0 | BC6: =BC5 -> 0 | BD6: =Q2/1000 -> 0
D7: =Translate!$A$65 -> Date of calculation | H7: =Translate!$A$104 -> Materials | L7: =AJ2 -> 0 | M7: =AK2 -> 0 | N7: =AL2 -> 0 | O7: =AL3 -> 0 | P7: =SUMPRODUCT(($AI$17:$AI$172=$H7)*1,$AJ$17:$AJ$172)/1000 -> 0 | Q7: =SUMPRODUCT(($AI$17:$AI$172=$H7)*1,$AL$17:$AL$172)/1000 -> 0 | AO7: Too low | AP7: =VLOOKUP($E$6,'Emission factors'!$C$343:$Y$370,'Emission factors'!R$340,0) -> 0.02 | AQ7: =VLOOKUP($E$6,'Emission factors'!$C$343:$Y$370,'Emission factors'!S$340,0) -> 0.5 | AR7: =VLOOKUP($E$6,'Emission factors'!$C$343:$Y$370,'Emission factors'!T$340,0) -> 0.001 | AS7: =VLOOKUP($E$6,'Emission factors'!$C$343:$Y$370,'Emission factors'!U$340,0) -> 0.0001 | AT7: =VLOOKUP($E$6,'Emission factors'!$C$343:$Y$370,'Emission factors'!V$340,0) -> 0.0001 | AU7: =VLOOKUP($E$6,'Emission factors'!$C$343:$Y$370,'Emission factors'!W$340,0) -> 0.0005 | AV7: =VLOOKUP($E$6,'Emission factors'!$C$343:$Y$370,'Emission factors'!X$340,0) -> 0 | AY7: =Lists!H6 -> emissions are relatively low | BA7: =Translate!$A$134 -> Total | BB7: =BB6 -> 0 | BC7: =BC6 -> 0 | BD7: =BD5+BD6 -> 0 | BE7: =IF(P7=0,0,ROUND(P7,-ROUNDDOWN(LOG(ABS(P7)),0)+1)) -> 0
D8: =Translate!$A$66 -> Author | H8: =Translate!$A$105 -> Energy | O8: =P8 -> 0 | P8: 0 | Q8: 0 | AP8: =IF(AP7>AP3,AP1&$AY$7,IF(AP6<AP3,AP1&$AY$6,"")) -> Energy emissions are relatively low | AQ8: Materials emissions are relatively low | AR8: Freight emissions are relatively low | AS8: Mob/demob emissions are relatively low | AT8: People's transportation emissions are relatively low | AU8: Assets emissions are relatively low | AV8: =IF(AV7>AV3,AV1&$AY$7,IF(AV6<AV3,AV1&$AY$6,"")) ->  | AY8: =Lists!H7 -> (Primary source) | BE8: =IF(P8=0,0,ROUND(P8,-ROUNDDOWN(LOG(ABS(P8)),0)+1)) -> 0
D9: =Translate!$A$67 -> Working days | F9: =Translate!$A$67 -> Working days | H9: =Translate!$A$106 -> Freight | O9: 0 | P9: 0 | Q9: 0 | AP9: =IF(AP2=1,AP1&", ","") -> Energy, | AQ9: Materials, | AY9: =Lists!H8 -> (Secondary source) | BE9: 0
D10: =Translate!$A$68 -> Workforce | F10: =Translate!$A$94 -> Full-time equivalent | H10: =Translate!$A$107 -> Mob/demob | O10: 0 | P10: 0 | Q10: 0 | AO10: msg active | AP10: =IF((AP2=1),NOT(AP3=0),TRUE) -> FALSE | AQ10: =IF((AQ2=1),NOT(AQ3=0),TRUE) -> FALSE | AR10: TRUE | AS10: TRUE | AT10: TRUE | AU10: TRUE | AV10: TRUE | AW10: =AND(AP10:AV10) -> FALSE | BE10: 0
D11: =Translate!$A$69 -> Project value | F11: =Translate!$A$95 -> € | H11: =Translate!$A$108 -> People's transportation | O11: 0 | P11: 0 | Q11: 0 | AP11: =IF(AP2=1,AP1&$AY$8,AP1&$AY$9) -> Energy (Primary source) | AQ11: =IF(AQ2=1,AQ1&$AY$8,AQ1&$AY$9) -> Materials (Primary source) | AR11: Freight (Secondary source) | AS11: Mob/demob (Secondary source) | AT11: People's transportation (Secondary source) | AU11: Assets (Secondary source) | AV11: Waste (Secondary source) | BE11: 0
D12: =Translate!$A$70 -> Country | E12: =Translate!$A$300 -> -Select the project country | H12: =Translate!$A$109 -> Assets | O12: 0 | P12: 0 | Q12: 0 | T12: =Translate!$A$125 -> TOTAL GHG EMISSIONS | V12: =IF(P14=0,0,ROUND(P14,-ROUNDDOWN(LOG(ABS(P14)),0)+1)) -> 0 | Y12: =Translate!$A$115 -> tCO2e | BE12: 0
D13: =Translate!$A$71 -> Functional unit 1 | E13: =Translate!$A$87 -> value | F13: =Translate!$A$96 -> unit | H13: =Translate!$A$110 -> Waste | O13: 0 | P13: 0 | Q13: 0 | BE13: 0
D14: =Translate!$A$72 -> Functional unit 2 | E14: =Translate!$A$87 -> value | F14: =Translate!$A$96 -> unit | P14: =SUM(P7:P13) -> 0
I16: Activity data | K16: Emission factor | L16: GHG Emissions
D17: =AQ11 -> Materials (Primary source) | Q17: =AR11 -> Freight (Secondary source) | AH17: Emissions source importance | AI17: Emissions source | AJ17: Emissions | AK17: Material type | AL17: Uncertainties | AN17: Bloc height
B20: + | D20: =Translate!$A$177 -> Aggregate | F20: =VLOOKUP(D20,EFtable,2,0) -> t | I20: =E20 -> 0 | J20: =F20 -> t | K20: =IF(ISERROR(E21*1),VLOOKUP(D20,EFtable,3,0),VLOOKUP(D20,EFtable,3,0)*(1-E21)+VLOOKUP(D20&Translate!$A$199,EFtable,3,0)*E21) -> 4 | L20: =IF(F21=Translate!$A$111,0,I20*K20) -> 0 | M20: =Translate!$A$102 -> kgCO2e | P20: =Translate!$A$112 -> Distance | R20: ='Emission factors'!$F$410 -> km | S20: =Translate!$A$120 -> Type | T20: =IF(ISERROR(VLOOKUP(D19,StandardFreight,2,0)),VLOOKUP(Translate!$A$118,StandardFreight,2,0),VLOOKUP(D19,StandardFreight,2,0)) -> Road - Articulated >33t | U20: =Translate!$A$127 -> Load | V20: =VLOOKUP(T20,FreightLoadFactors,2,0) -> 15 | W20: =J20 -> t | X20: =IF(V20=0,0,ROUNDUP(I20/V20,0)) -> 0 | Y20: =Translate!$A$130 -> travels | Z20: =Translate!$A$128 -> empty-return rate | AA20: 0.5 | AB20: =VLOOKUP(T20,EFtable,3,0) -> 0.93694 | AC20: =Q20*X20*(1+AA20)*AB20 -> 0 | AD20: =Translate!$A$102 -> kgCO2e | AH20: =HLOOKUP(AI20,$AP$1:$AV$2,2,0) -> 1 | AI20: =Translate!$A$104 -> Materials | AJ20: =L20 -> 0 | AK20: =VLOOKUP(D20,EFtable,7,0) -> Concrete / Slurry / Grout mix | AL20: =VLOOKUP(D20,EFtable,8,0)*L20 -> 0 | AN20: =ROW(F22)-ROW(F19) -> 3 | AO20: =AJ20 -> 0
D21: =Translate!$A$79 -> Recycled content | E21: =IF(ISERROR(VLOOKUP(D20,RecycledContent,2,0)),Translate!$A$90,VLOOKUP(D20,RecycledContent,2,0)) -> do not apply | F21: =Translate!$A$478 -> -new or recycled- | AH21: =HLOOKUP(AI21,$AP$1:$AV$2,2,0) -> 2 | AI21: =Translate!$A$106 -> Freight | AJ21: =AC20 -> 0 | AL21: =VLOOKUP(T20,EFtable,8,0)*AC20 -> 0 | AO21: =AJ21 -> 0
B25: + | D25: =Translate!$A$194 -> Steel tubes | F25: =VLOOKUP(D25,EFtable,2,0) -> t | I25: =E25 -> 0 | J25: =F25 -> t | K25: =IF(ISERROR(E26*1),VLOOKUP(D25,EFtable,3,0),VLOOKUP(D25,EFtable,3,0)*(1-E26)+VLOOKUP(D25&Translate!$A$199,EFtable,3,0)*E26) -> 1923.1 | L25: =IF(F26=Translate!$A$111,0,I25*K25) -> 0 | M25: =Translate!$A$102 -> kgCO2e | P25: =Translate!$A$112 -> Distance | R25: ='Emission factors'!$F$410 -> km | S25: =Translate!$A$120 -> Type | T25: =IF(ISERROR(VLOOKUP(D24,StandardFreight,2,0)),VLOOKUP(Translate!$A$118,StandardFreight,2,0),VLOOKUP(D24,StandardFreight,2,0)) -> Road - Articulated >33t | U25: =Translate!$A$127 -> Load | V25: =VLOOKUP(T25,FreightLoadFactors,2,0) -> 15 | W25: =J25 -> t | X25: =IF(V25=0,0,ROUNDUP(I25/V25,0)) -> 0 | Y25: =Translate!$A$130 -> travels | Z25: =Translate!$A$128 -> empty-return rate | AA25: 0.5 | AB25: =VLOOKUP(T25,EFtable,3,0) -> 0.93694 | AC25: =Q25*X25*(1+AA25)*AB25 -> 0 | AD25: =Translate!$A$102 -> kgCO2e | AH25: =HLOOKUP(AI25,$AP$1:$AV$2,2,0) -> 1 | AI25: =Translate!$A$104 -> Materials | AJ25: =L25 -> 0 | AK25: =VLOOKUP(D25,EFtable,7,0) -> Steel | AL25: =VLOOKUP(D25,EFtable,8,0)*L25 -> 0 | AN25: =ROW(F27)-ROW(F24) -> 3 | AO25: =AJ25 -> 0
D26: =Translate!$A$79 -> Recycled content | E26: =IF(ISERROR(VLOOKUP(D25,RecycledContent,2,0)),Translate!$A$90,VLOOKUP(D25,RecycledContent,2,0)) -> 0.41 | F26: =Translate!$A$478 -> -new or recycled- | AH26: =HLOOKUP(AI26,$AP$1:$AV$2,2,0) -> 2 | AI26: =Translate!$A$106 -> Freight | AJ26: =AC25 -> 0 | AL26: =VLOOKUP(T25,EFtable,8,0)*AC25 -> 0 | AO26: =AJ26 -> 0
B30: + | D30: EPDM-rubber | F30: =VLOOKUP(D30,EFtable,2,0) -> t | I30: =E30 -> 0 | J30: =F30 -> t | K30: =IF(ISERROR(E31*1),VLOOKUP(D30,EFtable,3,0),VLOOKUP(D30,EFtable,3,0)*(1-E31)+VLOOKUP(D30&Translate!$A$199,EFtable,3,0)*E31) -> 2770.4699 | L30: =IF(F31=Translate!$A$111,0,I30*K30) -> 0 | M30: =Translate!$A$102 -> kgCO2e | P30: =Translate!$A$112 -> Distance | R30: ='Emission factors'!$F$410 -> km | S30: =Translate!$A$120 -> Type | T30: =IF(ISERROR(VLOOKUP(D29,StandardFreight,2,0)),VLOOKUP(Translate!$A$118,StandardFreight,2,0),VLOOKUP(D29,StandardFreight,2,0)) -> Road - Articulated >33t | U30: =Translate!$A$127 -> Load | V30: =VLOOKUP(T30,FreightLoadFactors,2,0) -> 15 | W30: =J30 -> t | X30: =IF(V30=0,0,ROUNDUP(I30/V30,0)) -> 0 | Y30: =Translate!$A$130 -> travels | Z30: =Translate!$A$128 -> empty-return rate | AA30: 0.5 | AB30: =VLOOKUP(T30,EFtable,3,0) -> 0.93694 | AC30: =Q30*X30*(1+AA30)*AB30 -> 0 | AD30: =Translate!$A$102 -> kgCO2e | AH30: =HLOOKUP(AI30,$AP$1:$AV$2,2,0) -> 1 | AI30: =Translate!$A$104 -> Materials | AJ30: =L30 -> 0 | AK30: =VLOOKUP(D30,EFtable,7,0) -> Other | AL30: =VLOOKUP(D30,EFtable,8,0)*L30 -> 0 | AN30: =ROW(F32)-ROW(F29) -> 3 | AO30: =AJ30 -> 0
D31: =Translate!$A$79 -> Recycled content | E31: =IF(ISERROR(VLOOKUP(D30,RecycledContent,2,0)),Translate!$A$90,VLOOKUP(D30,RecycledContent,2,0)) -> do not apply | F31: =Translate!$A$478 -> -new or recycled- | AH31: =HLOOKUP(AI31,$AP$1:$AV$2,2,0) -> 2 | AI31: =Translate!$A$106 -> Freight | AJ31: =AC30 -> 0 | AL31: =VLOOKUP(T30,EFtable,8,0)*AC30 -> 0 | AO31: =AJ31 -> 0
D34: =Translate!$A$73 -> Concrete / Slurry / Grout mix
B35: + | AN35: =ROW(F58)-ROW(F34) -> 24
D36: =Translate!$A$47 -> Name | E36: =Translate!$A$88 -> Default concrete | L36: =Translate!$A$475 -> made at plant | M36: =IF(L36=Translate!$A$475,1,0) -> 1
D37: =Translate!$A$74 -> Quantity | F37: ='Emission factors'!$F$414 -> m3 | I37: =E37 -> 0 | J37: =F37 -> m3 | P37: =Translate!$A$112 -> Distance | Q37: =IF(L36="made on site",0,20) -> 20 | R37: ='Emission factors'!$F$410 -> km | S37: =Translate!$A$120 -> Type | T37: =Translate!$A$206 -> Road - Rigid >17t | U37: =Translate!$A$127 -> Load | V37: ='Emission factors'!$D$311 -> 8 | W37: =J37 -> m3 | X37: =IF(V37=0,0,ROUNDUP(I37/V37,0)) -> 0 | Y37: =Translate!$A$130 -> travels | Z37: =Translate!$A$128 -> empty-return rate | AA37: 1 | AB37: =VLOOKUP(T37,EFtable,3,0) -> 0.98244 | AC37: =Q37*X37*(1+AA37)*AB37 -> 0 | AD37: =Translate!$A$102 -> kgCO2e | AM37: 0
AH38: =HLOOKUP(AI38,$AP$1:$AV$2,2,0) -> 2 | AI38: =Translate!$A$106 -> Freight | AJ38: =AC37 -> 0 | AL38: =VLOOKUP(T37,EFtable,8,0)*AC37 -> 0 | AM38: =1+OFFSET(AM38,-1,0) -> 1 | AO38: =AJ38 -> 0
C39: + | D39: =Translate!$A$75 -> Cement | E39: =Translate!$A$181 -> CEM I | AM39: =1+OFFSET(AM39,-1,0) -> 2 | AN39: =ROW(F43)-ROW(F39) -> 4
D40: =Translate!$A$76 -> Total cementitious content | E40: =VLOOKUP($E$6,DefaultConcrete,3,0) -> 400 | F40: =OFFSET(AS40,-AM40+6,0) -> kg/m3 | P40: =Translate!$A$112 -> Distance | Q40: =IF(ISERROR(VLOOKUP(D39,StandardFreight,3,0)),VLOOKUP(Translate!$A$118,StandardFreight,3,0),VLOOKUP(D39,StandardFreight,3,0)) -> 20 | R40: ='Emission factors'!$F$410 -> km | S40: =Translate!$A$120 -> Type | T40: =IF(ISERROR(VLOOKUP(D39,StandardFreight,2,0)),VLOOKUP("Other",StandardFreight,2,0),VLOOKUP(D39,StandardFreight,2,0)) -> Road - Rigid >17t | U40: =Translate!$A$127 -> Load | V40: =VLOOKUP(T40,FreightLoadFactors,2,0) -> 7.5 | W40: =J43 -> t | X40: =IF(V40=0,0,ROUNDUP(I43/V40,0)) -> 0 | Y40: =Translate!$A$130 -> travels | Z40: =Translate!$A$128 -> empty-return rate | AA40: 1 | AB40: =VLOOKUP(T40,EFtable,3,0) -> 0.98244 | AC40: =Q40*X40*(1+AA40)*AB40 -> 0 | AD40: =Translate!$A$102 -> kgCO2e | AH40: =HLOOKUP(AI40,$AP$1:$AV$2,2,0) -> 1 | AI40: =Translate!$A$104 -> Materials | AJ40: =L43 -> 0 | AK40: =Translate!$A$73 -> Concrete / Slurry / Grout mix | AL40: =VLOOKUP("CEM I",EFtable,8,0)*L43 -> 0 | AM40: 3 | AO40: =AJ40 -> 0
D41: =Translate!$A$77 -> Secondary constituent | E41: =VLOOKUP(E39,'Emission factors'!$C$286:$M$294,2,0) -> - | AH41: =HLOOKUP(AI41,$AP$1:$AV$2,2,0) -> 2 | AI41: =Translate!$A$106 -> Freight | AJ41: =AC40 -> 0 | AL41: =VLOOKUP(T40,EFtable,8,0)*AC40 -> 0 | AM41: 4 | AO41: =AJ41 -> 0
D42: =Translate!$A$78 -> Secondary constituent content | E42: =Translate!$A$89 -> Default value | F42: =Translate!$A$97 -> Real Value | AM42: 5 | AS42: ='Emission factors'!$F$411 -> t
E43: =IF(F43="",VLOOKUP(E39,CementTypes,5,0),"") -> 0 | I43: =IF(F40=OFFSET(AS43,-AM43+6,0),E40*OFFSET(E43,-AM43,0)/IF(J43='Emission factors'!$E$411,1,1000),E40) -> 0 | J43: ='Emission factors'!$F$411 -> t | K43: =IF(E39="CEM I",VLOOKUP(E39,EFtable,3,0),(IF(F43="",E43,F43)*VLOOKUP(E41,EFtable,3,0)+(1-IF(F43="",E43,F43))*VLOOKUP("CEM I",EFtable,3,0))) -> 860 | L43: =I43*K43 -> 0 | M43: =Translate!$A$102 -> kgCO2e | AM43: 6 | AS43: ='Emission factors'!$F$413&"/"&F37 -> kg/m3
AM44: 7
C45: + | D45: =Translate!$A$177 -> Aggregate | E45: =IF(ISERROR(VLOOKUP($E$6,DefaultConcrete,HLOOKUP(D45,DefaultConcrete,2,0),0)),0,VLOOKUP($E$6,DefaultConcrete,HLOOKUP(D45,DefaultConcrete,2,0),0)) -> 900 | F45: =OFFSET(AS45,-AM45+6,0) -> kg/m3 | I45: =IF(F45=OFFSET(AS45,-AM45+6,0),E45*OFFSET(E45,-AM45,0)/IF(J45='Emission factors'!$E$411,1,1000),E45) -> 0 | J45: ='Emission factors'!$F$411 -> t | K45: =IF(ISERROR(E46*1),VLOOKUP(D45,EFtable,3,0),VLOOKUP(D45,EFtable,3,0)*(1-E46)+VLOOKUP(D45&Translate!$A$199,EFtable,3,0)*E46) -> 4 | L45: =IF(F46=Translate!$A$111,0,I45*K45) -> 0 | M45: =Translate!$A$102 -> kgCO2e | P45: =Translate!$A$112 -> Distance | Q45: =IF(ISERROR(VLOOKUP(D45,StandardFreight,3,0)),VLOOKUP(Translate!$A$118,StandardFreight,3,0),VLOOKUP(D45,StandardFreight,3,0)) -> 20 | R45: ='Emission factors'!$F$410 -> km | S45: =Translate!$A$120 -> Type | T45: =IF(ISERROR(VLOOKUP(D45,StandardFreight,2,0)),VLOOKUP("Other",StandardFreight,2,0),VLOOKUP(D45,StandardFreight,2,0)) -> Road - Articulated >33t | U45: =Translate!$A$127 -> Load | V45: =VLOOKUP(T45,FreightLoadFactors,2,0) -> 15 | W45: =J45 -> t | X45: =IF(V45=0,0,ROUNDUP(I45/V45,0)) -> 0 | Y45: =Translate!$A$130 -> travels | Z45: =Translate!$A$128 -> empty-return rate | AA45: 1 | AB45: =VLOOKUP(T45,EFtable,3,0) -> 0.93694 | AC45: =Q45*X45*(1+AA45)*AB45 -> 0 | AD45: =Translate!$A$102 -> kgCO2e | AH45: =HLOOKUP(AI45,$AP$1:$AV$2,2,0) -> 1 | AI45: =Translate!$A$104 -> Materials | AJ45: =L45 -> 0 | AK45: =VLOOKUP(D45,EFtable,7,0) -> Concrete / Slurry / Grout mix | AL45: =VLOOKUP(D45,EFtable,8,0)*L45 -> 0 | AM45: 8 | AN45: =ROW(F46)-ROW(F45) -> 1 | AO45: =AJ45 -> 0
D46: =Translate!$A$79 -> Recycled content | E46: =IF(ISERROR(VLOOKUP(D45,RecycledContent,2,0)),Translate!$A$90,VLOOKUP(D45,RecycledContent,2,0)) -> do not apply | F46: =Translate!$A$478 -> -new or recycled- | AH46: =HLOOKUP(AI46,$AP$1:$AV$2,2,0) -> 2 | AI46: =Translate!$A$106 -> Freight | AJ46: =AC45 -> 0 | AL46: =VLOOKUP(T45,EFtable,8,0)*AC45 -> 0 | AM46: 9 | AO46: 0
AM47: 10
C48: + | D48: =Translate!$A$190 -> Sand | E48: =IF(ISERROR(VLOOKUP($E$6,DefaultConcrete,HLOOKUP(D48,DefaultConcrete,2,0),0)),0,VLOOKUP($E$6,DefaultConcrete,HLOOKUP(D48,DefaultConcrete,2,0),0)) -> 800 | F48: =OFFSET(AS48,-AM48+6,0) -> kg/m3 | I48: =IF(F48=OFFSET(AS48,-AM48+6,0),E48*OFFSET(E48,-AM48,0)/IF(J48='Emission factors'!$E$411,1,1000),E48) -> 0 | J48: ='Emission factors'!$F$411 -> t | K48: =IF(ISERROR(E49*1),VLOOKUP(D48,EFtable,3,0),VLOOKUP(D48,EFtable,3,0)*(1-E49)+VLOOKUP(D48&Translate!$A$199,EFtable,3,0)*E49) -> 6 | L48: =IF(F49=Translate!$A$111,0,I48*K48) -> 0 | M48: =Translate!$A$102 -> kgCO2e | P48: =Translate!$A$112 -> Distance | Q48: =IF(ISERROR(VLOOKUP(D48,StandardFreight,3,0)),VLOOKUP(Translate!$A$118,StandardFreight,3,0),VLOOKUP(D48,StandardFreight,3,0)) -> 20 | R48: ='Emission factors'!$F$410 -> km | S48: =Translate!$A$120 -> Type | T48: =IF(ISERROR(VLOOKUP(D48,StandardFreight,2,0)),VLOOKUP("Other",StandardFreight,2,0),VLOOKUP(D48,StandardFreight,2,0)) -> Road - Articulated >33t | U48: =Translate!$A$127 -> Load | V48: =VLOOKUP(T48,FreightLoadFactors,2,0) -> 15 | W48: =J48 -> t | X48: =IF(V48=0,0,ROUNDUP(I48/V48,0)) -> 0 | Y48: =Translate!$A$130 -> travels | Z48: =Translate!$A$128 -> empty-return rate | AA48: 1 | AB48: =VLOOKUP(T48,EFtable,3,0) -> 0.93694 | AC48: =Q48*X48*(1+AA48)*AB48 -> 0 | AD48: =Translate!$A$102 -> kgCO2e | AH48: =HLOOKUP(AI48,$AP$1:$AV$2,2,0) -> 1 | AI48: =Translate!$A$104 -> Materials | AJ48: =L48 -> 0 | AK48: =VLOOKUP(D48,EFtable,7,0) -> Concrete / Slurry / Grout mix | AL48: =VLOOKUP(D48,EFtable,8,0)*L48 -> 0 | AM48: 11 | AN48: =ROW(F49)-ROW(F48) -> 1 | AO48: 0
D49: =Translate!$A$79 -> Recycled content | E49: =IF(ISERROR(VLOOKUP(D48,RecycledContent,2,0)),Translate!$A$90,VLOOKUP(D48,RecycledContent,2,0)) -> do not apply | F49: =Translate!$A$478 -> -new or recycled- | AH49: =HLOOKUP(AI49,$AP$1:$AV$2,2,0) -> 2 | AI49: =Translate!$A$106 -> Freight | AJ49: =AC48 -> 0 | AL49: =VLOOKUP(T48,EFtable,8,0)*AC48 -> 0 | AM49: 12 | AO49: 0
AM50: 13
C51: + | D51: =Translate!$A$198 -> Water | E51: =IF(ISERROR(VLOOKUP($E$6,DefaultConcrete,HLOOKUP(D51,DefaultConcrete,2,0),0)),0,VLOOKUP($E$6,DefaultConcrete,HLOOKUP(D51,DefaultConcrete,2,0),0)) -> 200 | F51: =OFFSET(AS51,-AM51+6,0) -> kg/m3 | I51: =IF(F51=OFFSET(AS51,-AM51+6,0),E51*OFFSET(E51,-AM51,0)/IF(J51='Emission factors'!$E$411,1,1000),E51) -> 0 | J51: ='Emission factors'!$F$411 -> t | K51: =IF(ISERROR(E52*1),VLOOKUP(D51,EFtable,3,0),VLOOKUP(D51,EFtable,3,0)*(1-E52)+VLOOKUP(D51&Translate!$A$199,EFtable,3,0)*E52) -> 0.344 | L51: =IF(F52=Translate!$A$111,0,I51*K51) -> 0 | M51: =Translate!$A$102 -> kgCO2e | P51: =Translate!$A$112 -> Distance | Q51: =IF(ISERROR(VLOOKUP(D51,StandardFreight,3,0)),VLOOKUP(Translate!$A$118,StandardFreight,3,0),VLOOKUP(D51,StandardFreight,3,0)) -> 0 | R51: ='Emission factors'!$F$410 -> km | S51: =Translate!$A$120 -> Type | T51: =IF(ISERROR(VLOOKUP(D51,StandardFreight,2,0)),VLOOKUP("Other",StandardFreight,2,0),VLOOKUP(D51,StandardFreight,2,0)) -> Road - Rigid >3.5-7.5t | U51: =Translate!$A$127 -> Load | V51: =VLOOKUP(T51,FreightLoadFactors,2,0) -> 1.01232166 | W51: =J51 -> t | X51: =IF(V51=0,0,ROUNDUP(I51/V51,0)) -> 0 | Y51: =Translate!$A$130 -> travels | Z51: =Translate!$A$128 -> empty-return rate | AA51: 1 | AB51: =VLOOKUP(T51,EFtable,3,0) -> 0.49041 | AC51: =Q51*X51*(1+AA51)*AB51 -> 0 | AD51: =Translate!$A$102 -> kgCO2e | AH51: =HLOOKUP(AI51,$AP$1:$AV$2,2,0) -> 1 | AI51: =Translate!$A$104 -> Materials | AJ51: =L51 -> 0 | AK51: =VLOOKUP(D51,EFtable,7,0) -> Concrete / Slurry / Grout mix | AL51: =VLOOKUP(D51,EFtable,8,0)*L51 -> 0 | AM51: 14 | AN51: =ROW(F52)-ROW(F51) -> 1 | AO51: 0
D52: =Translate!$A$79 -> Recycled content | E52: =IF(ISERROR(VLOOKUP(D51,RecycledContent,2,0)),Translate!$A$90,VLOOKUP(D51,RecycledContent,2,0)) -> do not apply | F52: =Translate!$A$478 -> -new or recycled- | AH52: =HLOOKUP(AI52,$AP$1:$AV$2,2,0) -> 2 | AI52: =Translate!$A$106 -> Freight | AJ52: =AC51 -> 0 | AL52: =VLOOKUP(T51,EFtable,8,0)*AC51 -> 0 | AM52: 15 | AO52: 0
AM53: 16
C54: + | D54: =Translate!$A$178 -> Bentonite | E54: =IF(ISERROR(VLOOKUP($E$6,DefaultConcrete,HLOOKUP(D54,DefaultConcrete,2,0),0)),0,VLOOKUP($E$6,DefaultConcrete,HLOOKUP(D54,DefaultConcrete,2,0),0)) -> 0 | F54: =OFFSET(AS54,-AM54+6,0) -> kg/m3 | I54: =IF(F54=OFFSET(AS54,-AM54+6,0),E54*OFFSET(E54,-AM54,0)/IF(J54='Emission factors'!$E$411,1,1000),E54) -> 0 | J54: ='Emission factors'!$F$411 -> t | K54: =IF(ISERROR(E55*1),VLOOKUP(D54,EFtable,3,0),VLOOKUP(D54,EFtable,3,0)*(1-E55)+VLOOKUP(D54&Translate!$A$199,EFtable,3,0)*E55) -> 474.97792 | L54: =IF(F55=Translate!$A$111,0,I54*K54) -> 0 | M54: =Translate!$A$102 -> kgCO2e | P54: =Translate!$A$112 -> Distance | Q54: =IF(ISERROR(VLOOKUP(D54,StandardFreight,3,0)),VLOOKUP(Translate!$A$118,StandardFreight,3,0),VLOOKUP(D54,StandardFreight,3,0)) -> 300 | R54: ='Emission factors'!$F$410 -> km | S54: =Translate!$A$120 -> Type | T54: =IF(ISERROR(VLOOKUP(D54,StandardFreight,2,0)),VLOOKUP(Translate!$A$118,StandardFreight,2,0),VLOOKUP(D54,StandardFreight,2,0)) -> Road - Articulated >33t | U54: =Translate!$A$127 -> Load | V54: =VLOOKUP(T54,FreightLoadFactors,2,0) -> 15 | W54: =J54 -> t | X54: =IF(V54=0,0,ROUNDUP(I54/V54,0)) -> 0 | Y54: =Translate!$A$130 -> travels | Z54: =Translate!$A$128 -> empty-return rate | AA54: 1 | AB54: =VLOOKUP(T54,EFtable,3,0) -> 0.93694 | AC54: =Q54*X54*(1+AA54)*AB54 -> 0 | AD54: =Translate!$A$102 -> kgCO2e | AH54: =HLOOKUP(AI54,$AP$1:$AV$2,2,0) -> 1 | AI54: =Translate!$A$104 -> Materials | AJ54: =L54 -> 0 | AK54: =VLOOKUP(D54,EFtable,7,0) -> Concrete / Slurry / Grout mix | AL54: =VLOOKUP(D54,EFtable,8,0)*L54 -> 0 | AM54: 17 | AN54: =ROW(F55)-ROW(F54) -> 1 | AO54: 0
D55: =Translate!$A$79 -> Recycled content | E55: =IF(ISERROR(VLOOKUP(D54,RecycledContent,2,0)),Translate!$A$90,VLOOKUP(D54,RecycledContent,2,0)) -> do not apply | F55: =Translate!$A$478 -> -new or recycled- | AH55: =HLOOKUP(AI55,$AP$1:$AV$2,2,0) -> 2 | AI55: =Translate!$A$106 -> Freight | AJ55: =AC54 -> 0 | AL55: =VLOOKUP(T54,EFtable,8,0)*AC54 -> 0 | AM55: 18 | AO55: 0
AM56: =1+OFFSET(AM56,-1,0) -> 19 | AO56: =AJ56 -> 0
E57: =IF(E37=0,0,SUM(I42:I56)/E37) -> 0 | F57: ='Emission factors'!$F$411&"/"&F37 -> t/m3 | AM57: =1+OFFSET(AM57,-1,0) -> 20 | AO57: =AJ57 -> 0
AM58: 21
D62: =AP11 -> Energy (Primary source)
D65: =Translate!$A$80 -> Simplified ratio | E65: =IF(AND(AP5,F65=Translate!$A$91),AP4,Translate!$A$92) -> OFF | F65: =Translate!$A$91 -> Default | K65: =$P$1 -> 0 | L65: =IF(E65=Translate!$A$92,0,E65*K65) -> 0 | M65: =Translate!$A$102 -> kgCO2e | AG65: ratio | AH65: 2 | AI65: =Translate!$A$105 -> Energy | AJ65: =L65 -> 0 | AL65: =100%*L65 -> 0 | AN65: =ROW(F66)-ROW(F64) -> 2
B69: + | D69: =Translate!$A$200 -> Diesel | F69: =VLOOKUP(D69,EFtable,2,0) -> liter | K69: =VLOOKUP(D69,EFtable,3,0) -> 3.2112 | L69: =E69*K69 -> 0 | M69: =Translate!$A$102 -> kgCO2e | AH69: =HLOOKUP(AI69,$AP$1:$AV$2,2,0) -> 1 | AI69: =Translate!$A$105 -> Energy | AJ69: =L69 -> 0 | AL69: =VLOOKUP(D69,EFtable,8,0)*L69 -> 0 | AN69: =ROW(F70)-ROW(F68) -> 2 | AO69: =AJ69 -> 0
B73: + | D73: =Translate!$A$81 -> Network electricity | F73: =Translate!$A$98 -> kWh | K73: =IF(ISERROR(VLOOKUP(Translate!$A$202&" - "&$E$12,EFtable,3,0)),0,VLOOKUP(Translate!$A$202&" - "&$E$12,EFtable,3,0)) -> 0 | L73: =IF(ISERROR(K73),0,E73*K73) -> 0 | M73: =Translate!$A$102 -> kgCO2e | AH73: =HLOOKUP(AI73,$AP$1:$AV$2,2,0) -> 1 | AI73: =Translate!$A$105 -> Energy | AJ73: =L73 -> 0 | AL73: =10%*L73 -> 0 | AN73: =ROW(F74)-ROW(F72) -> 2 | AO73: =AJ73 -> 0
D78: =AS11 -> Mob/demob (Secondary source)
D81: =Translate!$A$80 -> Simplified ratio | E81: =IF(AND(AS5,F81=Translate!$A$91),AS4,Translate!$A$92) -> 0.003186874869 | F81: =Translate!$A$91 -> Default | K81: =$P$1 -> 0 | L81: =IF(E81=Translate!$A$92,0,E81*K81) -> 0 | M81: =Translate!$A$102 -> kgCO2e | AG81: ratio | AH81: =HLOOKUP(AI81,$AP$1:$AV$2,2,0) -> 2 | AI81: =Translate!$A$107 -> Mob/demob | AJ81: =L81 -> 0 | AL81: =100%*L81 -> 0
B85: + | D85: =Translate!$A$206 -> Road - Rigid >17t | F85: =Translate!$A$99 -> roundtrips | I85: =E85*M85*(1+V85) -> 0 | J85: ='Emission factors'!$F$410 -> km | K85: =VLOOKUP(D85,EFtable,3,0) -> 0.98244 | L85: =Translate!$A$112 -> Distance | M85: 50 | N85: ='Emission factors'!$F$410&" "&Translate!$A$114 -> km one way | R85: =I85*K85 -> 0 | S85: =Translate!$A$102 -> kgCO2e | U85: =Translate!$A$128 -> empty-return rate | V85: 0 | AH85: =HLOOKUP(AI85,$AP$1:$AV$2,2,0) -> 2 | AI85: =Translate!$A$107 -> Mob/demob | AJ85: =R85 -> 0 | AL85: =VLOOKUP(D85,EFtable,8,0)*R85 -> 0 | AN85: =ROW(F86)-ROW(F84) -> 2 | AO85: =AJ85 -> 0
B89: + | D89: =Translate!$A$208 -> Road - Articulated >33t | F89: =Translate!$A$99 -> roundtrips | I89: =E89*M89*(1+V89) -> 0 | J89: ='Emission factors'!$F$410 -> km | K89: =VLOOKUP(D89,EFtable,3,0) -> 0.93694 | L89: =Translate!$A$112 -> Distance | M89: 50 | N89: ='Emission factors'!$F$410&" "&Translate!$A$114 -> km one way | R89: =I89*K89 -> 0 | S89: =Translate!$A$102 -> kgCO2e | U89: =Translate!$A$128 -> empty-return rate | V89: 0 | AH89: =HLOOKUP(AI89,$AP$1:$AV$2,2,0) -> 2 | AI89: =Translate!$A$107 -> Mob/demob | AJ89: =R89 -> 0 | AL89: =VLOOKUP(D89,EFtable,8,0)*R89 -> 0 | AN89: =ROW(F90)-ROW(F88) -> 2 | AO89: =AJ89 -> 0
D94: =AT11 -> People's transportation (Secondary source)
D97: =Translate!$A$82 -> Coming by | E97: =Translate!$A$93 -> Number of roundtrips | F97: =Translate!$A$100 -> every X day(s) | L97: =Translate!$A$113&" ("&'Emission factors'!$F$410&Translate!$A$114&")" -> Average distance (km one way)
C99: + | D99: =Translate!$A$217 -> Car | E99: =$E$10 -> 0 | F99: 1 | I99: =L99*E99*$E$9*2/F99 -> 0 | J99: =VLOOKUP(D99,EFtable,2,0) -> vkm | K99: =VLOOKUP(D99,EFtable,3,0) -> 0.21471 | L99: 50 | P99: =I99*K99 -> 0 | Q99: =Translate!$A$102 -> kgCO2e | AH99: =HLOOKUP(AI99,$AP$1:$AV$2,2,0) -> 2 | AI99: =Translate!$A$108 -> People's transportation | AJ99: =P99 -> 0 | AL99: =VLOOKUP(D99,EFtable,8,0)*P99 -> 0 | AN99: 2 | AO99: =AJ99 -> 0
C103: + | D103: =Translate!$A$216 -> Bus | F103: 1 | I103: =L103*E103*$E$9*2/F103 -> 0 | J103: =VLOOKUP(D103,EFtable,2,0) -> pkm | K103: =VLOOKUP(D103,EFtable,3,0) -> 0.12971 | L103: 50 | P103: =I103*K103 -> 0 | Q103: =Translate!$A$102 -> kgCO2e | AH103: =HLOOKUP(AI103,$AP$1:$AV$2,2,0) -> 2 | AI103: =Translate!$A$108 -> People's transportation | AJ103: =P103 -> 0 | AL103: =VLOOKUP(D103,EFtable,8,0)*P103 -> 0 | AN103: 2 | AO103: =AJ103 -> 0
C107: + | D107: =Translate!$A$218 -> Train | F107: 5 | I107: =L107*E107*$E$9*2/F107 -> 0 | J107: =VLOOKUP(D107,EFtable,2,0) -> pkm | K107: =VLOOKUP(D107,EFtable,3,0) -> 0.04905 | L107: 300 | P107: =I107*K107 -> 0 | Q107: =Translate!$A$102 -> kgCO2e | AH107: =HLOOKUP(AI107,$AP$1:$AV$2,2,0) -> 2 | AI107: =Translate!$A$108 -> People's transportation | AJ107: =P107 -> 0 | AL107: =VLOOKUP(D107,EFtable,8,0)*P107 -> 0 | AN107: 2 | AO107: =AJ107 -> 0
B113: + | D113: =Translate!$A$218 -> Train | F113: =VLOOKUP(D113,EFtable,2,0) -> pkm | K113: =VLOOKUP(D113,EFtable,3,0) -> 0.04905 | L113: =E113*K113 -> 0 | M113: =Translate!$A$102 -> kgCO2e | AH113: =HLOOKUP(AI113,$AP$1:$AV$2,2,0) -> 2 | AI113: =Translate!$A$108 -> People's transportation | AJ113: =L113 -> 0 | AL113: =VLOOKUP(D113,EFtable,8,0)*L113 -> 0 | AN113: =ROW(F114)-ROW(F112) -> 2 | AO113: =AJ113 -> 0
D118: =AU11 -> Assets (Secondary source)
D121: =Translate!$A$80 -> Simplified ratio | E121: =IF(AND(AU5,F121=Translate!$A$91),AU4,Translate!$A$92) -> 0.004377484025 | F121: =Translate!$A$91 -> Default | K121: =$P$1 -> 0 | L121: =IF(E121=Translate!$A$92,0,E121*K121) -> 0 | M121: =Translate!$A$102 -> kgCO2e | AG121: ratio | AH121: =HLOOKUP(AI121,$AP$1:$AV$2,2,0) -> 2 | AI121: =Translate!$A$109 -> Assets | AJ121: =L121 -> 0 | AL121: =100%*L121 -> 0
B125: + | D125: =Translate!$A$222 -> Machines | F125: =Translate!$A$101 -> t | I125: =E125*U125/(Z125*R125) -> 0 | J125: t | K125: =VLOOKUP(Translate!$A$222,EFtable,3,0) -> 3666.666667 | L125: =I125*K125 -> 0 | M125: =Translate!$A$102 -> kgCO2e | P125: =Translate!$A$116 -> Lifetime | R125: 10 | S125: =Translate!$A$121 -> years | T125: =Translate!$A$126 -> Use time | U125: =$E$9 -> 0 | V125: =Translate!$A$129 -> days | X125: =Translate!$A$67 -> Working days | Z125: 150 | AA125: =Translate!$A$129&" / "&Translate!$A$122 -> days / year | AH125: =HLOOKUP(AI125,$AP$1:$AV$2,2,0) -> 2 | AI125: =Translate!$A$109 -> Assets | AJ125: =L125 -> 0 | AL125: =VLOOKUP("Machines",EFtable,8,0)*L125 -> 0 | AN125: =ROW(F126)-ROW(F124) -> 2 | AO125: =AJ125 -> 0
D130: =AV11 -> Waste (Secondary source)
D133: =Translate!$A$80 -> Simplified ratio | E133: =IF(AND(AV5,F133=Translate!$A$91),AV4,Translate!$A$92) -> 0.002659148019 | F133: =Translate!$A$91 -> Default | K133: =$P$1 -> 0 | L133: =IF(E133=Translate!$A$92,0,E133*K133) -> 0 | M133: =Translate!$A$102 -> kgCO2e | AG133: ratio | AH133: =HLOOKUP(AI133,$AP$1:$AV$2,2,0) -> 2 | AI133: =Translate!$A$110 -> Waste | AJ133: =L133 -> 0 | AL133: =100%*L133 -> 0
B137: + | D137: =Translate!$A$84 -> Waste 1 | F137: =Translate!$A$101 -> t | I137: =Q137*X137*(1+AA137) -> 0 | J137: ='Emission factors'!$F$410 -> km | K137: =VLOOKUP(T137,EFtable,3,0) -> 0.98244 | L137: =I137*K137 -> 0 | M137: =Translate!$A$102 -> kgCO2e | P137: =Translate!$A$112 -> Distance | Q137: 10 | R137: ='Emission factors'!$F$410 -> km | S137: =Translate!$A$120 -> Type | T137: =Translate!$A$206 -> Road - Rigid >17t | U137: =Translate!$A$127 -> Load | V137: =VLOOKUP(T137,'Emission factors'!$C$313:$E$329,2,0) -> 7.5 | W137: =J137 -> km | X137: =IF(V137=0,0,ROUNDUP(E137/V137,0)) -> 0 | Y137: =Translate!$A$130 -> travels | Z137: =Translate!$A$128 -> empty-return rate | AA137: 0.5 | AH137: =HLOOKUP(AI137,$AP$1:$AV$2,2,0) -> 2 | AI137: =Translate!$A$110 -> Waste | AJ137: =L137 -> 0 | AL137: =VLOOKUP(T137,EFtable,8,0)*L137 -> 0 | AN137: =ROW(F138)-ROW(F136) -> 2 | AO137: =AJ137 -> 0
B141: =Translate!$A$242 -> - | D141: =Translate!$A$85 -> Waste 2 | F141: =Translate!$A$101 -> t | I141: =Q141*X141*(1+AA141) -> 0 | J141: ='Emission factors'!$F$410 -> km | K141: =VLOOKUP(T141,EFtable,3,0) -> 0.98244 | L141: =I141*K141 -> 0 | M141: =Translate!$A$102 -> kgCO2e | P141: =Translate!$A$112 -> Distance | Q141: 10 | R141: ='Emission factors'!$F$410 -> km | S141: =Translate!$A$120 -> Type | T141: =Translate!$A$206 -> Road - Rigid >17t | U141: =Translate!$A$127 -> Load | V141: =VLOOKUP(T141,'Emission factors'!$C$313:$E$329,2,0) -> 7.5 | W141: =J141 -> km | X141: =IF(V141=0,0,ROUNDUP(E141/V141,0)) -> 0 | Y141: =Translate!$A$130 -> travels | Z141: =Translate!$A$128 -> empty-return rate | AA141: 0.5 | AH141: =HLOOKUP(AI141,$AP$1:$AV$2,2,0) -> 2 | AI141: =Translate!$A$110 -> Waste | AJ141: =L141 -> 0 | AL141: =VLOOKUP(T141,EFtable,8,0)*L141 -> 0 | AN141: =ROW(F142)-ROW(F140) -> 2 | AO141: =AJ141 -> 0
D146: =Translate!$A$86 -> Externaly calculated emissions
B149: + | D149: =Translate!$A$47 -> Name | F149: =Translate!$A$104 -> Materials | M149: =Translate!$A$102 -> kgCO2e | AG149: ext | AH149: =HLOOKUP(AI149,$AP$1:$AV$2,2,0) -> 1 | AI149: =F149 -> Materials | AJ149: =L149 -> 0 | AK149: =IF(F149=$AQ$1,Translate!$A$118,"") -> Other | AN149: =ROW(F150)-ROW(F148) -> 2

Sheet Subprojectzero3 (hidden)
A1: Subproject | M1: Total primary emission sources | P1: =SUMPRODUCT(($AH$17:$AH$177=1)*$AO$17:$AO$177) -> 0 | Q1: =SUMPRODUCT(($AH$17:$AH$177=1)*1,$AL$17:$AL$177) -> 0 | T1: externally calculated emissions | U1: =IF(SUMPRODUCT(($AG$17:$AG$172="ext")*1,$AJ$17:$AJ$172)<>0,TRUE) -> FALSE | V1: ratios used | W1: =IF(SUMPRODUCT(($AG$17:$AG$172="ratio")*1,$AJ$17:$AJ$172)<>0,TRUE) -> FALSE | AA1: Functional unit 1 | AB1: =IF(E13="value",1,0) -> 1 | AC1: country | AD1: 0 | AI1: t | AJ1: =Translate!$A$73 -> Concrete / Slurry / Grout mix | AK1: =Translate!$A$138 -> Steel | AL1: =Translate!$A$118 -> Other | AP1: ='Emission factors'!D342 -> Energy | AQ1: ='Emission factors'!E342 -> Materials | AR1: ='Emission factors'!F342 -> Freight | AS1: ='Emission factors'!G342 -> Mob/demob | AT1: ='Emission factors'!H342 -> People's transportation | AU1: ='Emission factors'!I342 -> Assets | AV1: ='Emission factors'!J342 -> Waste
M2: Total secondary emission sources | P2: =SUMPRODUCT(($AH$17:$AH$177=2)*$AO$17:$AO$177) -> 0 | Q2: =SUMPRODUCT(($AH$17:$AH$177=2)*1,$AL$17:$AL$177) -> 0 | AA2: Functional unit 2 | AB2: =IF(E14="value",1,0) -> 1 | AI2: ="kg/"&F105 -> kg/m3 | AJ2: =SUMPRODUCT(($AK$17:$AK$172=AJ1)*1,$AJ$17:$AJ$172)/1000 -> 0 | AK2: =SUMPRODUCT(($AK$17:$AK$172=AK1)*1,$AJ$17:$AJ$172)/1000 -> 0 | AL2: =SUMPRODUCT(($AK$17:$AK$172=AL1)*1,$AJ$17:$AJ$172)/1000 -> 0 | AO2: Primary(1)/Secondary(2) | AP2: =VLOOKUP($E$6,'Emission factors'!$C$343:$AY$370,'Emission factors'!Y$340,0) -> 1 | AQ2: =VLOOKUP($E$6,'Emission factors'!$C$343:$AY$370,'Emission factors'!Z$340,0) -> 2 | AR2: =VLOOKUP($E$6,'Emission factors'!$C$343:$AY$370,'Emission factors'!AA$340,0) -> 2 | AS2: =VLOOKUP($E$6,'Emission factors'!$C$343:$AY$370,'Emission factors'!AB$340,0) -> 1 | AT2: =VLOOKUP($E$6,'Emission factors'!$C$343:$AY$370,'Emission factors'!AC$340,0) -> 1 | AU2: =VLOOKUP($E$6,'Emission factors'!$C$343:$AY$370,'Emission factors'!AD$340,0) -> 1 | AV2: =VLOOKUP($E$6,'Emission factors'!$C$343:$AY$370,'Emission factors'!AE$340,0) -> 2 | AY2: Messages
T3: =Translate!$A$123&AQ9&AP9&AR9&AS9&AT9&AU9&AV9 -> Primary emission sources : Energy, Mob/demob, People's transportation, Assets, | AB3: =Translate!$A$131 -> Comments : | AO3: Project emission repartition | AP3: =IF(SUM($P$7:$P$13)=0,0,VLOOKUP(AP1,$H$7:$P$13,9,0)/SUM($P$7:$P$13)) -> 0 | AQ3: 0 | AR3: 0 | AS3: 0 | AT3: 0 | AU3: 0 | AV3: 0 | AX3: =IF(E9=0,AY3,"") -> Enter the number of working days | AY3: =Lists!H2 -> Enter the number of working days
AO4: Average ratio | AP4: =VLOOKUP($E$6,'Emission factors'!$C$343:$Y$370,'Emission factors'!D$340,0) -> 0.7261316014 | AQ4: =VLOOKUP($E$6,'Emission factors'!$C$343:$Y$370,'Emission factors'!E$340,0) -> 0 | AR4: =VLOOKUP($E$6,'Emission factors'!$C$343:$Y$370,'Emission factors'!F$340,0) -> 0 | AS4: =VLOOKUP($E$6,'Emission factors'!$C$343:$Y$370,'Emission factors'!G$340,0) -> 0.1102572661 | AT4: =VLOOKUP($E$6,'Emission factors'!$C$343:$Y$370,'Emission factors'!H$340,0) -> 0.006458284073 | AU4: =VLOOKUP($E$6,'Emission factors'!$C$343:$Y$370,'Emission factors'!I$340,0) -> 0.163611106 | AV4: =VLOOKUP($E$6,'Emission factors'!$C$343:$Y$370,'Emission factors'!J$340,0) -> 2.659168768e-08 | AX4: =IF(E10=0,AY4,"") -> Enter the average number of people working on the project | AY4: =Lists!H3 -> Enter the average number of people working on the project
D5: =Translate!$A$64 -> Subproject name | T5: =IF(NOT(AW10),Translate!$A$124,"") -> Please enter activities data relative to the primary emission sources | AO5: Ratio needed | AP5: =IF(AP2=1,0,IF(SUMPRODUCT($AO$17:$AO$183*($AI$17:$AI$183=AP1))>0,0,1)) -> 0 | AQ5: 1 | AR5: 1 | AS5: 0 | AT5: 0 | AU5: 0 | AV5: 1 | AX5: =IF(Translate!$A$300=E12,AY5,"") -> Select a country | AY5: =Lists!H4 -> Select a country | BA5: =Translate!$A$132 -> Primary emission sources | BB5: =P1/1000 -> 0 | BC5: =P2/1000 -> 0 | BD5: =Q1/1000 -> 0
B6: =Translate!$A$63 -> duplication + | D6: =Translate!$A$48 -> Technique | E6: =Translate!$A$289 -> Dynamic compaction | H6: =Translate!$A$103 -> Sources | P6: =Translate!$A$115 -> tCO2e | Q6: =Translate!$A$115 -> tCO2e | T6: =IF(P14>0,AX3&AX4&AX5&AQ8&AP8&AR8&AS8&AT8&AU8&AV8,"") ->  | AO6: Too high | AP6: =VLOOKUP($E$6,'Emission factors'!$C$343:$Y$370,'Emission factors'!K$340,0) -> 1 | AQ6: =VLOOKUP($E$6,'Emission factors'!$C$343:$Y$370,'Emission factors'!L$340,0) -> 0.8 | AR6: =VLOOKUP($E$6,'Emission factors'!$C$343:$Y$370,'Emission factors'!M$340,0) -> 0.1 | AS6: =VLOOKUP($E$6,'Emission factors'!$C$343:$Y$370,'Emission factors'!N$340,0) -> 0.3 | AT6: =VLOOKUP($E$6,'Emission factors'!$C$343:$Y$370,'Emission factors'!O$340,0) -> 0.2 | AU6: =VLOOKUP($E$6,'Emission factors'!$C$343:$Y$370,'Emission factors'!P$340,0) -> 0.5 | AV6: =VLOOKUP($E$6,'Emission factors'!$C$343:$Y$370,'Emission factors'!Q$340,0) -> 0.1 | AY6: =Lists!H5 -> emissions are relatively high | BA6: =Translate!$A$133 -> Secondary emission sources | BB6: =BB5 -> 0 | BC6: =BC5 -> 0 | BD6: =Q2/1000 -> 0
D7: =Translate!$A$65 -> Date of calculation | H7: =Translate!$A$104 -> Materials | L7: =AJ2 -> 0 | M7: =AK2 -> 0 | N7: =AL2 -> 0 | O7: =AL3 -> 0 | P7: =SUMPRODUCT(($AI$17:$AI$172=$H7)*1,$AJ$17:$AJ$172)/1000 -> 0 | Q7: =SUMPRODUCT(($AI$17:$AI$172=$H7)*1,$AL$17:$AL$172)/1000 -> 0 | AO7: Too low | AP7: =VLOOKUP($E$6,'Emission factors'!$C$343:$Y$370,'Emission factors'!R$340,0) -> 0.1 | AQ7: =VLOOKUP($E$6,'Emission factors'!$C$343:$Y$370,'Emission factors'!S$340,0) -> 0 | AR7: =VLOOKUP($E$6,'Emission factors'!$C$343:$Y$370,'Emission factors'!T$340,0) -> 0.001 | AS7: =VLOOKUP($E$6,'Emission factors'!$C$343:$Y$370,'Emission factors'!U$340,0) -> 0.01 | AT7: =VLOOKUP($E$6,'Emission factors'!$C$343:$Y$370,'Emission factors'!V$340,0) -> 0 | AU7: =VLOOKUP($E$6,'Emission factors'!$C$343:$Y$370,'Emission factors'!W$340,0) -> 0.01 | AV7: =VLOOKUP($E$6,'Emission factors'!$C$343:$Y$370,'Emission factors'!X$340,0) -> 0 | AY7: =Lists!H6 -> emissions are relatively low | BA7: =Translate!$A$134 -> Total | BB7: =BB6 -> 0 | BC7: =BC6 -> 0 | BD7: =BD5+BD6 -> 0 | BE7: =IF(P7=0,0,ROUND(P7,-ROUNDDOWN(LOG(ABS(P7)),0)+1)) -> 0
D8: =Translate!$A$66 -> Author | H8: =Translate!$A$105 -> Energy | O8: =P8 -> 0 | P8: 0 | Q8: 0 | AP8: =IF(AP7>AP3,AP1&$AY$7,IF(AP6<AP3,AP1&$AY$6,"")) -> Energy emissions are relatively low | AR8: Freight emissions are relatively low | AS8: Mob/demob emissions are relatively low | AU8: Assets emissions are relatively low | AV8: =IF(AV7>AV3,AV1&$AY$7,IF(AV6<AV3,AV1&$AY$6,"")) ->  | AY8: =Lists!H7 -> (Primary source) | BE8: =IF(P8=0,0,ROUND(P8,-ROUNDDOWN(LOG(ABS(P8)),0)+1)) -> 0
D9: =Translate!$A$67 -> Working days | F9: =Translate!$A$67 -> Working days | H9: =Translate!$A$106 -> Freight | O9: 0 | P9: 0 | Q9: 0 | AP9: =IF(AP2=1,AP1&", ","") -> Energy, | AS9: Mob/demob, | AT9: People's transportation, | AU9: Assets, | AY9: =Lists!H8 -> (Secondary source) | BE9: 0
D10: =Translate!$A$68 -> Workforce | F10: =Translate!$A$94 -> Full-time equivalent | H10: =Translate!$A$107 -> Mob/demob | O10: 0 | P10: 0 | Q10: 0 | AO10: msg active | AP10: =IF((AP2=1),NOT(AP3=0),TRUE) -> FALSE | AQ10: =IF((AQ2=1),NOT(AQ3=0),TRUE) -> TRUE | AR10: TRUE | AS10: FALSE | AT10: FALSE | AU10: FALSE | AV10: TRUE | AW10: =AND(AP10:AV10) -> FALSE | BE10: 0
D11: =Translate!$A$69 -> Project value | F11: =Translate!$A$95 -> € | H11: =Translate!$A$108 -> People's transportation | O11: 0 | P11: 0 | Q11: 0 | AP11: =IF(AP2=1,AP1&$AY$8,AP1&$AY$9) -> Energy (Primary source) | AQ11: =IF(AQ2=1,AQ1&$AY$8,AQ1&$AY$9) -> Materials (Secondary source) | AR11: Freight (Secondary source) | AS11: Mob/demob (Primary source) | AT11: People's transportation (Primary source) | AU11: Assets (Primary source) | AV11: Waste (Secondary source) | BE11: 0
D12: =Translate!$A$70 -> Country | E12: =Translate!$A$300 -> -Select the project country | H12: =Translate!$A$109 -> Assets | O12: 0 | P12: 0 | Q12: 0 | T12: =Translate!$A$125 -> TOTAL GHG EMISSIONS | V12: =IF(P14=0,0,ROUND(P14,-ROUNDDOWN(LOG(ABS(P14)),0)+1)) -> 0 | Y12: =Translate!$A$115 -> tCO2e | BE12: 0
D13: =Translate!$A$71 -> Functional unit 1 | E13: =Translate!$A$87 -> value | F13: =Translate!$A$96 -> unit | H13: =Translate!$A$110 -> Waste | O13: 0 | P13: 0 | Q13: 0 | BE13: 0
D14: =Translate!$A$72 -> Functional unit 2 | E14: =Translate!$A$87 -> value | F14: =Translate!$A$96 -> unit | P14: =SUM(P7:P13) -> 0
I16: Activity data | K16: Emission factor | L16: GHG Emissions
D17: =AP11 -> Energy (Primary source)
D20: =Translate!$A$80 -> Simplified ratio | E20: =IF(AND(AP5,F20=Translate!$A$91),AP4,Translate!$A$92) -> OFF | F20: =Translate!$A$91 -> Default | K20: =$P$1 -> 0 | L20: =IF(E20=Translate!$A$92,0,E20*K20) -> 0 | M20: =Translate!$A$102 -> kgCO2e | AG20: ratio | AH20: 2 | AI20: =Translate!$A$105 -> Energy | AJ20: =L20 -> 0 | AL20: =100%*L20 -> 0 | AN20: =ROW(F21)-ROW(F19) -> 2
B24: + | D24: =Translate!$A$200 -> Diesel | F24: =VLOOKUP(D24,EFtable,2,0) -> liter | K24: =VLOOKUP(D24,EFtable,3,0) -> 3.2112 | L24: =E24*K24 -> 0 | M24: =Translate!$A$102 -> kgCO2e | AH24: =HLOOKUP(AI24,$AP$1:$AV$2,2,0) -> 1 | AI24: =Translate!$A$105 -> Energy | AJ24: =L24 -> 0 | AL24: =VLOOKUP(D24,EFtable,8,0)*L24 -> 0 | AN24: =ROW(F25)-ROW(F23) -> 2 | AO24: =AJ24 -> 0
B28: + | D28: =Translate!$A$81 -> Network electricity | F28: =Translate!$A$98 -> kWh | K28: =IF(ISERROR(VLOOKUP(Translate!$A$202&" - "&$E$12,EFtable,3,0)),0,VLOOKUP(Translate!$A$202&" - "&$E$12,EFtable,3,0)) -> 0 | L28: =IF(ISERROR(K28),0,E28*K28) -> 0 | M28: =Translate!$A$102 -> kgCO2e | AH28: =HLOOKUP(AI28,$AP$1:$AV$2,2,0) -> 1 | AI28: =Translate!$A$105 -> Energy | AJ28: =L28 -> 0 | AL28: =10%*L28 -> 0 | AN28: =ROW(F29)-ROW(F27) -> 2 | AO28: =AJ28 -> 0
D33: =AS11 -> Mob/demob (Primary source)
D36: =Translate!$A$80 -> Simplified ratio | E36: =IF(AND(AS5,F36=Translate!$A$91),AS4,Translate!$A$92) -> OFF | F36: =Translate!$A$91 -> Default | K36: =$P$1 -> 0 | L36: =IF(E36=Translate!$A$92,0,E36*K36) -> 0 | M36: =Translate!$A$102 -> kgCO2e | AG36: ratio | AH36: =HLOOKUP(AI36,$AP$1:$AV$2,2,0) -> 1 | AI36: =Translate!$A$107 -> Mob/demob | AJ36: =L36 -> 0 | AL36: =100%*L36 -> 0
B40: + | D40: =Translate!$A$206 -> Road - Rigid >17t | F40: =Translate!$A$99 -> roundtrips | I40: =E40*M40*(1+V40) -> 0 | J40: km | K40: =VLOOKUP(D40,EFtable,3,0) -> 0.98244 | L40: =Translate!$A$112 -> Distance | N40: =Translate!$A$114 -> one way | R40: =I40*K40 -> 0 | S40: =Translate!$A$102 -> kgCO2e | U40: =Translate!$A$128 -> empty-return rate | V40: 0 | AH40: =HLOOKUP(AI40,$AP$1:$AV$2,2,0) -> 1 | AI40: =Translate!$A$107 -> Mob/demob | AJ40: =R40 -> 0 | AL40: =VLOOKUP(D40,EFtable,8,0)*R40 -> 0 | AN40: =ROW(F41)-ROW(F39) -> 2 | AO40: =AJ40 -> 0
B44: + | D44: =Translate!$A$208 -> Road - Articulated >33t | F44: =Translate!$A$99 -> roundtrips | I44: =E44*M44*(1+V44) -> 0 | J44: km | K44: =VLOOKUP(D44,EFtable,3,0) -> 0.93694 | L44: =Translate!$A$112 -> Distance | M44: 50 | N44: =Translate!$A$114 -> one way | R44: =I44*K44 -> 0 | S44: =Translate!$A$102 -> kgCO2e | U44: =Translate!$A$128 -> empty-return rate | V44: 0 | AH44: =HLOOKUP(AI44,$AP$1:$AV$2,2,0) -> 1 | AI44: =Translate!$A$107 -> Mob/demob | AJ44: =R44 -> 0 | AL44: =VLOOKUP(D44,EFtable,8,0)*R44 -> 0 | AN44: =ROW(F45)-ROW(F43) -> 2 | AO44: =AJ44 -> 0
D49: =AT11 -> People's transportation (Primary source)
D52: =Translate!$A$82 -> Coming by | E52: =Translate!$A$93 -> Number of roundtrips | F52: =Translate!$A$100 -> every X day(s) | L52: =Translate!$A$113&" ("&'Emission factors'!$F$410&Translate!$A$114&")" -> Average distance (km one way)
C54: + | D54: =Translate!$A$217 -> Car | E54: =$E$10 -> 0 | F54: 1 | I54: =L54*E54*$E$9*2/F54 -> 0 | J54: =VLOOKUP(D54,EFtable,2,0) -> vkm | K54: =VLOOKUP(D54,EFtable,3,0) -> 0.21471 | L54: 50 | P54: =I54*K54 -> 0 | Q54: =Translate!$A$102 -> kgCO2e | AH54: =HLOOKUP(AI54,$AP$1:$AV$2,2,0) -> 1 | AI54: =Translate!$A$108 -> People's transportation | AJ54: =P54 -> 0 | AL54: =VLOOKUP(D54,EFtable,8,0)*P54 -> 0 | AN54: 2 | AO54: =AJ54 -> 0
C58: + | D58: =Translate!$A$216 -> Bus | F58: 1 | I58: =L58*E58*$E$9*2/F58 -> 0 | J58: =VLOOKUP(D58,EFtable,2,0) -> pkm | K58: =VLOOKUP(D58,EFtable,3,0) -> 0.12971 | L58: 50 | P58: =I58*K58 -> 0 | Q58: =Translate!$A$102 -> kgCO2e | AH58: =HLOOKUP(AI58,$AP$1:$AV$2,2,0) -> 1 | AI58: =Translate!$A$108 -> People's transportation | AJ58: =P58 -> 0 | AL58: =VLOOKUP(D58,EFtable,8,0)*P58 -> 0 | AN58: 2 | AO58: =AJ58 -> 0
C62: + | D62: =Translate!$A$218 -> Train | F62: 5 | I62: =L62*E62*$E$9*2/F62 -> 0 | J62: =VLOOKUP(D62,EFtable,2,0) -> pkm | K62: =VLOOKUP(D62,EFtable,3,0) -> 0.04905 | L62: 300 | P62: =I62*K62 -> 0 | Q62: =Translate!$A$102 -> kgCO2e | AH62: =HLOOKUP(AI62,$AP$1:$AV$2,2,0) -> 1 | AI62: =Translate!$A$108 -> People's transportation | AJ62: =P62 -> 0 | AL62: =VLOOKUP(D62,EFtable,8,0)*P62 -> 0 | AN62: 2 | AO62: =AJ62 -> 0
B68: + | D68: =Translate!$A$218 -> Train | F68: =VLOOKUP(D68,EFtable,2,0) -> pkm | K68: =VLOOKUP(D68,EFtable,3,0) -> 0.04905 | L68: =E68*K68 -> 0 | M68: =Translate!$A$102 -> kgCO2e | AH68: =HLOOKUP(AI68,$AP$1:$AV$2,2,0) -> 1 | AI68: =Translate!$A$108 -> People's transportation | AJ68: =L68 -> 0 | AL68: =VLOOKUP(D68,EFtable,8,0)*L68 -> 0 | AN68: =ROW(F69)-ROW(F67) -> 2 | AO68: =AJ68 -> 0
D73: =AU11 -> Assets (Primary source)
D76: =Translate!$A$80 -> Simplified ratio | E76: =IF(AND(AU5,F76=Translate!$A$91),AU4,Translate!$A$92) -> OFF | F76: =Translate!$A$91 -> Default | K76: =$P$1 -> 0 | L76: =IF(E76=Translate!$A$92,0,E76*K76) -> 0 | M76: =Translate!$A$102 -> kgCO2e | AG76: ratio | AH76: =HLOOKUP(AI76,$AP$1:$AV$2,2,0) -> 1 | AI76: =Translate!$A$109 -> Assets | AJ76: =L76 -> 0 | AL76: =100%*L76 -> 0
B80: + | D80: =Translate!$A$222 -> Machines | F80: =Translate!$A$101 -> t | I80: =E80*U80/(Z80*R80) -> 0 | J80: t | K80: =VLOOKUP(Translate!$A$222,EFtable,3,0) -> 3666.666667 | L80: =I80*K80 -> 0 | M80: =Translate!$A$102 -> kgCO2e | P80: =Translate!$A$116 -> Lifetime | R80: 10 | S80: =Translate!$A$121 -> years | T80: =Translate!$A$126 -> Use time | U80: =$E$9 -> 0 | V80: =Translate!$A$129 -> days | X80: =Translate!$A$67 -> Working days | Z80: 150 | AA80: =Translate!$A$129&" / "&Translate!$A$122 -> days / year | AH80: =HLOOKUP(AI80,$AP$1:$AV$2,2,0) -> 1 | AI80: =Translate!$A$109 -> Assets | AJ80: =L80 -> 0 | AL80: =VLOOKUP("Machines",EFtable,8,0)*L80 -> 0 | AN80: =ROW(F81)-ROW(F79) -> 2 | AO80: =AJ80 -> 0
D85: =AQ11 -> Materials (Secondary source) | Q85: =AR11 -> Freight (Secondary source) | AH85: Emissions source importance | AI85: Emissions source | AJ85: Emissions | AK85: Material type | AL85: Uncertainties | AN85: Bloc height
B88: + | D88: =Translate!$A$177 -> Aggregate | F88: =VLOOKUP(D88,EFtable,2,0) -> t | I88: =E88 -> 0 | J88: =F88 -> t | K88: =IF(ISERROR(E89*1),VLOOKUP(D88,EFtable,3,0),VLOOKUP(D88,EFtable,3,0)*(1-E89)+VLOOKUP(D88&Translate!$A$199,EFtable,3,0)*E89) -> 4 | L88: =IF(F89=Translate!$A$111,0,I88*K88) -> 0 | M88: =Translate!$A$102 -> kgCO2e | P88: =Translate!$A$112 -> Distance | R88: ='Emission factors'!$F$410 -> km | S88: =Translate!$A$120 -> Type | T88: =IF(ISERROR(VLOOKUP(D87,StandardFreight,2,0)),VLOOKUP(Translate!$A$118,StandardFreight,2,0),VLOOKUP(D87,StandardFreight,2,0)) -> Road - Articulated >33t | U88: =Translate!$A$127 -> Load | V88: =VLOOKUP(T88,FreightLoadFactors,2,0) -> 15 | W88: =J88 -> t | X88: =IF(V88=0,0,ROUNDUP(I88/V88,0)) -> 0 | Y88: =Translate!$A$130 -> travels | Z88: =Translate!$A$128 -> empty-return rate | AA88: 0.5 | AB88: =VLOOKUP(T88,EFtable,3,0) -> 0.93694 | AC88: =Q88*X88*(1+AA88)*AB88 -> 0 | AD88: =Translate!$A$102 -> kgCO2e | AH88: =HLOOKUP(AI88,$AP$1:$AV$2,2,0) -> 2 | AI88: =Translate!$A$104 -> Materials | AJ88: =L88 -> 0 | AK88: =VLOOKUP(D88,EFtable,7,0) -> Concrete / Slurry / Grout mix | AL88: =VLOOKUP(D88,EFtable,8,0)*L88 -> 0 | AN88: =ROW(F90)-ROW(F87) -> 3 | AO88: =AJ88 -> 0
D89: =Translate!$A$79 -> Recycled content | E89: =IF(ISERROR(VLOOKUP(D88,RecycledContent,2,0)),Translate!$A$90,VLOOKUP(D88,RecycledContent,2,0)) -> do not apply | F89: =Translate!$A$478 -> -new or recycled- | AH89: =HLOOKUP(AI89,$AP$1:$AV$2,2,0) -> 2 | AI89: =Translate!$A$106 -> Freight | AJ89: =AC88 -> 0 | AL89: =VLOOKUP(T88,EFtable,8,0)*AC88 -> 0 | AO89: =AJ89 -> 0
B93: + | D93: =Translate!$A$194 -> Steel tubes | F93: =VLOOKUP(D93,EFtable,2,0) -> t | I93: =E93 -> 0 | J93: =F93 -> t | K93: =IF(ISERROR(E94*1),VLOOKUP(D93,EFtable,3,0),VLOOKUP(D93,EFtable,3,0)*(1-E94)+VLOOKUP(D93&Translate!$A$199,EFtable,3,0)*E94) -> 1923.1 | L93: =IF(F94=Translate!$A$111,0,I93*K93) -> 0 | M93: =Translate!$A$102 -> kgCO2e | P93: =Translate!$A$112 -> Distance | R93: ='Emission factors'!$F$410 -> km | S93: =Translate!$A$120 -> Type | T93: =IF(ISERROR(VLOOKUP(D92,StandardFreight,2,0)),VLOOKUP(Translate!$A$118,StandardFreight,2,0),VLOOKUP(D92,StandardFreight,2,0)) -> Road - Articulated >33t | U93: =Translate!$A$127 -> Load | V93: =VLOOKUP(T93,FreightLoadFactors,2,0) -> 15 | W93: =J93 -> t | X93: =IF(V93=0,0,ROUNDUP(I93/V93,0)) -> 0 | Y93: =Translate!$A$130 -> travels | Z93: =Translate!$A$128 -> empty-return rate | AA93: 0.5 | AB93: =VLOOKUP(T93,EFtable,3,0) -> 0.93694 | AC93: =Q93*X93*(1+AA93)*AB93 -> 0 | AD93: =Translate!$A$102 -> kgCO2e | AH93: =HLOOKUP(AI93,$AP$1:$AV$2,2,0) -> 2 | AI93: =Translate!$A$104 -> Materials | AJ93: =L93 -> 0 | AK93: =VLOOKUP(D93,EFtable,7,0) -> Steel | AL93: =VLOOKUP(D93,EFtable,8,0)*L93 -> 0 | AN93: =ROW(F95)-ROW(F92) -> 3 | AO93: =AJ93 -> 0
D94: =Translate!$A$79 -> Recycled content | E94: =IF(ISERROR(VLOOKUP(D93,RecycledContent,2,0)),Translate!$A$90,VLOOKUP(D93,RecycledContent,2,0)) -> 0.41 | F94: =Translate!$A$478 -> -new or recycled- | AH94: =HLOOKUP(AI94,$AP$1:$AV$2,2,0) -> 2 | AI94: =Translate!$A$106 -> Freight | AJ94: =AC93 -> 0 | AL94: =VLOOKUP(T93,EFtable,8,0)*AC93 -> 0 | AO94: =AJ94 -> 0
B98: + | D98: =Translate!$A$179 -> Calcium chloride | F98: =VLOOKUP(D98,EFtable,2,0) -> t | I98: =E98 -> 0 | J98: =F98 -> t | K98: =IF(ISERROR(E99*1),VLOOKUP(D98,EFtable,3,0),VLOOKUP(D98,EFtable,3,0)*(1-E99)+VLOOKUP(D98&Translate!$A$199,EFtable,3,0)*E99) -> 493.43257 | L98: =IF(F99=Translate!$A$111,0,I98*K98) -> 0 | M98: =Translate!$A$102 -> kgCO2e | P98: =Translate!$A$112 -> Distance | R98: ='Emission factors'!$F$410 -> km | S98: =Translate!$A$120 -> Type | T98: =IF(ISERROR(VLOOKUP(D97,StandardFreight,2,0)),VLOOKUP(Translate!$A$118,StandardFreight,2,0),VLOOKUP(D97,StandardFreight,2,0)) -> Road - Articulated >33t | U98: =Translate!$A$127 -> Load | V98: =VLOOKUP(T98,FreightLoadFactors,2,0) -> 15 | W98: =J98 -> t | X98: =IF(V98=0,0,ROUNDUP(I98/V98,0)) -> 0 | Y98: =Translate!$A$130 -> travels | Z98: =Translate!$A$128 -> empty-return rate | AA98: 0.5 | AB98: =VLOOKUP(T98,EFtable,3,0) -> 0.93694 | AC98: =Q98*X98*(1+AA98)*AB98 -> 0 | AD98: =Translate!$A$102 -> kgCO2e | AH98: =HLOOKUP(AI98,$AP$1:$AV$2,2,0) -> 2 | AI98: =Translate!$A$104 -> Materials | AJ98: =L98 -> 0 | AK98: =VLOOKUP(D98,EFtable,7,0) -> Other | AL98: =VLOOKUP(D98,EFtable,8,0)*L98 -> 0 | AN98: =ROW(F100)-ROW(F97) -> 3 | AO98: =AJ98 -> 0
D99: =Translate!$A$79 -> Recycled content | E99: =IF(ISERROR(VLOOKUP(D98,RecycledContent,2,0)),Translate!$A$90,VLOOKUP(D98,RecycledContent,2,0)) -> do not apply | F99: =Translate!$A$478 -> -new or recycled- | AH99: =HLOOKUP(AI99,$AP$1:$AV$2,2,0) -> 2 | AI99: =Translate!$A$106 -> Freight | AJ99: =AC98 -> 0 | AL99: =VLOOKUP(T98,EFtable,8,0)*AC98 -> 0 | AO99: =AJ99 -> 0
D102: =Translate!$A$73 -> Concrete / Slurry / Grout mix
B103: + | AN103: =ROW(F126)-ROW(F102) -> 24
D104: =Translate!$A$47 -> Name | E104: =Translate!$A$88 -> Default concrete | L104: =Translate!$A$475 -> made at plant | M104: =IF(L104=Translate!$A$475,1,0) -> 1
D105: =Translate!$A$74 -> Quantity | F105: ='Emission factors'!$F$414 -> m3 | I105: =E105 -> 0 | J105: =F105 -> m3 | P105: =Translate!$A$112 -> Distance | Q105: =IF(L104="made on site",0,20) -> 20 | R105: ='Emission factors'!$F$410 -> km | S105: =Translate!$A$120 -> Type | T105: =Translate!$A$206 -> Road - Rigid >17t | U105: =Translate!$A$127 -> Load | V105: ='Emission factors'!$D$311 -> 8 | W105: =J105 -> m3 | X105: =IF(V105=0,0,ROUNDUP(I105/V105,0)) -> 0 | Y105: =Translate!$A$130 -> travels | Z105: =Translate!$A$128 -> empty-return rate | AA105: 1 | AB105: =VLOOKUP(T105,EFtable,3,0) -> 0.98244 | AC105: =Q105*X105*(1+AA105)*AB105 -> 0 | AD105: =Translate!$A$102 -> kgCO2e | AM105: 0
AH106: =HLOOKUP(AI106,$AP$1:$AV$2,2,0) -> 2 | AI106: =Translate!$A$106 -> Freight | AJ106: =AC105 -> 0 | AL106: =VLOOKUP(T105,EFtable,8,0)*AC105 -> 0 | AM106: =1+OFFSET(AM106,-1,0) -> 1 | AO106: =AJ106 -> 0
C107: + | D107: =Translate!$A$75 -> Cement | E107: =Translate!$A$181 -> CEM I | AM107: =1+OFFSET(AM107,-1,0) -> 2 | AN107: =ROW(F111)-ROW(F107) -> 4
D108: =Translate!$A$76 -> Total cementitious content | E108: =VLOOKUP($E$6,DefaultConcrete,3,0) -> 400 | F108: =OFFSET(AS108,-AM108+6,0) -> kg/m3 | P108: =Translate!$A$112 -> Distance | Q108: =IF(ISERROR(VLOOKUP(D107,StandardFreight,3,0)),VLOOKUP(Translate!$A$118,StandardFreight,3,0),VLOOKUP(D107,StandardFreight,3,0)) -> 20 | R108: ='Emission factors'!$F$410 -> km | S108: =Translate!$A$120 -> Type | T108: =IF(ISERROR(VLOOKUP(D107,StandardFreight,2,0)),VLOOKUP("Other",StandardFreight,2,0),VLOOKUP(D107,StandardFreight,2,0)) -> Road - Rigid >17t | U108: =Translate!$A$127 -> Load | V108: =VLOOKUP(T108,FreightLoadFactors,2,0) -> 7.5 | W108: =J111 -> t | X108: =IF(V108=0,0,ROUNDUP(I111/V108,0)) -> 0 | Y108: =Translate!$A$130 -> travels | Z108: =Translate!$A$128 -> empty-return rate | AA108: 1 | AB108: =VLOOKUP(T108,EFtable,3,0) -> 0.98244 | AC108: =Q108*X108*(1+AA108)*AB108 -> 0 | AD108: =Translate!$A$102 -> kgCO2e | AH108: =HLOOKUP(AI108,$AP$1:$AV$2,2,0) -> 2 | AI108: =Translate!$A$104 -> Materials | AJ108: =L111 -> 0 | AK108: =Translate!$A$73 -> Concrete / Slurry / Grout mix | AL108: =VLOOKUP("CEM I",EFtable,8,0)*L111 -> 0 | AM108: 3 | AO108: =AJ108 -> 0
D109: =Translate!$A$77 -> Secondary constituent | E109: =VLOOKUP(E107,'Emission factors'!$C$286:$M$294,2,0) -> - | AH109: =HLOOKUP(AI109,$AP$1:$AV$2,2,0) -> 2 | AI109: =Translate!$A$106 -> Freight | AJ109: =AC108 -> 0 | AL109: =VLOOKUP(T108,EFtable,8,0)*AC108 -> 0 | AM109: 4 | AO109: =AJ109 -> 0
D110: =Translate!$A$78 -> Secondary constituent content | E110: =Translate!$A$89 -> Default value | F110: =Translate!$A$97 -> Real Value | AM110: 5 | AS110: ='Emission factors'!$F$411 -> t
E111: =IF(F111="",VLOOKUP(E107,CementTypes,5,0),"") -> 0 | I111: =IF(F108=OFFSET(AS111,-AM111+6,0),E108*OFFSET(E111,-AM111,0)/IF(J111='Emission factors'!$E$411,1,1000),E108) -> 0 | J111: ='Emission factors'!$F$411 -> t | K111: =IF(E107="CEM I",VLOOKUP(E107,EFtable,3,0),(IF(F111="",E111,F111)*VLOOKUP(E109,EFtable,3,0)+(1-IF(F111="",E111,F111))*VLOOKUP("CEM I",EFtable,3,0))) -> 860 | L111: =I111*K111 -> 0 | M111: =Translate!$A$102 -> kgCO2e | AM111: 6 | AS111: ='Emission factors'!$F$413&"/"&F105 -> kg/m3
AM112: 7
C113: + | D113: =Translate!$A$177 -> Aggregate | E113: =IF(ISERROR(VLOOKUP($E$6,DefaultConcrete,HLOOKUP(D113,DefaultConcrete,2,0),0)),0,VLOOKUP($E$6,DefaultConcrete,HLOOKUP(D113,DefaultConcrete,2,0),0)) -> 900 | F113: =OFFSET(AS113,-AM113+6,0) -> kg/m3 | I113: =IF(F113=OFFSET(AS113,-AM113+6,0),E113*OFFSET(E113,-AM113,0)/IF(J113='Emission factors'!$E$411,1,1000),E113) -> 0 | J113: ='Emission factors'!$F$411 -> t | K113: =IF(ISERROR(E114*1),VLOOKUP(D113,EFtable,3,0),VLOOKUP(D113,EFtable,3,0)*(1-E114)+VLOOKUP(D113&Translate!$A$199,EFtable,3,0)*E114) -> 4 | L113: =IF(F114=Translate!$A$111,0,I113*K113) -> 0 | M113: =Translate!$A$102 -> kgCO2e | P113: =Translate!$A$112 -> Distance | Q113: =IF(ISERROR(VLOOKUP(D113,StandardFreight,3,0)),VLOOKUP(Translate!$A$118,StandardFreight,3,0),VLOOKUP(D113,StandardFreight,3,0)) -> 20 | R113: ='Emission factors'!$F$410 -> km | S113: =Translate!$A$120 -> Type | T113: =IF(ISERROR(VLOOKUP(D113,StandardFreight,2,0)),VLOOKUP("Other",StandardFreight,2,0),VLOOKUP(D113,StandardFreight,2,0)) -> Road - Articulated >33t | U113: =Translate!$A$127 -> Load | V113: =VLOOKUP(T113,FreightLoadFactors,2,0) -> 15 | W113: =J113 -> t | X113: =IF(V113=0,0,ROUNDUP(I113/V113,0)) -> 0 | Y113: =Translate!$A$130 -> travels | Z113: =Translate!$A$128 -> empty-return rate | AA113: 1 | AB113: =VLOOKUP(T113,EFtable,3,0) -> 0.93694 | AC113: =Q113*X113*(1+AA113)*AB113 -> 0 | AD113: =Translate!$A$102 -> kgCO2e | AH113: =HLOOKUP(AI113,$AP$1:$AV$2,2,0) -> 2 | AI113: =Translate!$A$104 -> Materials | AJ113: =L113 -> 0 | AK113: =VLOOKUP(D113,EFtable,7,0) -> Concrete / Slurry / Grout mix | AL113: =VLOOKUP(D113,EFtable,8,0)*L113 -> 0 | AM113: 8 | AN113: =ROW(F114)-ROW(F113) -> 1 | AO113: =AJ113 -> 0
D114: =Translate!$A$79 -> Recycled content | E114: =IF(ISERROR(VLOOKUP(D113,RecycledContent,2,0)),Translate!$A$90,VLOOKUP(D113,RecycledContent,2,0)) -> do not apply | F114: =Translate!$A$478 -> -new or recycled- | AH114: =HLOOKUP(AI114,$AP$1:$AV$2,2,0) -> 2 | AI114: =Translate!$A$106 -> Freight | AJ114: =AC113 -> 0 | AL114: =VLOOKUP(T113,EFtable,8,0)*AC113 -> 0 | AM114: 9 | AO114: 0
AM115: 10
C116: + | D116: =Translate!$A$190 -> Sand | E116: =IF(ISERROR(VLOOKUP($E$6,DefaultConcrete,HLOOKUP(D116,DefaultConcrete,2,0),0)),0,VLOOKUP($E$6,DefaultConcrete,HLOOKUP(D116,DefaultConcrete,2,0),0)) -> 800 | F116: =OFFSET(AS116,-AM116+6,0) -> kg/m3 | I116: =IF(F116=OFFSET(AS116,-AM116+6,0),E116*OFFSET(E116,-AM116,0)/IF(J116='Emission factors'!$E$411,1,1000),E116) -> 0 | J116: ='Emission factors'!$F$411 -> t | K116: =IF(ISERROR(E117*1),VLOOKUP(D116,EFtable,3,0),VLOOKUP(D116,EFtable,3,0)*(1-E117)+VLOOKUP(D116&Translate!$A$199,EFtable,3,0)*E117) -> 6 | L116: =IF(F117=Translate!$A$111,0,I116*K116) -> 0 | M116: =Translate!$A$102 -> kgCO2e | P116: =Translate!$A$112 -> Distance | Q116: =IF(ISERROR(VLOOKUP(D116,StandardFreight,3,0)),VLOOKUP(Translate!$A$118,StandardFreight,3,0),VLOOKUP(D116,StandardFreight,3,0)) -> 20 | R116: ='Emission factors'!$F$410 -> km | S116: =Translate!$A$120 -> Type | T116: =IF(ISERROR(VLOOKUP(D116,StandardFreight,2,0)),VLOOKUP("Other",StandardFreight,2,0),VLOOKUP(D116,StandardFreight,2,0)) -> Road - Articulated >33t | U116: =Translate!$A$127 -> Load | V116: =VLOOKUP(T116,FreightLoadFactors,2,0) -> 15 | W116: =J116 -> t | X116: =IF(V116=0,0,ROUNDUP(I116/V116,0)) -> 0 | Y116: =Translate!$A$130 -> travels | Z116: =Translate!$A$128 -> empty-return rate | AA116: 1 | AB116: =VLOOKUP(T116,EFtable,3,0) -> 0.93694 | AC116: =Q116*X116*(1+AA116)*AB116 -> 0 | AD116: =Translate!$A$102 -> kgCO2e | AH116: =HLOOKUP(AI116,$AP$1:$AV$2,2,0) -> 2 | AI116: =Translate!$A$104 -> Materials | AJ116: =L116 -> 0 | AK116: =VLOOKUP(D116,EFtable,7,0) -> Concrete / Slurry / Grout mix | AL116: =VLOOKUP(D116,EFtable,8,0)*L116 -> 0 | AM116: 11 | AN116: =ROW(F117)-ROW(F116) -> 1 | AO116: 0
D117: =Translate!$A$79 -> Recycled content | E117: =IF(ISERROR(VLOOKUP(D116,RecycledContent,2,0)),Translate!$A$90,VLOOKUP(D116,RecycledContent,2,0)) -> do not apply | F117: =Translate!$A$478 -> -new or recycled- | AH117: =HLOOKUP(AI117,$AP$1:$AV$2,2,0) -> 2 | AI117: =Translate!$A$106 -> Freight | AJ117: =AC116 -> 0 | AL117: =VLOOKUP(T116,EFtable,8,0)*AC116 -> 0 | AM117: 12 | AO117: 0
AM118: 13
C119: + | D119: =Translate!$A$198 -> Water | E119: =IF(ISERROR(VLOOKUP($E$6,DefaultConcrete,HLOOKUP(D119,DefaultConcrete,2,0),0)),0,VLOOKUP($E$6,DefaultConcrete,HLOOKUP(D119,DefaultConcrete,2,0),0)) -> 200 | F119: =OFFSET(AS119,-AM119+6,0) -> kg/m3 | I119: =IF(F119=OFFSET(AS119,-AM119+6,0),E119*OFFSET(E119,-AM119,0)/IF(J119='Emission factors'!$E$411,1,1000),E119) -> 0 | J119: ='Emission factors'!$F$411 -> t | K119: =IF(ISERROR(E120*1),VLOOKUP(D119,EFtable,3,0),VLOOKUP(D119,EFtable,3,0)*(1-E120)+VLOOKUP(D119&Translate!$A$199,EFtable,3,0)*E120) -> 0.344 | L119: =IF(F120=Translate!$A$111,0,I119*K119) -> 0 | M119: =Translate!$A$102 -> kgCO2e | P119: =Translate!$A$112 -> Distance | Q119: =IF(ISERROR(VLOOKUP(D119,StandardFreight,3,0)),VLOOKUP(Translate!$A$118,StandardFreight,3,0),VLOOKUP(D119,StandardFreight,3,0)) -> 0 | R119: ='Emission factors'!$F$410 -> km | S119: =Translate!$A$120 -> Type | T119: =IF(ISERROR(VLOOKUP(D119,StandardFreight,2,0)),VLOOKUP("Other",StandardFreight,2,0),VLOOKUP(D119,StandardFreight,2,0)) -> Road - Rigid >3.5-7.5t | U119: =Translate!$A$127 -> Load | V119: =VLOOKUP(T119,FreightLoadFactors,2,0) -> 1.01232166 | W119: =J119 -> t | X119: =IF(V119=0,0,ROUNDUP(I119/V119,0)) -> 0 | Y119: =Translate!$A$130 -> travels | Z119: =Translate!$A$128 -> empty-return rate | AA119: 1 | AB119: =VLOOKUP(T119,EFtable,3,0) -> 0.49041 | AC119: =Q119*X119*(1+AA119)*AB119 -> 0 | AD119: =Translate!$A$102 -> kgCO2e | AH119: =HLOOKUP(AI119,$AP$1:$AV$2,2,0) -> 2 | AI119: =Translate!$A$104 -> Materials | AJ119: =L119 -> 0 | AK119: =VLOOKUP(D119,EFtable,7,0) -> Concrete / Slurry / Grout mix | AL119: =VLOOKUP(D119,EFtable,8,0)*L119 -> 0 | AM119: 14 | AN119: =ROW(F120)-ROW(F119) -> 1 | AO119: 0
D120: =Translate!$A$79 -> Recycled content | E120: =IF(ISERROR(VLOOKUP(D119,RecycledContent,2,0)),Translate!$A$90,VLOOKUP(D119,RecycledContent,2,0)) -> do not apply | F120: =Translate!$A$478 -> -new or recycled- | AH120: =HLOOKUP(AI120,$AP$1:$AV$2,2,0) -> 2 | AI120: =Translate!$A$106 -> Freight | AJ120: =AC119 -> 0 | AL120: =VLOOKUP(T119,EFtable,8,0)*AC119 -> 0 | AM120: 15 | AO120: 0
AM121: 16
C122: + | D122: =Translate!$A$178 -> Bentonite | E122: =IF(ISERROR(VLOOKUP($E$6,DefaultConcrete,HLOOKUP(D122,DefaultConcrete,2,0),0)),0,VLOOKUP($E$6,DefaultConcrete,HLOOKUP(D122,DefaultConcrete,2,0),0)) -> 0 | F122: =OFFSET(AS122,-AM122+6,0) -> kg/m3 | I122: =IF(F122=OFFSET(AS122,-AM122+6,0),E122*OFFSET(E122,-AM122,0)/IF(J122='Emission factors'!$E$411,1,1000),E122) -> 0 | J122: ='Emission factors'!$F$411 -> t | K122: =IF(ISERROR(E123*1),VLOOKUP(D122,EFtable,3,0),VLOOKUP(D122,EFtable,3,0)*(1-E123)+VLOOKUP(D122&Translate!$A$199,EFtable,3,0)*E123) -> 474.97792 | L122: =IF(F123=Translate!$A$111,0,I122*K122) -> 0 | M122: =Translate!$A$102 -> kgCO2e | P122: =Translate!$A$112 -> Distance | Q122: =IF(ISERROR(VLOOKUP(D122,StandardFreight,3,0)),VLOOKUP(Translate!$A$118,StandardFreight,3,0),VLOOKUP(D122,StandardFreight,3,0)) -> 300 | R122: ='Emission factors'!$F$410 -> km | S122: =Translate!$A$120 -> Type | T122: =IF(ISERROR(VLOOKUP(D122,StandardFreight,2,0)),VLOOKUP(Translate!$A$118,StandardFreight,2,0),VLOOKUP(D122,StandardFreight,2,0)) -> Road - Articulated >33t | U122: =Translate!$A$127 -> Load | V122: =VLOOKUP(T122,FreightLoadFactors,2,0) -> 15 | W122: =J122 -> t | X122: =IF(V122=0,0,ROUNDUP(I122/V122,0)) -> 0 | Y122: =Translate!$A$130 -> travels | Z122: =Translate!$A$128 -> empty-return rate | AA122: 1 | AB122: =VLOOKUP(T122,EFtable,3,0) -> 0.93694 | AC122: =Q122*X122*(1+AA122)*AB122 -> 0 | AD122: =Translate!$A$102 -> kgCO2e | AH122: =HLOOKUP(AI122,$AP$1:$AV$2,2,0) -> 2 | AI122: =Translate!$A$104 -> Materials | AJ122: =L122 -> 0 | AK122: =VLOOKUP(D122,EFtable,7,0) -> Concrete / Slurry / Grout mix | AL122: =VLOOKUP(D122,EFtable,8,0)*L122 -> 0 | AM122: 17 | AN122: =ROW(F123)-ROW(F122) -> 1 | AO122: 0
D123: =Translate!$A$79 -> Recycled content | E123: =IF(ISERROR(VLOOKUP(D122,RecycledContent,2,0)),Translate!$A$90,VLOOKUP(D122,RecycledContent,2,0)) -> do not apply | F123: =Translate!$A$478 -> -new or recycled- | AH123: =HLOOKUP(AI123,$AP$1:$AV$2,2,0) -> 2 | AI123: =Translate!$A$106 -> Freight | AJ123: =AC122 -> 0 | AL123: =VLOOKUP(T122,EFtable,8,0)*AC122 -> 0 | AM123: 18 | AO123: 0
AM124: =1+OFFSET(AM124,-1,0) -> 19 | AO124: =AJ124 -> 0
E125: =IF(E105=0,0,SUM(I110:I124)/E105) -> 0 | F125: ='Emission factors'!$F$411&"/"&F105 -> t/m3 | AM125: =1+OFFSET(AM125,-1,0) -> 20 | AO125: =AJ125 -> 0
AM126: 21
D130: =AV11 -> Waste (Secondary source)
D133: =Translate!$A$80 -> Simplified ratio | E133: =IF(AND(AV5,F133=Translate!$A$91),AV4,Translate!$A$92) -> 2.659168768e-08 | F133: =Translate!$A$91 -> Default | K133: =$P$1 -> 0 | L133: =IF(E133=Translate!$A$92,0,E133*K133) -> 0 | M133: =Translate!$A$102 -> kgCO2e | AG133: ratio | AH133: =HLOOKUP(AI133,$AP$1:$AV$2,2,0) -> 2 | AI133: =Translate!$A$110 -> Waste | AJ133: =L133 -> 0 | AL133: =100%*L133 -> 0
B137: + | D137: =Translate!$A$84 -> Waste 1 | F137: ='Emission factors'!$F$411 -> t | I137: =Q137*X137*(1+AA137) -> 0 | J137: ='Emission factors'!$F$410 -> km | K137: =VLOOKUP(T137,EFtable,3,0) -> 0.98244 | L137: =I137*K137 -> 0 | M137: =Translate!$A$102 -> kgCO2e | P137: =Translate!$A$112 -> Distance | Q137: 10 | R137: ='Emission factors'!$F$410 -> km | S137: =Translate!$A$120 -> Type | T137: =Translate!$A$206 -> Road - Rigid >17t | U137: =Translate!$A$127 -> Load | V137: =VLOOKUP(T137,'Emission factors'!$C$313:$E$329,2,0) -> 7.5 | W137: =F137 -> t | X137: =IF(V137=0,0,ROUNDUP(E137/V137,0)) -> 0 | Y137: =Translate!$A$130 -> travels | Z137: =Translate!$A$128 -> empty-return rate | AA137: 0.5 | AH137: =HLOOKUP(AI137,$AP$1:$AV$2,2,0) -> 2 | AI137: =Translate!$A$110 -> Waste | AJ137: =L137 -> 0 | AL137: =VLOOKUP(T137,EFtable,8,0)*L137 -> 0 | AN137: =ROW(F138)-ROW(F136) -> 2 | AO137: =AJ137 -> 0
B141: =Translate!$A$242 -> - | D141: =Translate!$A$85 -> Waste 2 | F141: ='Emission factors'!$F$411 -> t | I141: =Q141*X141*(1+AA141) -> 0 | J141: ='Emission factors'!$F$410 -> km | K141: =VLOOKUP(T141,EFtable,3,0) -> 0.98244 | L141: =I141*K141 -> 0 | M141: =Translate!$A$102 -> kgCO2e | P141: =Translate!$A$112 -> Distance | Q141: 10 | R141: ='Emission factors'!$F$410 -> km | S141: =Translate!$A$120 -> Type | T141: =Translate!$A$206 -> Road - Rigid >17t | U141: =Translate!$A$127 -> Load | V141: =VLOOKUP(T141,'Emission factors'!$C$313:$E$329,2,0) -> 7.5 | W141: =F141 -> t | X141: =IF(V141=0,0,ROUNDUP(E141/V141,0)) -> 0 | Y141: =Translate!$A$130 -> travels | Z141: =Translate!$A$128 -> empty-return rate | AA141: 0.5 | AH141: =HLOOKUP(AI141,$AP$1:$AV$2,2,0) -> 2 | AI141: =Translate!$A$110 -> Waste | AJ141: =L141 -> 0 | AL141: =VLOOKUP(T141,EFtable,8,0)*L141 -> 0 | AN141: =ROW(F142)-ROW(F140) -> 2 | AO141: =AJ141 -> 0
D146: =Translate!$A$86 -> Externaly calculated emissions
B149: + | D149: =Translate!$A$47 -> Name | F149: =Translate!$A$104 -> Materials | M149: =Translate!$A$102 -> kgCO2e | AG149: ext | AH149: =HLOOKUP(AI149,$AP$1:$AV$2,2,0) -> 2 | AI149: =F149 -> Materials | AJ149: =L149 -> 0 | AK149: =IF(F149=$AQ$1,Translate!$A$118,"") -> Other | AN149: =ROW(F150)-ROW(F148) -> 2

Sheet Projectzero (hidden)
A1: Project | P1: =AG71*1000 -> 0 | Q1: =AG73*1000 -> 0 | T1: externally calculated emissions | U1: =AG75 -> 0 | V1: ratios used | W1: =AG76 -> 0 | AA1: Functional unit 1 | AB1: =IF(AA38="value",1,SUM(AA55:AF55,AA59:AF59)) -> 0 | AC1: country | AD1: =SUM(AA51:AF51) -> 0 | AJ1: Concrete / Slurry / Grout mix | AK1: Steel | AL1: Other
P2: =AG72*1000 -> 0 | Q2: =AG74*1000 -> 0 | AA2: Functional unit 2 | AB2: =IF(AA38="value",1,SUM(AA57:AF57,AA61:AF61)) -> 0 | AJ2: =AG41 -> 0 | AK2: =AG42 -> 0 | AL2: =AG43 -> 0
D5: Project name | E5: =V5 -> 0 | U5: =Translate!$A$135 -> Project name
E6: Bored piles | L6: Sources | P6: tCO2e | Q6: tCO2e | AK6: =Translate!$A$131 -> Comments : | BC6: =L6 -> Sources | BG6: =P6 -> tCO2e
D7: Date | E7: =V7 -> 00:00:00 | L7: Materials | P7: =SUM(AA24:AF24) -> 0 | Q7: =AG63 -> 0 | U7: =Translate!$A$8 -> DATE | BC7: =Z24 -> Materials | BH7: =AG41 -> 0 | BI7: =AG42 -> 0 | BJ7: =AG43 -> 0 | BK7: =IF(AG24=0,0,ROUND(AG24,-ROUNDDOWN(LOG(ABS(AG24)),0)+1)) -> 0
D8: Author | E8: =V8 -> 0 | L8: Energy | P8: 0 | Q8: 0 | U8: =Translate!$A$66 -> Author | BC8: =Z25 -> Energy | BG8: 0 | BK8: 0
L9: Freight | P9: 0 | Q9: 0 | U9: =Translate!$A$125 -> TOTAL GHG EMISSIONS | W9: =IF(AG31=0,0,ROUND(AG31,-ROUNDDOWN(LOG(ABS(AG31)),0)+1)) -> 0 | X9: =Translate!$A$115 -> tCO2e | BC9: Freight | BG9: 0 | BK9: 0
L10: Mob/demob | P10: 0 | Q10: 0 | BC10: Mob/demob | BG10: 0 | BK10: 0
D11: Turnover | E11: =V11 -> 0 | L11: People's transportation | P11: 0 | Q11: 0 | U11: =Translate!$A$69 -> Project value | V11: =AG36 -> 0 | W11: =AH36 ->  | BC11: People's transportation | BG11: 0 | BK11: 0
D12: Country | F12: 0 | L12: Assets | P12: 0 | Q12: 0 | U12: =Translate!$A$70 -> Country | V12: =IF(SUM(AA51:AF51)>0,"",AA50) ->  | BC12: Assets | BG12: 0 | BK12: 0
D13: =U13 ->  | E13: 0 | L13: Waste | P13: 0 | Q13: 0 | U13: =Z38 ->  | V13: =AG38 -> 0 | W13: =IF(SUM(Z55:AF55,Z59:AF59)>0,"",AA58) ->  | BC13: Waste | BG13: 0 | BK13: 0
D14: =U14 ->  | E14: 0 | P14: =SUM(P7:P13) -> 0 | Q14: =SUM(Q7:Q13) -> 0 | U14: =Z39 ->  | V14: =AG39 -> 0 | W14: =IF(SUM(Z57:AF57,Z61:AF61)>0,"",AA60) -> 
AA20: =Translate!$A$139 -> Select the subprojects and projects that you want to total
AG21: =Translate!$A$134 -> Total
AA22: =IF(ISERROR(INDIRECT("'"&AA21&"'!A1")),0,1) -> 0 | AB22: 0 | AC22: 0 | AD22: 0 | AE22: 0 | AF22: 0
A24: =ADDRESS(ROW(P7),COLUMN(P7)) -> $P$7 | Z24: =Translate!$A$104 -> Materials | AA24: =IF(AA$22,INDIRECT("'"&AA$21&"'!"&$A24),"") ->  | AG24: =SUM(AA24:AF24) -> 0 | AK24: =Translate!$A$132 -> Primary emission sources | AL24: =AG71 -> 0 | AN24: =AG73 -> 0
A25: $P$8 | Z25: =Translate!$A$105 -> Energy | AG25: 0 | AK25: =Translate!$A$133 -> Secondary emission sources | AL25: =AG72 -> 0 | AM25: =AL24 -> 0 | AN25: =AG74 -> 0
A26: $P$9 | Z26: =Translate!$A$106 -> Freight | AG26: 0 | AK26: =Translate!$A$134 -> Total | AL26: =AL24+AL25 -> 0 | AN26: =AN24+AN25 -> 0
A27: $P$10 | Z27: =Translate!$A$107 -> Mob/demob | AG27: 0
A28: $P$11 | Z28: =Translate!$A$108 -> People's transportation | AG28: 0
A29: $P$12 | Z29: =Translate!$A$109 -> Assets | AG29: 0
A30: $P$13 | Z30: =Translate!$A$110 -> Waste | AG30: 0
Z31: =Translate!$A$134 -> Total | AA31: =SUM(AA24:AA30) -> 0 | AB31: 0 | AC31: 0 | AD31: 0 | AE31: 0 | AF31: 0 | AG31: 0
A34: =ADDRESS(ROW(E9),COLUMN(E9)) -> $E$9 | Z34: =Translate!$A$67 -> Working days | AA34: =IF(AA$22,INDIRECT("'"&AA$21&"'!"&$A34),"") -> 
A35: =ADDRESS(ROW(E10),COLUMN(E10)) -> $E$10 | Z35: =Translate!$A$68 -> Workforce
A36: =ADDRESS(ROW(E11),COLUMN(E11)) -> $E$11 | Z36: =Translate!$A$137 -> Turnover | AG36: =SUM(AA36:AF36) -> 0 | AH36: =IF(AG53>0,Translate!$A$143,AA52) -> 
A38: =ADDRESS(ROW(E13),COLUMN(E13)) -> $E$13 | Z38: =IF(SUM(Z55:AF55,Z59:AF59)>0,Translate!$A$71,AA54) ->  | AA38: =IF(AA$22,INDIRECT("'"&AA$21&"'!"&$A38),"") ->  | AG38: =IF(SUM(AA55:AF55)>0,Translate!$A$140,IF(SUM(AA59:AF59)>0,Translate!$A$141,SUM(AA38:AF38))) -> 0
A39: =ADDRESS(ROW(E14),COLUMN(E14)) -> $E$14 | Z39: =IF(SUM(Z57:AF57,Z61:AF61)>0,Translate!$A$72,AA56) ->  | AG39: =IF(SUM(AA57:AF57)>0,Translate!$A$142,IF(SUM(AA61:AF61)>0,Translate!$A$141,SUM(AA39:AF39))) -> 0
A41: AJ2 | Y41: =Translate!$A$136 -> Materials detail | Z41: =Translate!$A$73 -> Concrete / Slurry / Grout mix | AA41: =IF(AA$22,INDIRECT("'"&AA$21&"'!"&$A41),"") ->  | AG41: =SUM(AA41:AF41) -> 0
A42: AK2 | Z42: =Translate!$A$138 -> Steel | AG42: =SUM(AA42:AF42) -> 0
A43: AL2 | Z43: =Translate!$A$118 -> Other | AG43: =SUM(AA43:AF43) -> 0
A50: =ADDRESS(ROW(E12),COLUMN(E12)) -> $E$12 | Z50: test country | AA50: =IF(AA$22,INDIRECT("'"&AA$21&"'!"&$A50),"") -> 
AA51: =IF(OR(AA21="",AA50=$AA$50),0,1) -> 0 | AB51: 0 | AC51: 0 | AD51: 0 | AE51: 0 | AF51: 0 | AG51: =SUM(AA51:AF51) -> 0
A52: F11 | Z52: test currency | AA52: =IF(AA$22,INDIRECT("'"&AA$21&"'!"&$A52),"") -> 
AA53: =IF(OR(AA23="",AA52=$AA$52),0,1) -> 0 | AB53: 0 | AC53: 0 | AD53: 0 | AE53: 0 | AF53: 0 | AG53: =SUM(AA53:AF53) -> 0
A54: =ADDRESS(ROW(D13),COLUMN(D13)) -> $D$13 | Z54: test Functional unit 1 | AA54: =IF(AA$22,INDIRECT("'"&AA$21&"'!"&$A54),"") -> 
AA55: =IF(OR(AA$21="",AA54=$AA54),0,1) -> 0 | AB55: 0 | AC55: 0 | AD55: 0 | AE55: 0 | AF55: 0 | AG55: =SUM(AA55:AF55) -> 0
A56: =ADDRESS(ROW(D14),COLUMN(D14)) -> $D$14 | Z56: test Functional unit 2 | AA56: =IF(AA$22,INDIRECT("'"&AA$21&"'!"&$A56),"") -> 
AA57: =IF(OR(AA$21="",AA56=$AA56),0,1) -> 0 | AB57: 0 | AC57: 0 | AD57: 0 | AE57: 0 | AF57: 0 | AG57: =SUM(AA57:AF57) -> 0
A58: =ADDRESS(ROW(F13),COLUMN(F13)) -> $F$13 | Z58: test unit 1 | AA58: =IF(AA$22,INDIRECT("'"&AA$21&"'!"&$A58),"") -> 
AA59: =IF(OR(AA$21="",AA58=$AA58),0,1) -> 0 | AB59: 0 | AC59: 0 | AD59: 0 | AE59: 0 | AF59: 0 | AG59: =SUM(AA59:AF59) -> 0
A60: =ADDRESS(ROW(F14),COLUMN(F14)) -> $F$14 | Z60: test unit 2 | AA60: =IF(AA$22,INDIRECT("'"&AA$21&"'!"&$A60),"") -> 
AA61: =IF(OR(AA$21="",AA60=$AA60),0,1) -> 0 | AB61: 0 | AC61: 0 | AD61: 0 | AE61: 0 | AF61: 0 | AG61: =SUM(AA61:AF61) -> 0
A63: =ADDRESS(ROW(Q7),COLUMN(Q7)) -> $Q$7 | Z63: Materials | AA63: =IF(AA$22,INDIRECT("'"&AA$21&"'!"&$A63),"") ->  | AG63: =SUM(AA63:AF63) -> 0
A64: $Q$8 | Z64: Energy | AG64: 0
A65: $Q$9 | Z65: Freight | AG65: 0
A66: $Q$10 | Z66: Mob/demob | AG66: 0
A67: $Q$11 | Z67: People's transportation | AG67: 0
A68: $Q$12 | Z68: Assets | AG68: 0
A69: $Q$13 | Z69: Waste | AG69: 0
Z70: TOTAL | AA70: =SUM(AA63:AA69) -> 0 | AB70: 0 | AC70: 0 | AD70: 0 | AE70: 0 | AF70: 0 | AG70: 0
A71: =ADDRESS(ROW(P1),COLUMN(P1)) -> $P$1 | Z71: Primary sources emissions | AA71: =IF(AA$22,INDIRECT("'"&AA$21&"'!"&$A71)/1000,"") ->  | AG71: =SUM(AA71:AF71) -> 0
A72: =ADDRESS(ROW(P2),COLUMN(P2)) -> $P$2 | Z72: Secondary sources emissions | AG72: =SUM(AA72:AF72) -> 0
A73: =ADDRESS(ROW(Q1),COLUMN(Q1)) -> $Q$1 | Z73: Primary sources uncertainties | AG73: =SUM(AA73:AF73) -> 0
A74: =ADDRESS(ROW(Q2),COLUMN(Q2)) -> $Q$2 | Z74: Secondary sources uncertainties | AG74: =SUM(AA74:AF74) -> 0
A75: =ADDRESS(ROW(U1),COLUMN(U1)) -> $U$1 | Z75: Externally calculated emissions | AA75: =IF(AA$22,INDIRECT("'"&AA$21&"'!"&$A75),"") ->  | AG75: =IF(ISERROR(OR(AA75:AF75)),0,OR(AA75:AF75)) -> 0
Z76: Ratios used | AA76: =IF(AA$22,INDIRECT("'"&AA$21&"'!"&$A54),"") ->  | AG76: =IF(ISERROR(OR(AA76:AF76)),0,OR(AA76:AF76)) -> 0

Sheet Resultszero (hidden)
A1: Results | E1: =IF(ISERROR(INDIRECT("'"&E4&"'!A1")),0,1) -> 0 | T1: externally calculated emissions | U1: =IF($E$1,INDIRECT("'"&$E$4&"'!"&ADDRESS(ROW(U1),COLUMN(U1))),0) -> 0 | V1: ratios used | W1: =IF($E$1,INDIRECT("'"&$E$4&"'!"&ADDRESS(ROW(W1),COLUMN(W1))),0) -> 0 | AA1: Test FU 1 | AB1: =IF($E$1,INDIRECT("'"&$E$4&"'!"&ADDRESS(ROW(AB1),COLUMN(AB1))),0) -> 0 | AC1: country | AD1: =IF(E1,INDIRECT("'"&$E$4&"'!"&ADDRESS(ROW(AD1),COLUMN(AD1))),0) -> 0
AA2: Test FU 2 | AB2: =IF($E$1,INDIRECT("'"&$E$4&"'!"&ADDRESS(ROW(AB2),COLUMN(AB2))),0) -> 0
C4: =Translate!$A$144 -> select your project or subproject | H4: =Translate!$A$148 -> Your Company name | I4: =Translate!$A$149 -> 
D9: =Translate!$A$32 -> EFFC DFI Project Carbon Calculator
L10: ='READ ME'!$E$10 -> v4.0
E11: =Translate!$A$145 -> Company | F11: =I4 ->  | J11: =Translate!$A$152&" :" -> Emission factor database :
E12: =Translate!$A$35 -> Project | F12: =IF(E$1,INDIRECT("'"&E$4&"'!E5"),"") ->  | J12: ='READ ME'!F18 -> EFFC DFI methodology recommended emission factors
E13: =Translate!$A$8 -> DATE | F13: =IF(E$1,INDIRECT("'"&E$4&"'!E7"),"") -> 
E14: =Translate!$A$66 -> Author | F14: =IF(E$1,INDIRECT("'"&E$4&"'!E8"),"") ->  | J14: =IF('Emission factors'!C250=0,"",'Emission factors'!C250) ->  | K14: =IF('Emission factors'!C250=0,"",Translate!$A$153) -> 
E16: =IF(F16="","",Translate!$A$70) ->  | F16: =IF(AND($E$1,$AD$1=0),INDIRECT("'"&$E$4&"'!E12"),"") ->  | I16: =Translate!$A$134 -> Total | J16: =IF(E1=0,"",IF(B31=0,0,ROUND(B31,-ROUNDDOWN(LOG(ABS(B31)),0)+1))) ->  | K16: =Translate!$A$115 -> tCO2e
A17: =IF(SUM(F17)=0,0,$J$16/F17*1000) -> 0 | E17: =Translate!$A$69 -> Project value | F17: =IF(E$1,INDIRECT("'"&E$4&"'!E11"),"") ->  | G17: =IF(E$1,INDIRECT("'"&E$4&"'!F11"),"") ->  | I17: =IF($F17=0,"",Translate!$A$150&" "&E17) -> ratio per Project value | J17: =IF(A17=0,"",ROUND(A17*IF(N17,1000,1),-ROUNDDOWN(LOG(ABS(A17*IF(N17,1000,1))),0)+1)) ->  | K17: =IF($F17=0,"",IF(N17,Translate!$A$155,Translate!$A$154)&G17) -> kgCO2e / | N17: FALSE
A18: =IF(SUM(F18)=0,0,$J$16/F18*1000) -> 0 | E18: =IF(AND($E$1,$AB$1=0),INDIRECT("'"&$E$4&"'!D13"),"") ->  | F18: =IF(AND($E$1,$AB$1=0),INDIRECT("'"&$E$4&"'!E13"),"") ->  | G18: =IF(AND($E$1,$AB$1=0),INDIRECT("'"&$E$4&"'!F13"),"") ->  | I18: =IF(SUM($F18)=0,"",Translate!$A$150&" "&E18) ->  | J18: =IF(A18=0,"",ROUND(A18*IF(N18,1000,1),-ROUNDDOWN(LOG(ABS(A18*IF(N18,1000,1))),0)+1)) ->  | K18: =IF(SUM($F18)=0,"",IF(N18,Translate!$A$155,Translate!$A$154)&G18) ->  | N18: FALSE
A19: =IF(SUM(F19)=0,0,$J$16/F19*1000) -> 0 | E19: =IF(AND($E$1,$AB$2=0),INDIRECT("'"&$E$4&"'!D14"),"") ->  | F19: =IF(AND($E$1,$AB$2=0),INDIRECT("'"&$E$4&"'!E14"),"") ->  | G19: =IF(AND($E$1,$AB$2=0),INDIRECT("'"&$E$4&"'!F14"),"") ->  | I19: =IF(SUM($F19)=0,"",Translate!$A$150&" "&E19) ->  | J19: =IF(A19=0,"",ROUND(A19*IF(N19,1000,1),-ROUNDDOWN(LOG(ABS(A19*IF(N19,1000,1))),0)+1)) ->  | K19: =IF(SUM($F19)=0,"",IF(N19,Translate!$A$155,Translate!$A$154)&G19) ->  | N19: FALSE
A21: =ADDRESS(ROW(P7),COLUMN(P7)) -> $P$7 | B21: =IF(E$1,INDIRECT("'"&E$4&"'!"&$A21),"") ->  | E21: =Translate!$A$104 -> Materials | F21: =IF(E1=0,"",IF(B21=0,0,ROUND(B21,-ROUNDDOWN(LOG(ABS(B21)),0)+1))) -> 
A22: =ADDRESS(ROW(AJ2),COLUMN(AJ2)) -> $AJ$2 | B22: =IF(E$1,INDIRECT("'"&E$4&"'!"&$A22),"") ->  | E22: =Translate!$A$73 -> Concrete / Slurry / Grout mix | F22: =IF(E1=0,"",IF(B22=0,0,ROUND(B22,-ROUNDDOWN(LOG(ABS(B22)),0)+1))) -> 
A23: =ADDRESS(ROW(AK2),COLUMN(AK2)) -> $AK$2 | B23: =IF(E$1,INDIRECT("'"&E$4&"'!"&$A23),"") ->  | E23: =Translate!$A$138 -> Steel | F23: =IF(E1=0,"",IF(B23=0,0,ROUND(B23,-ROUNDDOWN(LOG(ABS(B23)),0)+1))) -> 
A24: =ADDRESS(ROW(AL2),COLUMN(AL2)) -> $AL$2 | B24: =IF(E$1,INDIRECT("'"&E$4&"'!"&$A24),"") ->  | E24: =Translate!$A$118 -> Other | F24: =IF(E1=0,"",IF(B24=0,0,ROUND(B24,-ROUNDDOWN(LOG(ABS(B24)),0)+1))) -> 
A25: =ADDRESS(ROW(P8),COLUMN(P8)) -> $P$8 | B25: =IF(E$1,INDIRECT("'"&E$4&"'!"&$A25),"") ->  | E25: =Translate!$A$105 -> Energy | F25: =IF(E1=0,"",IF(B25=0,0,ROUND(B25,-ROUNDDOWN(LOG(ABS(B25)),0)+1))) -> 
A26: $P$9 | E26: =Translate!$A$106 -> Freight | F26: =IF(E1=0,"",IF(B26=0,0,ROUND(B26,-ROUNDDOWN(LOG(ABS(B26)),0)+1))) -> 
A27: $P$10 | E27: =Translate!$A$107 -> Mob/demob | F27: =IF(E1=0,"",IF(B27=0,0,ROUND(B27,-ROUNDDOWN(LOG(ABS(B27)),0)+1))) -> 
A28: $P$11 | E28: =Translate!$A$108 -> People's transportation | F28: =IF(E1=0,"",IF(B28=0,0,ROUND(B28,-ROUNDDOWN(LOG(ABS(B28)),0)+1))) -> 
A29: $P$12 | E29: =Translate!$A$109 -> Assets | F29: =IF(E1=0,"",IF(B29=0,0,ROUND(B29,-ROUNDDOWN(LOG(ABS(B29)),0)+1))) -> 
A30: $P$13 | E30: =Translate!$A$110 -> Waste | F30: =IF(E1=0,"",IF(B30=0,0,ROUND(B30,-ROUNDDOWN(LOG(ABS(B30)),0)+1))) -> 
A31: $P$14
E38: =Translate!$A$11 -> Activities covered
E41: =IF('Emission factors'!C250=0,"",Translate!$A$146) -> 
D42: =IF('Emission factors'!$C$250>D41,D41+1,"") ->  | E42: =IF($D42="","",VLOOKUP($D42,'Emission factors'!$C$251:$G$280,COLUMN('Emission factors'!D$250)-2,0)) ->  | F42: =IF($D42="","",VLOOKUP($D42,'Emission factors'!$C$251:$G$280,COLUMN('Emission factors'!E$250)-2,0)) ->  | G42: =IF($D42="","",VLOOKUP($D42,'Emission factors'!$C$251:$G$280,COLUMN('Emission factors'!F$250)-2,0)) ->  | I42: =IF($D42="","",VLOOKUP($D42,'Emission factors'!$C$251:$G$280,COLUMN('Emission factors'!G$250)-2,0)) -> 
D43: =IF('Emission factors'!$C$250>D42,D42+1,"") ->  | E43: =IF($D43="","",VLOOKUP($D43,'Emission factors'!$C$251:$G$280,COLUMN('Emission factors'!D$250)-2,0)) ->  | F43: =IF($D43="","",VLOOKUP($D43,'Emission factors'!$C$251:$G$280,COLUMN('Emission factors'!E$250)-2,0)) ->  | G43: =IF($D43="","",VLOOKUP($D43,'Emission factors'!$C$251:$G$280,COLUMN('Emission factors'!F$250)-2,0)) ->  | I43: =IF($D43="","",VLOOKUP($D43,'Emission factors'!$C$251:$G$280,COLUMN('Emission factors'!G$250)-2,0)) -> 
D44: =IF('Emission factors'!$C$250>D43,D43+1,"") ->  | E44: =IF($D44="","",VLOOKUP($D44,'Emission factors'!$C$251:$G$280,COLUMN('Emission factors'!D$250)-2,0)) ->  | F44: =IF($D44="","",VLOOKUP($D44,'Emission factors'!$C$251:$G$280,COLUMN('Emission factors'!E$250)-2,0)) ->  | G44: =IF($D44="","",VLOOKUP($D44,'Emission factors'!$C$251:$G$280,COLUMN('Emission factors'!F$250)-2,0)) ->  | I44: =IF($D44="","",VLOOKUP($D44,'Emission factors'!$C$251:$G$280,COLUMN('Emission factors'!G$250)-2,0)) -> 
D45: =IF('Emission factors'!$C$250>D44,D44+1,"") ->  | E45: =IF($D45="","",VLOOKUP($D45,'Emission factors'!$C$251:$G$280,COLUMN('Emission factors'!D$250)-2,0)) ->  | F45: =IF($D45="","",VLOOKUP($D45,'Emission factors'!$C$251:$G$280,COLUMN('Emission factors'!E$250)-2,0)) ->  | G45: =IF($D45="","",VLOOKUP($D45,'Emission factors'!$C$251:$G$280,COLUMN('Emission factors'!F$250)-2,0)) ->  | I45: =IF($D45="","",VLOOKUP($D45,'Emission factors'!$C$251:$G$280,COLUMN('Emission factors'!G$250)-2,0)) -> 
D46: =IF('Emission factors'!$C$250>D45,D45+1,"") ->  | E46: =IF($D46="","",VLOOKUP($D46,'Emission factors'!$C$251:$G$280,COLUMN('Emission factors'!D$250)-2,0)) ->  | F46: =IF($D46="","",VLOOKUP($D46,'Emission factors'!$C$251:$G$280,COLUMN('Emission factors'!E$250)-2,0)) ->  | G46: =IF($D46="","",VLOOKUP($D46,'Emission factors'!$C$251:$G$280,COLUMN('Emission factors'!F$250)-2,0)) ->  | I46: =IF($D46="","",VLOOKUP($D46,'Emission factors'!$C$251:$G$280,COLUMN('Emission factors'!G$250)-2,0)) -> 
D47: =IF('Emission factors'!$C$250>D46,D46+1,"") ->  | E47: =IF($D47="","",VLOOKUP($D47,'Emission factors'!$C$251:$G$280,COLUMN('Emission factors'!D$250)-2,0)) ->  | F47: =IF($D47="","",VLOOKUP($D47,'Emission factors'!$C$251:$G$280,COLUMN('Emission factors'!E$250)-2,0)) ->  | G47: =IF($D47="","",VLOOKUP($D47,'Emission factors'!$C$251:$G$280,COLUMN('Emission factors'!F$250)-2,0)) ->  | I47: =IF($D47="","",VLOOKUP($D47,'Emission factors'!$C$251:$G$280,COLUMN('Emission factors'!G$250)-2,0)) -> 
D48: =IF('Emission factors'!$C$250>D47,D47+1,"") ->  | E48: =IF($D48="","",VLOOKUP($D48,'Emission factors'!$C$251:$G$280,COLUMN('Emission factors'!D$250)-2,0)) ->  | F48: =IF($D48="","",VLOOKUP($D48,'Emission factors'!$C$251:$G$280,COLUMN('Emission factors'!E$250)-2,0)) ->  | G48: =IF($D48="","",VLOOKUP($D48,'Emission factors'!$C$251:$G$280,COLUMN('Emission factors'!F$250)-2,0)) ->  | I48: =IF($D48="","",VLOOKUP($D48,'Emission factors'!$C$251:$G$280,COLUMN('Emission factors'!G$250)-2,0)) -> 
D49: =IF('Emission factors'!$C$250>D48,D48+1,"") ->  | E49: =IF($D49="","",VLOOKUP($D49,'Emission factors'!$C$251:$G$280,COLUMN('Emission factors'!D$250)-2,0)) ->  | F49: =IF($D49="","",VLOOKUP($D49,'Emission factors'!$C$251:$G$280,COLUMN('Emission factors'!E$250)-2,0)) ->  | G49: =IF($D49="","",VLOOKUP($D49,'Emission factors'!$C$251:$G$280,COLUMN('Emission factors'!F$250)-2,0)) ->  | I49: =IF($D49="","",VLOOKUP($D49,'Emission factors'!$C$251:$G$280,COLUMN('Emission factors'!G$250)-2,0)) -> 
F50: =IF(W1,Translate!$A$147,"") ->  | I50: =IF(U1,Translate!$A$151,"") -> 
C65: =Translate!$A$104 -> Materials | E65: =B22 ->  | F65: =B23 ->  | G65: =B24 ->  | H65: =IF(B21=0,0,ROUND(B21,-ROUNDDOWN(LOG(ABS(B21)),0)+1)) -> 
C66: =Translate!$A$105 -> Energy | D66: =B25 ->  | H66: =IF(D66=0,0,ROUND(D66,-ROUNDDOWN(LOG(ABS(D66)),0)+1)) -> 
C67: =Translate!$A$106 -> Freight
C68: =Translate!$A$107 -> Mob/demob
C69: =Translate!$A$108 -> People's transportation
C70: =Translate!$A$109 -> Assets
C71: =Translate!$A$110 -> Waste

Sheet Comparisonzero (hidden)
A1: Comparison | J1: Functional unit 1 | K1: =SUM(J189:O189,J193:O193) -> 0
J2: Functional unit 2 | K2: =SUM(J191:O191,J195:O195) -> 0
E5: seuxio
E6: Bored piles
AG12: =Translate!A496 -> Projects emissions
H13: =Translate!$A$156 -> Comparison sheet | AG13: =Translate!A173 -> emissions repartition
AG14: =Translate!A172 -> Projects emission repartitions
J15: =Translate!$A$166 -> Select the subprojects and projects that you want to compare | AG15: =Translate!A173 -> emissions repartition
AG16: =Translate!A136 -> Materials detail
J17: =IF(ISERROR(INDIRECT("'"&J16&"'!A1")),0,1) -> 0 | K17: 0 | L17: 0 | M17: 0 | N17: 0 | O17: 0 | P17: 1
AG20: =Translate!$A$172 -> Projects emission repartitions
AG21: =Translate!$A$173 -> emissions repartition
AG22: =Translate!$A$136 -> Materials detail
H26: =Translate!$A$157 -> Comparison sheet (1/2)
J28: =IF(J$17,J16,"") ->  | P28: Average
A29: $P$7 | I29: =Translate!$A$104 -> Materials | J29: =IF(J$17,INDIRECT("'"&J$16&"'!"&$A29),"") ->  | P29: =IF(ISERROR(AVERAGE(J29:O29)),0,AVERAGE(J29:O29)) -> 0 | Q29: =Translate!$A$115 -> tCO2e
A30: $P$8 | I30: =Translate!$A$105 -> Energy | P30: 0 | Q30: =Translate!$A$115 -> tCO2e
A31: $P$9 | I31: =Translate!$A$106 -> Freight | P31: 0 | Q31: =Translate!$A$115 -> tCO2e
A32: $P$10 | I32: =Translate!$A$107 -> Mob/demob | P32: 0 | Q32: =Translate!$A$115 -> tCO2e
A33: $P$11 | I33: =Translate!$A$108 -> People's transportation | P33: 0 | Q33: =Translate!$A$115 -> tCO2e
A34: $P$12 | I34: =Translate!$A$109 -> Assets | P34: 0 | Q34: =Translate!$A$115 -> tCO2e
A35: $P$13 | I35: =Translate!$A$110 -> Waste | P35: 0 | Q35: =Translate!$A$115 -> tCO2e
I36: =Translate!$A$134 -> Total | J36: =IF(SUM(J29:J35)=0,0,ROUND(SUM(J29:J35),-ROUNDDOWN(LOG(ABS(SUM(J29:J35))),0)+1)) -> 0 | K36: 0 | L36: 0 | M36: 0 | N36: 0 | O36: 0 | P36: 0 | Q36: =Translate!$A$115 -> tCO2e
A39: $E$9 | I39: =Translate!$A$67 -> Working days | J39: =IF(J$17,INDIRECT("'"&J$16&"'!"&$A39),"") ->  | P39: =IF(ISERROR(AVERAGE(J39:O39)),0,AVERAGE(J39:O39)) -> 0 | Q39: =Translate!$A$129 -> days
A40: $E$10 | I40: =Translate!$A$68 -> Workforce | P40: =IF(ISERROR(AVERAGE(J40:O40)),0,AVERAGE(J40:O40)) -> 0 | Q40: =Translate!$A$94 -> Full-time equivalent
A41: $E$11 | I41: =Translate!$A$69 -> Project value | P41: =IF(ISERROR(AVERAGE(J41:O41)),0,AVERAGE(J41:O41)) -> 0 | Q41: =IF(P187>0,Translate!$A$143,J186) -> 
A42: $E$13 | I42: =IF(P189>0,Translate!$A$71,J188) ->  | P42: =IF(SUM(J189:O189)>0,"Functional units 1 are not the same",IF(SUM(J193:O193)>0,"Check the unit",IF(ISERROR(AVERAGE(J42:O42)),0,AVERAGE(J42:O42)))) -> 0 | Q42: =IF(P193>0,Translate!$A$143,J192) -> 
A43: $E$14 | I43: =IF(P191>0,Translate!$A$72,J190) ->  | P43: =IF(SUM(J191:O191)>0,"Functional units 2 are not the same",IF(SUM(J195:O195)>0,"Check the unit",IF(ISERROR(AVERAGE(J43:O43)),0,AVERAGE(J43:O43)))) -> 0 | Q43: =IF(P195>0,Translate!$A$143,J194) -> 
V94: =Translate!$A$169 -> Show other
V95: =Translate!$A$170 -> emission
V96: =Translate!$A$103 -> Sources
V97: =Translate!$A$163 -> Yes
U108: =Translate!$A$167&" "&V123 -> Projects emissions per
U110: =Translate!$A$167&" "&V125 -> Projects emissions per Project value
T112: ='READ ME'!E5 -> EFFC DFI Carbon Calculator Tool v4.0
H120: =Translate!$A$158 -> Comparison sheet (2/2)
U125: =Translate!$A$168 -> ratio variable : | V125: Project value
V127: =Translate!$A$171 -> Functional units have to be the exactly the same
V130: TRUE
I159: =V125 -> Project value | J159: =IF(J$17,VLOOKUP($I159,$I$41:$P$43,COLUMN(J159)-COLUMN($I$159)+1,0),"") ->  | P159: 0 | Q159: =IF(1,VLOOKUP($I159,$I$41:$Q$43,COLUMN(Q159)-COLUMN($I$159)+1,0),"") -> 
J162: =IF(J$17,J$16,"") ->  | P162: Average
I163: =Translate!$A$104 -> Materials | J163: =IF(J$17,IF(ISERROR(J29/J$159),0,J29/J$159*1000)*IF($V$130,1000,1),"") ->  | P163: =IF(P$17,IF(ISERROR(P29/P$159),0,P29/P$159*1000),"") -> 0 | Q163: =IF(V130,Translate!$A$155,Translate!$A$154)&Q159 -> gCO2e /
I164: =Translate!$A$105 -> Energy | P164: 0 | Q164: =Q163 -> gCO2e /
I165: =Translate!$A$106 -> Freight | P165: 0 | Q165: =Q164 -> gCO2e /
I166: =Translate!$A$107 -> Mob/demob | P166: 0 | Q166: gCO2e /
I167: =Translate!$A$108 -> People's transportation | P167: 0 | Q167: gCO2e /
I168: =Translate!$A$109 -> Assets | P168: 0 | Q168: gCO2e /
I169: =Translate!$A$110 -> Waste | P169: 0 | Q169: gCO2e /
J170: =IF(SUM(J163:J169)=0,0,ROUND(SUM(J163:J169),-ROUNDDOWN(LOG(ABS(SUM(J163:J169))),0)+1)) -> 0 | K170: =IF(SUM(K163:K169)=0,0,ROUND(SUM(K163:K169),-ROUNDDOWN(LOG(ABS(SUM(K163:K169))),0)+1)) -> 0 | L170: 0 | M170: 0 | N170: 0 | O170: 0 | P170: 0 | Q170: gCO2e /
J173: =IF(J$17,J$16,"") ->  | P173: Average
A174: $P$1 | I174: =Translate!$A$159 -> Primary sources emissions | J174: =IF(J$17,INDIRECT("'"&J$16&"'!"&$A174)/1000,"") ->  | P174: =IF(ISERROR(AVERAGE(J174:O174)),0,AVERAGE(J174:O174)) -> 0 | Q174: =Translate!$A$115 -> tCO2e
A175: $P$2 | I175: =Translate!$A$160 -> Secondary sources emissions | P175: =IF(ISERROR(AVERAGE(J175:O175)),0,AVERAGE(J175:O175)) -> 0 | Q175: =Translate!$A$115 -> tCO2e
I176: =Translate!$A$161 -> Uncertainties | J176: =IF(J$17,J196+J197,"") ->  | P176: =IF(ISERROR(AVERAGE(J176:O176)),0,AVERAGE(J176:O176)) -> 0 | Q176: =Translate!$A$115 -> tCO2e
J178: =IF(J$17,J$16,"") ->  | P178: Average
A179: AJ2 | I179: =Translate!$A$73 -> Concrete / Slurry / Grout mix | J179: =IF(J$17,INDIRECT("'"&J$16&"'!"&$A179),"") ->  | P179: =IF(ISERROR(AVERAGE(J179:O179)),0,AVERAGE(J179:O179)) -> 0 | Q179: =Translate!$A$115 -> tCO2e
A180: AK2 | I180: =Translate!$A$138 -> Steel | P180: =IF(ISERROR(AVERAGE(J180:O180)),0,AVERAGE(J180:O180)) -> 0 | Q180: =Translate!$A$115 -> tCO2e
A181: AL2 | I181: =Translate!$A$162 -> Other materials | P181: =IF(ISERROR(AVERAGE(J181:O181)),0,AVERAGE(J181:O181)) -> 0 | Q181: =Translate!$A$115 -> tCO2e
I182: =IF(V97=Translate!$A$163,Translate!$A$165,"") -> Other emission sources | J182: =(SUM(J29:J35)-SUM(J179:J181))*($V$97=Translate!$A$163) -> 0 | K182: =(SUM(K29:K35)-SUM(K179:K181))*($V$97=Translate!$A$163) -> 0 | L182: =(SUM(L29:L35)-SUM(L179:L181))*($V$97=Translate!$A$163) -> 0 | M182: =(SUM(M29:M35)-SUM(M179:M181))*($V$97=Translate!$A$163) -> 0 | N182: =(SUM(N29:N35)-SUM(N179:N181))*($V$97=Translate!$A$163) -> 0 | O182: =(SUM(O29:O35)-SUM(O179:O181))*($V$97=Translate!$A$163) -> 0 | P182: =(SUM(P29:P35)-SUM(P179:P181))*($V$97="YES") -> 0 | Q182: =Translate!$A$115 -> tCO2e
A186: F11 | I186: test currency | J186: =IF(J$17,INDIRECT("'"&J$16&"'!"&$A186),"") -> 
J187: =IF(OR(J16="",J186=$J$186),0,1) -> 0 | K187: 0 | L187: 0 | M187: 0 | N187: 0 | O187: 0 | P187: =SUM(J187:O187) -> 0
A188: $D$13 | I188: test Functional unit 1 | J188: =IF(J$17,INDIRECT("'"&J$16&"'!"&$A188),"") -> 
J189: =IF(OR(J$16="",J188=$J188),0,1) -> 0 | K189: 0 | L189: 0 | M189: 0 | N189: 0 | O189: 0 | P189: =SUM(J189:O189) -> 0
A190: $D$14 | I190: test Functional unit 2 | J190: =IF(J$17,INDIRECT("'"&J$16&"'!"&$A190),"") -> 
J191: =IF(OR(J$16="",J190=$J190),0,1) -> 0 | K191: 0 | L191: 0 | M191: 0 | N191: 0 | O191: 0 | P191: =SUM(J191:O191) -> 0
A192: $F$13 | I192: test unit 1 | J192: =IF(J$17,INDIRECT("'"&J$16&"'!"&$A192),"") -> 
J193: =IF(OR(J$16="",J192=$J192),0,1) -> 0 | K193: 0 | L193: 0 | M193: 0 | N193: 0 | O193: 0 | P193: =SUM(J193:O193) -> 0
A194: $F$14 | I194: test unit 2 | J194: =IF(J$17,INDIRECT("'"&J$16&"'!"&$A194),"") -> 
J195: =IF(OR(J$16="",J194=$J194),0,1) -> 0 | K195: 0 | L195: 0 | M195: 0 | N195: 0 | O195: 0 | P195: =SUM(J195:O195) -> 0
A196: $Q$1 | I196: Primary sources uncertainties | J196: =IF(J$17,INDIRECT("'"&J$16&"'!"&$A196)/1000,"") ->  | P196: =IF(ISERROR(AVERAGE(J196:O196)),0,AVERAGE(J196:O196)) -> 0
A197: $Q$2 | I197: Secondary sources uncertainties | P197: =IF(ISERROR(AVERAGE(J197:O197)),0,AVERAGE(J197:O197)) -> 0
T200: ='READ ME'!E5 -> EFFC DFI Carbon Calculator Tool v4.0

Sheet Emission factors (hidden)
C3: ='READ ME'!F18 -> EFFC DFI methodology recommended emission factors | F3: ='READ ME'!K18 -> Metric system
D4: =MATCH('READ ME'!F18,$K$6:$N$6,0) -> 1
P5: =Translate!$A$533 -> the table values are in metric system units
C6: =Translate!$A$175 -> Emission factor name | D6: =Translate!$A$96 -> unit | E6: =Translate!$A$245 -> Emission factor used (kgCO2/unit) | F6: =Translate!$A$249 -> Emission factor database used | G6: =Translate!$A$251 -> User-defined emission factor (kgCO2/unit) | H6: =Translate!$A$253 -> User-defined emission factor source | I6: =Translate!$A$254 -> Material type | J6: =Translate!$A$255 -> Uncertainty | K6: =Translate!$A$256 -> EFFC DFI methodology recommended emission factors | L6: =Translate!$A$531 -> US - EPA | M6: =Translate!$A$263 -> France - Bilan Carbone | N6: =Translate!$A$264 -> UK - DEFRA/Uni of Bath | P6: =Translate!$A$258 -> Base carbone (v18.1) | Q6: =Translate!$A$261 -> Defra 2019 (v1.3) | R6: =Translate!$A$259 -> sustainableconcrete | S6: =Translate!$A$257 -> Ecoinvent v3.1 | T6: =Translate!$A$260 -> ICE V3 | U6: =Translate!$A$262 -> EcoTransit | V6: =Translate!$A$265 -> GHG Protocol | X6: =Translate!$A$267 -> CO2 emissions for electricity 2017 including losses&WTT | Y6: =Translate!$A$532 -> EPA | AB6: =Translate!$A$503 -> Metric system | AC6: =Translate!$A$504 -> US units | AE6: =Translate!$A$268 -> Comments
A7: =IF(ISBLANK(H7),OFFSET(A7,-1,0),OFFSET(A7,-1,0)+1) -> 0 | C7: =Translate!$A$104 -> Materials
A8: 0 | C8: =Translate!$A$176 -> Acrylic acid | D8: =INDEX(AB8:AC8,MATCH($F$3,$AB$6:$AC$6,0)) -> t | E8: =IF(F8=H8,G8,INDEX(P8:Z8,MATCH($F8,$P$6:$Z$6,0)))/IF($F$3=$AC$6,VLOOKUP(D8,$E$410:$G$418,3,0),1) -> 1984.2799 | F8: =IF(ISBLANK(H8),INDEX(K8:N8,$D$4),H8) -> Ecoinvent v3.1 | I8: =Translate!$A$118 -> Other | J8: 0.3 | K8: =Translate!$A$257 -> Ecoinvent v3.1 | L8: =K8 -> Ecoinvent v3.1 | M8: =Translate!$A$257 -> Ecoinvent v3.1 | N8: =Translate!$A$257 -> Ecoinvent v3.1 | S8: 1984.2799 | AB8: =Translate!$A$101 -> t | AC8: =Translate!$A$520 -> lb
A9: 0 | C9: =Translate!$A$177 -> Aggregate | D9: =INDEX(AB9:AC9,MATCH($F$3,$AB$6:$AC$6,0)) -> t | E9: 4 | F9: Base carbone (v18.1) | I9: =Translate!$A$73 -> Concrete / Slurry / Grout mix | J9: 0.8 | K9: =Translate!$A$258 -> Base carbone (v18.1) | L9: =K9 -> Base carbone (v18.1) | M9: =Translate!$A$258 -> Base carbone (v18.1) | N9: =Translate!$A$260 -> ICE V3 | P9: 4 | T9: 7.47 | AB9: =Translate!$A$101 -> t | AC9: =Translate!$A$520 -> lb
A10: 0 | C10: =Translate!$A$178 -> Bentonite | D10: t | E10: 474.97792 | F10: Ecoinvent v3.1 | I10: =Translate!$A$73 -> Concrete / Slurry / Grout mix | J10: 0.3 | K10: =Translate!$A$257 -> Ecoinvent v3.1 | L10: Ecoinvent v3.1 | M10: =Translate!$A$257 -> Ecoinvent v3.1 | N10: =Translate!$A$257 -> Ecoinvent v3.1 | S10: 474.97792 | AB10: =Translate!$A$101 -> t | AC10: =Translate!$A$520 -> lb
A11: =IF(ISBLANK(H11),OFFSET(A11,-1,0),OFFSET(A11,-1,0)+1) -> 0 | C11: =Translate!$A$196 -> Synthetic polymer slurry | D11: =INDEX(AB11:AC11,MATCH($F$3,$AB$6:$AC$6,0)) -> m3 | E11: 3.6415835 | F11: =IF(ISBLANK(H11),INDEX(K11:N11,$D$4),H11) -> Ecoinvent v3.1 | I11: =Translate!$A$73 -> Concrete / Slurry / Grout mix | J11: 0.3 | K11: =Translate!$A$257 -> Ecoinvent v3.1 | L11: =K11 -> Ecoinvent v3.1 | M11: =Translate!$A$257 -> Ecoinvent v3.1 | N11: =Translate!$A$257 -> Ecoinvent v3.1 | S11: =Q30+(S25+S8)/1000 -> 3.6415835 | AB11: m3 | AC11: yd3
A12: =IF(ISBLANK(H12),OFFSET(A12,-1,0),OFFSET(A12,-1,0)+1) -> 0 | C12: =Translate!$A$197 -> Cellulose-based polymer slurry | D12: =INDEX(AB12:AC12,MATCH($F$3,$AB$6:$AC$6,0)) -> m3 | E12: 4.3341979 | F12: =IF(ISBLANK(H12),INDEX(K12:N12,$D$4),H12) -> Ecoinvent v3.1 | I12: =Translate!$A$73 -> Concrete / Slurry / Grout mix | J12: 0.3 | K12: =Translate!$A$257 -> Ecoinvent v3.1 | L12: =K12 -> Ecoinvent v3.1 | M12: =Translate!$A$257 -> Ecoinvent v3.1 | N12: =Translate!$A$257 -> Ecoinvent v3.1 | S12: =Q30+S14/1000 -> 4.3341979 | AB12: m3 | AC12: yd3
A13: 0 | C13: =Translate!$A$179 -> Calcium chloride | D13: t | E13: 493.43257 | F13: Ecoinvent v3.1 | I13: =Translate!$A$118 -> Other | J13: 0.3 | K13: =Translate!$A$257 -> Ecoinvent v3.1 | L13: Ecoinvent v3.1 | M13: =Translate!$A$257 -> Ecoinvent v3.1 | N13: =Translate!$A$257 -> Ecoinvent v3.1 | S13: 493.43257 | AB13: =Translate!$A$101 -> t | AC13: =Translate!$A$520 -> lb
A14: =IF(ISBLANK(H14),OFFSET(A14,-1,0),OFFSET(A14,-1,0)+1) -> 0 | C14: =Translate!$A$180 -> Carboxymethyl cellulose | D14: =INDEX(AB14:AC14,MATCH($F$3,$AB$6:$AC$6,0)) -> t | E14: 3990.1979 | F14: =IF(ISBLANK(H14),INDEX(K14:N14,$D$4),H14) -> Ecoinvent v3.1 | I14: =Translate!$A$118 -> Other | J14: 0.3 | K14: =Translate!$A$257 -> Ecoinvent v3.1 | L14: =K14 -> Ecoinvent v3.1 | M14: =Translate!$A$257 -> Ecoinvent v3.1 | N14: =Translate!$A$257 -> Ecoinvent v3.1 | S14: 3990.1979 | AB14: =Translate!$A$101 -> t | AC14: =Translate!$A$520 -> lb
A15: 0 | C15: =Translate!$A$181 -> CEM I | D15: t | E15: 860 | F15: sustainableconcrete | I15: =Translate!$A$73 -> Concrete / Slurry / Grout mix | J15: 0.2 | K15: =Translate!$A$259 -> sustainableconcrete | L15: sustainableconcrete | M15: =Translate!$A$258 -> Base carbone (v18.1) | N15: =Translate!$A$260 -> ICE V3 | P15: 866 | R15: 860 | S15: 877.92221 | T15: 912 | AB15: =Translate!$A$101 -> t | AC15: =Translate!$A$520 -> lb
A16: 0 | C16: =Translate!$A$182 -> GGbs | D16: t | E16: 79.6 | F16: sustainableconcrete | I16: =Translate!$A$73 -> Concrete / Slurry / Grout mix | J16: 0.3 | K16: =Translate!$A$259 -> sustainableconcrete | L16: sustainableconcrete | M16: =Translate!$A$259 -> sustainableconcrete | N16: =Translate!$A$260 -> ICE V3 | R16: 79.6 | T16: 83 | AB16: =Translate!$A$101 -> t | AC16: =Translate!$A$520 -> lb
A17: 0 | C17: =Translate!$A$183 -> Fly Ash | D17: t | E17: 0.1 | F17: sustainableconcrete | I17: =Translate!$A$73 -> Concrete / Slurry / Grout mix | J17: 0.3 | K17: =Translate!$A$259 -> sustainableconcrete | L17: sustainableconcrete | M17: =Translate!$A$259 -> sustainableconcrete | N17: =Translate!$A$260 -> ICE V3 | R17: 0.1 | T17: 8 | AB17: =Translate!$A$101 -> t | AC17: =Translate!$A$520 -> lb
A18: 0 | C18: =Translate!$A$184 -> Limestone | D18: t | E18: 8 | F18: sustainableconcrete | I18: =Translate!$A$73 -> Concrete / Slurry / Grout mix | J18: 0.3 | K18: =Translate!$A$259 -> sustainableconcrete | L18: sustainableconcrete | M18: =Translate!$A$259 -> sustainableconcrete | N18: =Translate!$A$260 -> ICE V3 | R18: 8 | T18: 90 | AB18: =Translate!$A$101 -> t | AC18: =Translate!$A$520 -> lb
A19: 0 | C19: =Translate!$A$185 -> minor additional constituent | D19: t | E19: 75 | F19: sustainableconcrete | I19: =Translate!$A$73 -> Concrete / Slurry / Grout mix | J19: 0.3 | K19: =Translate!$A$259 -> sustainableconcrete | L19: sustainableconcrete | M19: =Translate!$A$259 -> sustainableconcrete | N19: =Translate!$A$259 -> sustainableconcrete | R19: 75 | AB19: =Translate!$A$101 -> t | AC19: =Translate!$A$520 -> lb
A20: 0 | C20: =Translate!$A186 -> Chemicals inorganic | D20: t | E20: 1988.281 | F20: Ecoinvent v3.1 | I20: =Translate!$A$118 -> Other | J20: 0.3 | K20: =Translate!$A$257 -> Ecoinvent v3.1 | L20: Ecoinvent v3.1 | M20: =Translate!$A$257 -> Ecoinvent v3.1 | N20: =Translate!$A$257 -> Ecoinvent v3.1 | S20: 1988.281 | AB20: =Translate!$A$101 -> t | AC20: =Translate!$A$520 -> lb
A21: 0 | C21: =Translate!$A187 -> EPDM-rubber | D21: t | E21: 2770.4699 | F21: Ecoinvent v3.1 | I21: =Translate!$A$118 -> Other | J21: 0.3 | K21: =Translate!$A$257 -> Ecoinvent v3.1 | L21: Ecoinvent v3.1 | M21: =Translate!$A$257 -> Ecoinvent v3.1 | N21: =Translate!$A$257 -> Ecoinvent v3.1 | S21: 2770.4699 | AB21: =Translate!$A$101 -> t | AC21: =Translate!$A$520 -> lb
A22: 0 | C22: =Translate!$A188 -> Polypropylene | D22: t | E22: 2293.127 | F22: Ecoinvent v3.1 | I22: =Translate!$A$118 -> Other | J22: 0.3 | K22: =Translate!$A$257 -> Ecoinvent v3.1 | L22: Ecoinvent v3.1 | M22: =Translate!$A$257 -> Ecoinvent v3.1 | N22: =Translate!$A$257 -> Ecoinvent v3.1 | S22: 2293.127 | T22: 4980 | AB22: =Translate!$A$101 -> t | AC22: =Translate!$A$520 -> lb
A23: 0 | C23: =Translate!$A$189 -> PVC pipes | D23: t | E23: 3230 | F23: ICE V3 | I23: =Translate!$A$118 -> Other | J23: 0.3 | K23: =Translate!$A$260 -> ICE V3 | L23: ICE V3 | M23: =Translate!$A$258 -> Base carbone (v18.1) | N23: =Translate!$A$260 -> ICE V3 | P23: 1870 | T23: 3230 | AB23: =Translate!$A$101 -> t | AC23: =Translate!$A$520 -> lb
A24: 0 | C24: =Translate!$A$190 -> Sand | D24: t | E24: 6 | F24: ICE V3 | I24: =Translate!$A$73 -> Concrete / Slurry / Grout mix | J24: 0.3 | K24: =Translate!$A$260 -> ICE V3 | L24: ICE V3 | M24: =Translate!$A$260 -> ICE V3 | N24: =Translate!$A$260 -> ICE V3 | T24: 6 | AB24: =Translate!$A$101 -> t | AC24: =Translate!$A$520 -> lb
A25: 0 | C25: =Translate!$A$191 -> Sodium carbonate | D25: t | E25: 1313.3036 | F25: Ecoinvent v3.1 | I25: =Translate!$A$118 -> Other | J25: 0.3 | K25: =Translate!$A$257 -> Ecoinvent v3.1 | L25: Ecoinvent v3.1 | M25: =Translate!$A$257 -> Ecoinvent v3.1 | N25: =Translate!$A$257 -> Ecoinvent v3.1 | S25: 1313.3036 | AB25: =Translate!$A$101 -> t | AC25: =Translate!$A$520 -> lb
A26: 0 | C26: =Translate!$A$192 -> Steel sheets | D26: t | E26: 2164 | F26: Ecoinvent v3.1 | I26: =Translate!$A$138 -> Steel | J26: 0.3 | K26: =Translate!$A$257 -> Ecoinvent v3.1 | L26: Ecoinvent v3.1 | M26: =Translate!$A$258 -> Base carbone (v18.1) | N26: =Translate!$A$260 -> ICE V3 | P26: 2211 | S26: 2164 | T26: 3060 | AB26: =Translate!$A$101 -> t | AC26: =Translate!$A$520 -> lb
A27: 0 | C27: =Translate!$A$193 -> Steel rebars | D27: t | E27: 2055 | F27: Ecoinvent v3.1 | I27: =Translate!$A$138 -> Steel | J27: 0.3 | K27: =Translate!$A$257 -> Ecoinvent v3.1 | L27: Ecoinvent v3.1 | M27: =Translate!$A$258 -> Base carbone (v18.1) | N27: =Translate!$A$260 -> ICE V3 | P27: 2211 | S27: 2055 | T27: 1990 | AB27: =Translate!$A$101 -> t | AC27: =Translate!$A$520 -> lb
A28: 0 | C28: =Translate!$A$194 -> Steel tubes | D28: t | E28: 2534 | F28: Ecoinvent v3.1 | I28: =Translate!$A$138 -> Steel | J28: 0.3 | K28: =Translate!$A$257 -> Ecoinvent v3.1 | L28: Ecoinvent v3.1 | M28: =Translate!$A$258 -> Base carbone (v18.1) | N28: =Translate!$A$260 -> ICE V3 | P28: 2211 | S28: 2534 | T28: 2780 | AB28: =Translate!$A$101 -> t | AC28: =Translate!$A$520 -> lb
A29: 0 | C29: =Translate!$A$195 -> Steel wires | D29: t | E29: 2505 | F29: Ecoinvent v3.1 | I29: =Translate!$A$138 -> Steel | J29: 0.3 | K29: =Translate!$A$257 -> Ecoinvent v3.1 | L29: Ecoinvent v3.1 | M29: =Translate!$A$258 -> Base carbone (v18.1) | N29: =Translate!$A$260 -> ICE V3 | P29: 2211 | S29: 2505 | T29: 2270 | AB29: =Translate!$A$101 -> t | AC29: =Translate!$A$520 -> lb
A30: 0 | C30: =Translate!$A$198 -> Water | D30: t | E30: 0.344 | F30: Defra 2019 (v1.3) | I30: =Translate!$A$73 -> Concrete / Slurry / Grout mix | J30: 0.3 | K30: =Translate!$A$261 -> Defra 2019 (v1.3) | L30: Defra 2019 (v1.3) | M30: =Translate!$A$261 -> Defra 2019 (v1.3) | N30: =Translate!$A$261 -> Defra 2019 (v1.3) | Q30: 0.344 | AB30: =Translate!$A$101 -> t | AC30: =Translate!$A$520 -> lb
A31: =IF(AND(ISBLANK(C31),ISBLANK(G31)),OFFSET(A31,-1,0),OFFSET(A31,-1,0)+1) -> 0 | E31: =G31 -> 0 | F31: 0 | I31: =Translate!$A$118 -> Other
A32: =IF(AND(ISBLANK(C32),ISBLANK(G32)),OFFSET(A32,-1,0),OFFSET(A32,-1,0)+1) -> 0 | E32: 0 | F32: 0 | I32: =Translate!$A$118 -> Other
A33: =IF(AND(ISBLANK(C33),ISBLANK(G33)),OFFSET(A33,-1,0),OFFSET(A33,-1,0)+1) -> 0 | E33: 0 | F33: 0 | I33: =Translate!$A$118 -> Other
A34: =IF(AND(ISBLANK(C34),ISBLANK(G34)),OFFSET(A34,-1,0),OFFSET(A34,-1,0)+1) -> 0 | E34: 0 | F34: 0 | I34: =Translate!$A$118 -> Other
A35: =IF(ISBLANK(H35),OFFSET(A35,-1,0),OFFSET(A35,-1,0)+1) -> 0 | C35: =C26&Translate!$A$199 -> Steel sheets - recycled | D35: =INDEX(AB35:AC35,MATCH($F$3,$AB$6:$AC$6,0)) -> t | E35: =IF(F35=H35,G35,INDEX(P35:Z35,MATCH($F35,$P$6:$Z$6,0)))/IF($F$3=$AC$6,VLOOKUP(D35,$E$410:$G$418,3,0),1) -> 673 | F35: =IF(ISBLANK(H35),INDEX(K35:N35,$D$4),H35) -> Ecoinvent v3.1 | I35: =Translate!$A$138 -> Steel | J35: 0.3 | K35: =Translate!$A$257 -> Ecoinvent v3.1 | L35: =Translate!$A$257 -> Ecoinvent v3.1 | M35: =Translate!$A$258 -> Base carbone (v18.1) | N35: =Translate!$A$260 -> ICE V3 | P35: 938 | S35: 673 | T35: =T26 -> 3060 | AB35: =Translate!$A$101 -> t | AC35: =Translate!$A$520 -> lb
A36: 0 | C36: =C27&Translate!$A$199 -> Steel rebars - recycled | D36: =INDEX(AB36:AC36,MATCH($F$3,$AB$6:$AC$6,0)) -> t | E36: =IF(F36=H36,G36,INDEX(P36:Z36,MATCH($F36,$P$6:$Z$6,0)))/IF($F$3=$AC$6,VLOOKUP(D36,$E$410:$G$418,3,0),1) -> 565 | F36: =IF(ISBLANK(H36),INDEX(K36:N36,$D$4),H36) -> Ecoinvent v3.1 | I36: =Translate!$A$138 -> Steel | J36: 0.3 | K36: =Translate!$A$257 -> Ecoinvent v3.1 | L36: =Translate!$A$257 -> Ecoinvent v3.1 | M36: =Translate!$A$258 -> Base carbone (v18.1) | N36: =Translate!$A$260 -> ICE V3 | P36: 938 | S36: 565 | T36: =T27 -> 1990 | AB36: =Translate!$A$101 -> t | AC36: =Translate!$A$520 -> lb
A37: 0 | C37: =C28&Translate!$A$199 -> Steel tubes - recycled | D37: =INDEX(AB37:AC37,MATCH($F$3,$AB$6:$AC$6,0)) -> t | E37: =IF(F37=H37,G37,INDEX(P37:Z37,MATCH($F37,$P$6:$Z$6,0)))/IF($F$3=$AC$6,VLOOKUP(D37,$E$410:$G$418,3,0),1) -> 1044 | F37: =IF(ISBLANK(H37),INDEX(K37:N37,$D$4),H37) -> Ecoinvent v3.1 | I37: =Translate!$A$138 -> Steel | J37: 0.3 | K37: =Translate!$A$257 -> Ecoinvent v3.1 | L37: =Translate!$A$257 -> Ecoinvent v3.1 | M37: =Translate!$A$258 -> Base carbone (v18.1) | N37: =Translate!$A$260 -> ICE V3 | P37: 938 | S37: 1044 | T37: =T28 -> 2780 | AB37: =Translate!$A$101 -> t | AC37: =Translate!$A$520 -> lb
A38: 0 | C38: =C29&Translate!$A$199 -> Steel wires - recycled | D38: =INDEX(AB38:AC38,MATCH($F$3,$AB$6:$AC$6,0)) -> t | E38: =IF(F38=H38,G38,INDEX(P38:Z38,MATCH($F38,$P$6:$Z$6,0)))/IF($F$3=$AC$6,VLOOKUP(D38,$E$410:$G$418,3,0),1) -> 1015 | F38: =IF(ISBLANK(H38),INDEX(K38:N38,$D$4),H38) -> Ecoinvent v3.1 | I38: =Translate!$A$138 -> Steel | J38: 0.3 | K38: =Translate!$A$257 -> Ecoinvent v3.1 | L38: =Translate!$A$257 -> Ecoinvent v3.1 | M38: =Translate!$A$258 -> Base carbone (v18.1) | N38: =Translate!$A$260 -> ICE V3 | P38: 938 | S38: 1015 | T38: =T29 -> 2270 | AB38: =Translate!$A$101 -> t | AC38: =Translate!$A$520 -> lb
A39: 0
A40: 0 | C40: =Translate!$A$105 -> Energy
A41: 0 | C41: =Translate!$A$200 -> Diesel | D41: =INDEX(AB41:AC41,MATCH($F$3,$AB$6:$AC$6,0)) -> liter | E41: =IF(F41=H41,G41,INDEX(P41:Z41,MATCH($F41,$P$6:$Z$6,0)))/IF($F$3=$AC$6,VLOOKUP(D41,$E$410:$G$418,3,0),1) -> 3.2112 | F41: =IF(ISBLANK(H41),INDEX(K41:N41,$D$4),H41) -> Defra 2019 (v1.3) | J41: 0.05 | K41: =Translate!$A$261 -> Defra 2019 (v1.3) | L41: =Translate!$A$532 -> EPA | M41: =Translate!$A$258 -> Base carbone (v18.1) | N41: =Translate!$A$261 -> Defra 2019 (v1.3) | P41: 3.17 | Q41: =2.59411+0.61709 -> 3.2112 | V41: 3 | Y41: =10.21/3.79 -> 2.693931398 | AB41: =Translate!$A$238 -> liter | AC41: =Translate!$A$523 -> gallon
A42: 0 | C42: =Translate!$A$201 -> Heavy fuel oil | D42: =INDEX(AB42:AC42,MATCH($F$3,$AB$6:$AC$6,0)) -> liter | E42: =IF(F42=H42,G42,INDEX(P42:Z42,MATCH($F42,$P$6:$Z$6,0)))/IF($F$3=$AC$6,VLOOKUP(D42,$E$410:$G$418,3,0),1) -> 3.78229 | F42: =IF(ISBLANK(H42),INDEX(K42:N42,$D$4),H42) -> Defra 2019 (v1.3) | J42: 0.05 | K42: =Translate!$A$261 -> Defra 2019 (v1.3) | L42: =Translate!$A$532 -> EPA | M42: =Translate!$A$258 -> Base carbone (v18.1) | N42: =Translate!$A$261 -> Defra 2019 (v1.3) | P42: 3.249 | Q42: =3.17966+0.60263 -> 3.78229 | V42: 3 | Y42: =11.09/3.79 -> 2.926121372 | AB42: =Translate!$A$238 -> liter | AC42: =Translate!$A$523 -> gallon
A43: =IF(AND(ISBLANK(C43),ISBLANK(G43)),OFFSET(A43,-1,0),OFFSET(A43,-1,0)+1) -> 0 | E43: =G43 -> 0 | F43: =H43 -> 0
A44: =IF(AND(ISBLANK(C44),ISBLANK(G44)),OFFSET(A44,-1,0),OFFSET(A44,-1,0)+1) -> 0 | E44: =G44 -> 0 | F44: =H44 -> 0
C45: =Translate!$A$202 -> Electricity | J45: 0.1
C46: Electricity transport and distribution losses | D46: 0.03 | J46: 0.1 | AB46: 0.03
A47: =IF(ISBLANK(H47),OFFSET(A47,-1,0),OFFSET(A47,-1,0)+1) -> 0 | C47: Electricity - Austria | D47: =INDEX(AB47:AC47,MATCH($F$3,$AB$6:$AC$6,0)) -> kWh | E47: =IF(F47=H47,G47,INDEX(P47:AD47,MATCH($F47,$P$6:$AD$6,0))) -> 0.2249678978 | F47: =IF(ISBLANK(H47),INDEX(K47:N47,$D$4),H47) -> CO2 emissions for electricity 2017 including losses&WTT | J47: 0.1 | K47: =Translate!$A$267 -> CO2 emissions for electricity 2017 including losses&WTT | L47: =Translate!$A$267 -> CO2 emissions for electricity 2017 including losses&WTT | M47: =Translate!$A$267 -> CO2 emissions for electricity 2017 including losses&WTT | N47: =Translate!$A$267 -> CO2 emissions for electricity 2017 including losses&WTT | X47: 0.2249678978 | AB47: kWh | AC47: kWh
A48: 0 | C48: Electricity - Belgium | D48: kWh | E48: 0.2457483234 | F48: CO2 emissions for electricity 2017 including losses&WTT | J48: 0.1 | K48: =Translate!$A$267 -> CO2 emissions for electricity 2017 including losses&WTT | L48: =Translate!$A$267 -> CO2 emissions for electricity 2017 including losses&WTT | M48: =Translate!$A$267 -> CO2 emissions for electricity 2017 including losses&WTT | N48: =Translate!$A$267 -> CO2 emissions for electricity 2017 including losses&WTT | X48: 0.2457483234 | AB48: kWh | AC48: kWh
A49: 0 | C49: Electricity - Czech Republic | D49: kWh | E49: 0.5958142153 | F49: CO2 emissions for electricity 2017 including losses&WTT | J49: 0.1 | K49: =Translate!$A$267 -> CO2 emissions for electricity 2017 including losses&WTT | L49: =Translate!$A$267 -> CO2 emissions for electricity 2017 including losses&WTT | M49: =Translate!$A$267 -> CO2 emissions for electricity 2017 including losses&WTT | N49: =Translate!$A$267 -> CO2 emissions for electricity 2017 including losses&WTT | X49: 0.5958142153 | AB49: kWh | AC49: kWh
A50: 0 | C50: Electricity - Denmark | D50: kWh | E50: 0.2660997644 | F50: CO2 emissions for electricity 2017 including losses&WTT | J50: 0.1 | K50: =Translate!$A$267 -> CO2 emissions for electricity 2017 including losses&WTT | L50: =Translate!$A$267 -> CO2 emissions for electricity 2017 including losses&WTT | M50: =Translate!$A$267 -> CO2 emissions for electricity 2017 including losses&WTT | N50: =Translate!$A$267 -> CO2 emissions for electricity 2017 including losses&WTT | X50: 0.2660997644 | AB50: kWh | AC50: kWh
A51: 0 | C51: Electricity - Estonia | D51: kWh | E51: 1.014986492 | F51: CO2 emissions for electricity 2017 including losses&WTT | J51: 0.1 | K51: =Translate!$A$267 -> CO2 emissions for electricity 2017 including losses&WTT | L51: =Translate!$A$267 -> CO2 emissions for electricity 2017 including losses&WTT | M51: =Translate!$A$267 -> CO2 emissions for electricity 2017 including losses&WTT | N51: =Translate!$A$267 -> CO2 emissions for electricity 2017 including losses&WTT | X51: 1.014986492 | AB51: kWh | AC51: kWh
A52: 0 | C52: Electricity - Finland | D52: kWh | E52: 0.1923141036 | F52: CO2 emissions for electricity 2017 including losses&WTT | J52: 0.1 | K52: =Translate!$A$267 -> CO2 emissions for electricity 2017 including losses&WTT | L52: =Translate!$A$267 -> CO2 emissions for electricity 2017 including losses&WTT | M52: =Translate!$A$267 -> CO2 emissions for electricity 2017 including losses&WTT | N52: =Translate!$A$267 -> CO2 emissions for electricity 2017 including losses&WTT | X52: 0.1923141036 | AB52: kWh | AC52: kWh
A53: 0 | C53: Electricity - France | D53: kWh | E53: 0.0571 | F53: CO2 emissions for electricity 2017 including losses&WTT | J53: 0.1 | K53: =Translate!$A$267 -> CO2 emissions for electricity 2017 including losses&WTT | L53: =Translate!$A$267 -> CO2 emissions for electricity 2017 including losses&WTT | M53: =Translate!$A$267 -> CO2 emissions for electricity 2017 including losses&WTT | N53: =Translate!$A$267 -> CO2 emissions for electricity 2017 including losses&WTT | X53: 0.0571 | AB53: kWh | AC53: kWh
A54: 0 | C54: Electricity - Germany | D54: kWh | E54: 0.5195128827 | F54: CO2 emissions for electricity 2017 including losses&WTT | J54: 0.1 | K54: =Translate!$A$267 -> CO2 emissions for electricity 2017 including losses&WTT | L54: =Translate!$A$267 -> CO2 emissions for electricity 2017 including losses&WTT | M54: =Translate!$A$267 -> CO2 emissions for electricity 2017 including losses&WTT | N54: =Translate!$A$267 -> CO2 emissions for electricity 2017 including losses&WTT | X54: 0.5195128827 | AB54: kWh | AC54: kWh
A55: 0 | C55: Electricity - Greece | D55: kWh | E55: 0.6187791373 | F55: CO2 emissions for electricity 2017 including losses&WTT | J55: 0.1 | K55: =Translate!$A$267 -> CO2 emissions for electricity 2017 including losses&WTT | L55: =Translate!$A$267 -> CO2 emissions for electricity 2017 including losses&WTT | M55: =Translate!$A$267 -> CO2 emissions for electricity 2017 including losses&WTT | N55: =Translate!$A$267 -> CO2 emissions for electricity 2017 including losses&WTT | X55: 0.6187791373 | AB55: kWh | AC55: kWh
A56: 0 | C56: Electricity - Hungary | D56: kWh | E56: 0.3513977723 | F56: CO2 emissions for electricity 2017 including losses&WTT | J56: 0.1 | K56: =Translate!$A$267 -> CO2 emissions for electricity 2017 including losses&WTT | L56: =Translate!$A$267 -> CO2 emissions for electricity 2017 including losses&WTT | M56: =Translate!$A$267 -> CO2 emissions for electricity 2017 including losses&WTT | N56: =Translate!$A$267 -> CO2 emissions for electricity 2017 including losses&WTT | X56: 0.3513977723 | AB56: kWh | AC56: kWh
A57: 0 | C57: Electricity - Iceland | D57: kWh | E57: 0.02609651749 | F57: CO2 emissions for electricity 2017 including losses&WTT | J57: 0.1 | K57: =Translate!$A$267 -> CO2 emissions for electricity 2017 including losses&WTT | L57: =Translate!$A$267 -> CO2 emissions for electricity 2017 including losses&WTT | M57: =Translate!$A$267 -> CO2 emissions for electricity 2017 including losses&WTT | N57: =Translate!$A$267 -> CO2 emissions for electricity 2017 including losses&WTT | X57: 0.02609651749 | AB57: kWh | AC57: kWh
A58: 0 | C58: Electricity - Ireland | D58: kWh | E58: 0.4819375399 | F58: CO2 emissions for electricity 2017 including losses&WTT | J58: 0.1 | K58: =Translate!$A$267 -> CO2 emissions for electricity 2017 including losses&WTT | L58: =Translate!$A$267 -> CO2 emissions for electricity 2017 including losses&WTT | M58: =Translate!$A$267 -> CO2 emissions for electricity 2017 including losses&WTT | N58: =Translate!$A$267 -> CO2 emissions for electricity 2017 including losses&WTT | X58: 0.4819375399 | AB58: kWh | AC58: kWh
A59: 0 | C59: Electricity - Italy | D59: kWh | E59: 0.4350583463 | F59: CO2 emissions for electricity 2017 including losses&WTT | J59: 0.1 | K59: =Translate!$A$267 -> CO2 emissions for electricity 2017 including losses&WTT | L59: =Translate!$A$267 -> CO2 emissions for electricity 2017 including losses&WTT | M59: =Translate!$A$267 -> CO2 emissions for electricity 2017 including losses&WTT | N59: =Translate!$A$267 -> CO2 emissions for electricity 2017 including losses&WTT | X59: 0.4350583463 | AB59: kWh | AC59: kWh
A60: 0 | C60: Electricity - Luxembourg | D60: kWh | E60: 0.2476234927 | F60: CO2 emissions for electricity 2017 including losses&WTT | J60: 0.1 | K60: =Translate!$A$267 -> CO2 emissions for electricity 2017 including losses&WTT | L60: =Translate!$A$267 -> CO2 emissions for electricity 2017 including losses&WTT | M60: =Translate!$A$267 -> CO2 emissions for electricity 2017 including losses&WTT | N60: =Translate!$A$267 -> CO2 emissions for electricity 2017 including losses&WTT | X60: 0.2476234927 | AB60: kWh | AC60: kWh
A61: 0 | C61: Electricity - Netherlands | D61: kWh | E61: 0.5519719866 | F61: CO2 emissions for electricity 2017 including losses&WTT | J61: 0.1 | K61: =Translate!$A$267 -> CO2 emissions for electricity 2017 including losses&WTT | L61: =Translate!$A$267 -> CO2 emissions for electricity 2017 including losses&WTT | M61: =Translate!$A$267 -> CO2 emissions for electricity 2017 including losses&WTT | N61: =Translate!$A$267 -> CO2 emissions for electricity 2017 including losses&WTT | X61: 0.5519719866 | AB61: kWh | AC61: kWh
A62: 0 | C62: Electricity - Norway | D62: kWh | E62: 0.03105183123 | F62: CO2 emissions for electricity 2017 including losses&WTT | J62: 0.1 | K62: =Translate!$A$267 -> CO2 emissions for electricity 2017 including losses&WTT | L62: =Translate!$A$267 -> CO2 emissions for electricity 2017 including losses&WTT | M62: =Translate!$A$267 -> CO2 emissions for electricity 2017 including losses&WTT | N62: =Translate!$A$267 -> CO2 emissions for electricity 2017 including losses&WTT | X62: 0.03105183123 | AB62: kWh | AC62: kWh
A63: 0 | C63: Electricity - Poland | D63: kWh | E63: 0.8398863425 | F63: CO2 emissions for electricity 2017 including losses&WTT | J63: 0.1 | K63: =Translate!$A$267 -> CO2 emissions for electricity 2017 including losses&WTT | L63: =Translate!$A$267 -> CO2 emissions for electricity 2017 including losses&WTT | M63: =Translate!$A$267 -> CO2 emissions for electricity 2017 including losses&WTT | N63: =Translate!$A$267 -> CO2 emissions for electricity 2017 including losses&WTT | X63: 0.8398863425 | AB63: kWh | AC63: kWh
A64: 0 | C64: Electricity - Portugal | D64: kWh | E64: 0.4671676861 | F64: CO2 emissions for electricity 2017 including losses&WTT | J64: 0.1 | K64: =Translate!$A$267 -> CO2 emissions for electricity 2017 including losses&WTT | L64: =Translate!$A$267 -> CO2 emissions for electricity 2017 including losses&WTT | M64: =Translate!$A$267 -> CO2 emissions for electricity 2017 including losses&WTT | N64: =Translate!$A$267 -> CO2 emissions for electricity 2017 including losses&WTT | X64: 0.4671676861 | AB64: kWh | AC64: kWh
A65: 0 | C65: Electricity - Slovak Republic | D65: kWh | E65: 0.2151254142 | F65: CO2 emissions for electricity 2017 including losses&WTT | J65: 0.1 | K65: =Translate!$A$267 -> CO2 emissions for electricity 2017 including losses&WTT | L65: =Translate!$A$267 -> CO2 emissions for electricity 2017 including losses&WTT | M65: =Translate!$A$267 -> CO2 emissions for electricity 2017 including losses&WTT | N65: =Translate!$A$267 -> CO2 emissions for electricity 2017 including losses&WTT | X65: 0.2151254142 | AB65: kWh | AC65: kWh
A66: 0 | C66: Electricity - Slovenia | D66: kWh | E66: 0.3172832415 | F66: CO2 emissions for electricity 2017 including losses&WTT | J66: 0.1 | K66: =Translate!$A$267 -> CO2 emissions for electricity 2017 including losses&WTT | L66: =Translate!$A$267 -> CO2 emissions for electricity 2017 including losses&WTT | M66: =Translate!$A$267 -> CO2 emissions for electricity 2017 including losses&WTT | N66: =Translate!$A$267 -> CO2 emissions for electricity 2017 including losses&WTT | X66: 0.3172832415 | AB66: kWh | AC66: kWh
A67: 0 | C67: Electricity - Spain | D67: kWh | E67: 0.3772120827 | F67: CO2 emissions for electricity 2017 including losses&WTT | J67: 0.1 | K67: =Translate!$A$267 -> CO2 emissions for electricity 2017 including losses&WTT | L67: =Translate!$A$267 -> CO2 emissions for electricity 2017 including losses&WTT | M67: =Translate!$A$267 -> CO2 emissions for electricity 2017 including losses&WTT | N67: =Translate!$A$267 -> CO2 emissions for electricity 2017 including losses&WTT | X67: 0.3772120827 | AB67: kWh | AC67: kWh
A68: 0 | C68: Electricity - Sweden | D68: kWh | E68: 0.06142238091 | F68: CO2 emissions for electricity 2017 including losses&WTT | J68: 0.1 | K68: =Translate!$A$267 -> CO2 emissions for electricity 2017 including losses&WTT | L68: =Translate!$A$267 -> CO2 emissions for electricity 2017 including losses&WTT | M68: =Translate!$A$267 -> CO2 emissions for electricity 2017 including losses&WTT | N68: =Translate!$A$267 -> CO2 emissions for electricity 2017 including losses&WTT | X68: 0.06142238091 | AB68: kWh | AC68: kWh
A69: 0 | C69: Electricity - Switzerland | D69: kWh | E69: 0.07599719874 | F69: CO2 emissions for electricity 2017 including losses&WTT | J69: 0.1 | K69: =Translate!$A$267 -> CO2 emissions for electricity 2017 including losses&WTT | L69: =Translate!$A$267 -> CO2 emissions for electricity 2017 including losses&WTT | M69: =Translate!$A$267 -> CO2 emissions for electricity 2017 including losses&WTT | N69: =Translate!$A$267 -> CO2 emissions for electricity 2017 including losses&WTT | X69: 0.07599719874 | AB69: kWh | AC69: kWh
A70: 0 | C70: Electricity - Turkey | D70: kWh | E70: 0.5868695744 | F70: CO2 emissions for electricity 2017 including losses&WTT | J70: 0.1 | K70: =Translate!$A$267 -> CO2 emissions for electricity 2017 including losses&WTT | L70: =Translate!$A$267 -> CO2 emissions for electricity 2017 including losses&WTT | M70: =Translate!$A$267 -> CO2 emissions for electricity 2017 including losses&WTT | N70: =Translate!$A$267 -> CO2 emissions for electricity 2017 including losses&WTT | X70: 0.5868695744 | AB70: kWh | AC70: kWh
A71: 0 | C71: Electricity - United Kingdom | D71: kWh | E71: 0.3500933812 | F71: CO2 emissions for electricity 2017 including losses&WTT | J71: 0.1 | K71: =Translate!$A$267 -> CO2 emissions for electricity 2017 including losses&WTT | L71: =Translate!$A$267 -> CO2 emissions for electricity 2017 including losses&WTT | M71: =Translate!$A$267 -> CO2 emissions for electricity 2017 including losses&WTT | N71: =Translate!$A$267 -> CO2 emissions for electricity 2017 including losses&WTT | X71: 0.3500933812 | AB71: kWh | AC71: kWh
A72: 0 | C72: Electricity - Albania | D72: kWh | E72: 0.01900640742 | F72: CO2 emissions for electricity 2017 including losses&WTT | J72: 0.1 | K72: =Translate!$A$267 -> CO2 emissions for electricity 2017 including losses&WTT | L72: =Translate!$A$267 -> CO2 emissions for electricity 2017 including losses&WTT | M72: =Translate!$A$267 -> CO2 emissions for electricity 2017 including losses&WTT | N72: =Translate!$A$267 -> CO2 emissions for electricity 2017 including losses&WTT | X72: 0.01900640742 | AB72: kWh | AC72: kWh
A73: 0 | C73: Electricity - Armenia | D73: kWh | E73: 0.217290188 | F73: CO2 emissions for electricity 2017 including losses&WTT | J73: 0.1 | K73: =Translate!$A$267 -> CO2 emissions for electricity 2017 including losses&WTT | L73: =Translate!$A$267 -> CO2 emissions for electricity 2017 including losses&WTT | M73: =Translate!$A$267 -> CO2 emissions for electricity 2017 including losses&WTT | N73: =Translate!$A$267 -> CO2 emissions for electricity 2017 including losses&WTT | X73: 0.217290188 | AB73: kWh | AC73: kWh
A74: 0 | C74: Electricity - Azerbaijan | D74: kWh | E74: 0.622549237 | F74: CO2 emissions for electricity 2017 including losses&WTT | J74: 0.1 | K74: =Translate!$A$267 -> CO2 emissions for electricity 2017 including losses&WTT | L74: =Translate!$A$267 -> CO2 emissions for electricity 2017 including losses&WTT | M74: =Translate!$A$267 -> CO2 emissions for electricity 2017 including losses&WTT | N74: =Translate!$A$267 -> CO2 emissions for electricity 2017 including losses&WTT | X74: 0.622549237 | AB74: kWh | AC74: kWh
A75: 0 | C75: Electricity - Belarus | D75: kWh | E75: 0.4922920035 | F75: CO2 emissions for electricity 2017 including losses&WTT | J75: 0.1 | K75: =Translate!$A$267 -> CO2 emissions for electricity 2017 including losses&WTT | L75: =Translate!$A$267 -> CO2 emissions for electricity 2017 including losses&WTT | M75: =Translate!$A$267 -> CO2 emissions for electricity 2017 including losses&WTT | N75: =Translate!$A$267 -> CO2 emissions for electricity 2017 including losses&WTT | X75: 0.4922920035 | AB75: kWh | AC75: kWh
A76: 0 | C76: Electricity - Bosnia and Herzegovina | D76: kWh | E76: 0.9895834165 | F76: CO2 emissions for electricity 2017 including losses&WTT | J76: 0.1 | K76: =Translate!$A$267 -> CO2 emissions for electricity 2017 including losses&WTT | L76: =Translate!$A$267 -> CO2 emissions for electricity 2017 including losses&WTT | M76: =Translate!$A$267 -> CO2 emissions for electricity 2017 including losses&WTT | N76: =Translate!$A$267 -> CO2 emissions for electricity 2017 including losses&WTT | X76: 0.9895834165 | AB76: kWh | AC76: kWh
A77: 0 | C77: Electricity - Bulgaria | D77: kWh | E77: 0.6081585897 | F77: CO2 emissions for electricity 2017 including losses&WTT | J77: 0.1 | K77: =Translate!$A$267 -> CO2 emissions for electricity 2017 including losses&WTT | L77: =Translate!$A$267 -> CO2 emissions for electricity 2017 including losses&WTT | M77: =Translate!$A$267 -> CO2 emissions for electricity 2017 including losses&WTT | N77: =Translate!$A$267 -> CO2 emissions for electricity 2017 including losses&WTT | X77: 0.6081585897 | AB77: kWh | AC77: kWh
A78: 0 | C78: Electricity - Croatia | D78: kWh | E78: 0.2813030207 | F78: CO2 emissions for electricity 2017 including losses&WTT | J78: 0.1 | K78: =Translate!$A$267 -> CO2 emissions for electricity 2017 including losses&WTT | L78: =Translate!$A$267 -> CO2 emissions for electricity 2017 including losses&WTT | M78: =Translate!$A$267 -> CO2 emissions for electricity 2017 including losses&WTT | N78: =Translate!$A$267 -> CO2 emissions for electricity 2017 including losses&WTT | X78: 0.2813030207 | AB78: kWh | AC78: kWh
A79: =IF(ISBLANK(H79),OFFSET(A79,-1,0),OFFSET(A79,-1,0)+1) -> 0 | C79: Electricity - Cyprus | D79: kWh | E79: =IF(F79=H79,G79,INDEX(P79:AD79,MATCH($F79,$P$6:$AD$6,0))) -> 0.796664948 | F79: =IF(ISBLANK(H79),INDEX(K79:N79,$D$4),H79) -> CO2 emissions for electricity 2017 including losses&WTT | J79: 0.1 | K79: =Translate!$A$267 -> CO2 emissions for electricity 2017 including losses&WTT | L79: =Translate!$A$267 -> CO2 emissions for electricity 2017 including losses&WTT | M79: =Translate!$A$267 -> CO2 emissions for electricity 2017 including losses&WTT | N79: =Translate!$A$267 -> CO2 emissions for electricity 2017 including losses&WTT | X79: 0.796664948 | AB79: kWh | AC79: kWh
A80: 0 | C80: Electricity - Georgia | D80: kWh | E80: 0.1331292863 | F80: CO2 emissions for electricity 2017 including losses&WTT | J80: 0.1 | K80: =Translate!$A$267 -> CO2 emissions for electricity 2017 including losses&WTT | L80: =Translate!$A$267 -> CO2 emissions for electricity 2017 including losses&WTT | M80: =Translate!$A$267 -> CO2 emissions for electricity 2017 including losses&WTT | N80: =Translate!$A$267 -> CO2 emissions for electricity 2017 including losses&WTT | X80: 0.1331292863 | AB80: kWh | AC80: kWh
A81: 0 | C81: Electricity - Gibraltar | D81: kWh | E81: 0.9082 | F81: CO2 emissions for electricity 2017 including losses&WTT | J81: 0.1 | K81: =Translate!$A$267 -> CO2 emissions for electricity 2017 including losses&WTT | L81: =Translate!$A$267 -> CO2 emissions for electricity 2017 including losses&WTT | M81: =Translate!$A$267 -> CO2 emissions for electricity 2017 including losses&WTT | N81: =Translate!$A$267 -> CO2 emissions for electricity 2017 including losses&WTT | X81: 0.9082 | AB81: kWh | AC81: kWh
A82: 0 | C82: Electricity - Kazakhstan | D82: kWh | E82: 0.7384373478 | F82: CO2 emissions for electricity 2017 including losses&WTT | J82: 0.1 | K82: =Translate!$A$267 -> CO2 emissions for electricity 2017 including losses&WTT | L82: =Translate!$A$267 -> CO2 emissions for electricity 2017 including losses&WTT | M82: =Translate!$A$267 -> CO2 emissions for electricity 2017 including losses&WTT | N82: =Translate!$A$267 -> CO2 emissions for electricity 2017 including losses&WTT | X82: 0.7384373478 | AB82: kWh | AC82: kWh
A83: 0 | C83: Electricity - Kyrgyzstan | D83: kWh | E83: 0.08493452588 | F83: CO2 emissions for electricity 2017 including losses&WTT | J83: 0.1 | K83: =Translate!$A$267 -> CO2 emissions for electricity 2017 including losses&WTT | L83: =Translate!$A$267 -> CO2 emissions for electricity 2017 including losses&WTT | M83: =Translate!$A$267 -> CO2 emissions for electricity 2017 including losses&WTT | N83: =Translate!$A$267 -> CO2 emissions for electricity 2017 including losses&WTT | X83: 0.08493452588 | AB83: kWh | AC83: kWh
A84: 0 | C84: Electricity - Latvia | D84: kWh | E84: 0.1455422122 | F84: CO2 emissions for electricity 2017 including losses&WTT | J84: 0.1 | K84: =Translate!$A$267 -> CO2 emissions for electricity 2017 including losses&WTT | L84: =Translate!$A$267 -> CO2 emissions for electricity 2017 including losses&WTT | M84: =Translate!$A$267 -> CO2 emissions for electricity 2017 including losses&WTT | N84: =Translate!$A$267 -> CO2 emissions for electricity 2017 including losses&WTT | X84: 0.1455422122 | AB84: kWh | AC84: kWh
A85: 0 | C85: Electricity - Lithuania | D85: kWh | E85: 0.1655529836 | F85: CO2 emissions for electricity 2017 including losses&WTT | J85: 0.1 | K85: =Translate!$A$267 -> CO2 emissions for electricity 2017 including losses&WTT | L85: =Translate!$A$267 -> CO2 emissions for electricity 2017 including losses&WTT | M85: =Translate!$A$267 -> CO2 emissions for electricity 2017 including losses&WTT | N85: =Translate!$A$267 -> CO2 emissions for electricity 2017 including losses&WTT | X85: 0.1655529836 | AB85: kWh | AC85: kWh
A86: 0 | C86: Electricity - Macedonia | D86: kWh | E86: 0.8833317857 | F86: CO2 emissions for electricity 2017 including losses&WTT | J86: 0.1 | K86: =Translate!$A$267 -> CO2 emissions for electricity 2017 including losses&WTT | L86: =Translate!$A$267 -> CO2 emissions for electricity 2017 including losses&WTT | M86: =Translate!$A$267 -> CO2 emissions for electricity 2017 including losses&WTT | N86: =Translate!$A$267 -> CO2 emissions for electricity 2017 including losses&WTT | X86: 0.8833317857 | AB86: kWh | AC86: kWh
A87: 0 | C87: Electricity - Malta | D87: kWh | E87: 0.5426911854 | F87: CO2 emissions for electricity 2017 including losses&WTT | J87: 0.1 | K87: =Translate!$A$267 -> CO2 emissions for electricity 2017 including losses&WTT | L87: =Translate!$A$267 -> CO2 emissions for electricity 2017 including losses&WTT | M87: =Translate!$A$267 -> CO2 emissions for electricity 2017 including losses&WTT | N87: =Translate!$A$267 -> CO2 emissions for electricity 2017 including losses&WTT | X87: 0.5426911854 | AB87: kWh | AC87: kWh
A88: 0 | C88: Electricity - Republic of Moldova | D88: kWh | E88: 0.6150466264 | F88: CO2 emissions for electricity 2017 including losses&WTT | J88: 0.1 | K88: =Translate!$A$267 -> CO2 emissions for electricity 2017 including losses&WTT | L88: =Translate!$A$267 -> CO2 emissions for electricity 2017 including losses&WTT | M88: =Translate!$A$267 -> CO2 emissions for electricity 2017 including losses&WTT | N88: =Translate!$A$267 -> CO2 emissions for electricity 2017 including losses&WTT | X88: 0.6150466264 | AB88: kWh | AC88: kWh
A89: 0 | C89: Electricity - Romania | D89: kWh | E89: 0.4316653135 | F89: CO2 emissions for electricity 2017 including losses&WTT | J89: 0.1 | K89: =Translate!$A$267 -> CO2 emissions for electricity 2017 including losses&WTT | L89: =Translate!$A$267 -> CO2 emissions for electricity 2017 including losses&WTT | M89: =Translate!$A$267 -> CO2 emissions for electricity 2017 including losses&WTT | N89: =Translate!$A$267 -> CO2 emissions for electricity 2017 including losses&WTT | X89: 0.4316653135 | AB89: kWh | AC89: kWh
A90: 0 | C90: Electricity - Russian Federation | D90: kWh | E90: 0.4501242867 | F90: CO2 emissions for electricity 2017 including losses&WTT | J90: 0.1 | K90: =Translate!$A$267 -> CO2 emissions for electricity 2017 including losses&WTT | L90: =Translate!$A$267 -> CO2 emissions for electricity 2017 including losses&WTT | M90: =Translate!$A$267 -> CO2 emissions for electricity 2017 including losses&WTT | N90: =Translate!$A$267 -> CO2 emissions for electricity 2017 including losses&WTT | X90: 0.4501242867 | AB90: kWh | AC90: kWh
A91: 0 | C91: Electricity - Serbia | D91: kWh | E91: 0.9069473485 | F91: CO2 emissions for electricity 2017 including losses&WTT | J91: 0.1 | K91: =Translate!$A$267 -> CO2 emissions for electricity 2017 including losses&WTT | L91: =Translate!$A$267 -> CO2 emissions for electricity 2017 including losses&WTT | M91: =Translate!$A$267 -> CO2 emissions for electricity 2017 including losses&WTT | N91: =Translate!$A$267 -> CO2 emissions for electricity 2017 including losses&WTT | X91: 0.9069473485 | AB91: kWh | AC91: kWh
A92: 0 | C92: Electricity - Tajikistan | D92: kWh | E92: 0.07278267638 | F92: CO2 emissions for electricity 2017 including losses&WTT | J92: 0.1 | K92: =Translate!$A$267 -> CO2 emissions for electricity 2017 including losses&WTT | L92: =Translate!$A$267 -> CO2 emissions for electricity 2017 including losses&WTT | M92: =Translate!$A$267 -> CO2 emissions for electricity 2017 including losses&WTT | N92: =Translate!$A$267 -> CO2 emissions for electricity 2017 including losses&WTT | X92: 0.07278267638 | AB92: kWh | AC92: kWh
A93: 0 | C93: Electricity - Turkmenistan | D93: kWh | E93: 1.1052 | F93: CO2 emissions for electricity 2017 including losses&WTT | J93: 0.1 | K93: =Translate!$A$267 -> CO2 emissions for electricity 2017 including losses&WTT | L93: =Translate!$A$267 -> CO2 emissions for electricity 2017 including losses&WTT | M93: =Translate!$A$267 -> CO2 emissions for electricity 2017 including losses&WTT | N93: =Translate!$A$267 -> CO2 emissions for electricity 2017 including losses&WTT | X93: 1.1052 | AB93: kWh | AC93: kWh
A94: 0 | C94: Electricity - Ukraine | D94: kWh | E94: 0.4482754499 | F94: CO2 emissions for electricity 2017 including losses&WTT | J94: 0.1 | K94: =Translate!$A$267 -> CO2 emissions for electricity 2017 including losses&WTT | L94: =Translate!$A$267 -> CO2 emissions for electricity 2017 including losses&WTT | M94: =Translate!$A$267 -> CO2 emissions for electricity 2017 including losses&WTT | N94: =Translate!$A$267 -> CO2 emissions for electricity 2017 including losses&WTT | X94: 0.4482754499 | AB94: kWh | AC94: kWh
A95: 0 | C95: Electricity - Uzbekistan | D95: kWh | E95: 0.7053502072 | F95: CO2 emissions for electricity 2017 including losses&WTT | J95: 0.1 | K95: =Translate!$A$267 -> CO2 emissions for electricity 2017 including losses&WTT | L95: =Translate!$A$267 -> CO2 emissions for electricity 2017 including losses&WTT | M95: =Translate!$A$267 -> CO2 emissions for electricity 2017 including losses&WTT | N95: =Translate!$A$267 -> CO2 emissions for electricity 2017 including losses&WTT | X95: 0.7053502072 | AB95: kWh | AC95: kWh
A96: 0 | C96: Electricity - Canada | D96: kWh | E96: 0.1937330681 | F96: CO2 emissions for electricity 2017 including losses&WTT | J96: 0.1 | K96: =Translate!$A$267 -> CO2 emissions for electricity 2017 including losses&WTT | L96: =Translate!$A$267 -> CO2 emissions for electricity 2017 including losses&WTT | M96: =Translate!$A$267 -> CO2 emissions for electricity 2017 including losses&WTT | N96: =Translate!$A$267 -> CO2 emissions for electricity 2017 including losses&WTT | X96: 0.1937330681 | AB96: kWh | AC96: kWh
A97: 0 | C97: Electricity - Chile | D97: kWh | E97: 0.5381888122 | F97: CO2 emissions for electricity 2017 including losses&WTT | J97: 0.1 | K97: =Translate!$A$267 -> CO2 emissions for electricity 2017 including losses&WTT | L97: =Translate!$A$267 -> CO2 emissions for electricity 2017 including losses&WTT | M97: =Translate!$A$267 -> CO2 emissions for electricity 2017 including losses&WTT | N97: =Translate!$A$267 -> CO2 emissions for electricity 2017 including losses&WTT | X97: 0.5381888122 | AB97: kWh | AC97: kWh
A98: 0 | C98: Electricity - Mexico | D98: kWh | E98: 0.6261626066 | F98: CO2 emissions for electricity 2017 including losses&WTT | J98: 0.1 | K98: =Translate!$A$267 -> CO2 emissions for electricity 2017 including losses&WTT | L98: =Translate!$A$267 -> CO2 emissions for electricity 2017 including losses&WTT | M98: =Translate!$A$267 -> CO2 emissions for electricity 2017 including losses&WTT | N98: =Translate!$A$267 -> CO2 emissions for electricity 2017 including losses&WTT | X98: 0.6261626066 | AB98: kWh | AC98: kWh
A99: 0 | C99: Electricity - United States | D99: kWh | E99: 0.5145180777 | F99: CO2 emissions for electricity 2017 including losses&WTT | J99: 0.1 | K99: =Translate!$A$267 -> CO2 emissions for electricity 2017 including losses&WTT | L99: =Translate!$A$267 -> CO2 emissions for electricity 2017 including losses&WTT | M99: =Translate!$A$267 -> CO2 emissions for electricity 2017 including losses&WTT | N99: =Translate!$A$267 -> CO2 emissions for electricity 2017 including losses&WTT | X99: 0.5145180777 | AB99: kWh | AC99: kWh
A100: 0 | C100: Electricity - Australia | D100: kWh | E100: 0.8669238596 | F100: CO2 emissions for electricity 2017 including losses&WTT | J100: 0.1 | K100: =Translate!$A$267 -> CO2 emissions for electricity 2017 including losses&WTT | L100: =Translate!$A$267 -> CO2 emissions for electricity 2017 including losses&WTT | M100: =Translate!$A$267 -> CO2 emissions for electricity 2017 including losses&WTT | N100: =Translate!$A$267 -> CO2 emissions for electricity 2017 including losses&WTT | X100: 0.8669238596 | AB100: kWh | AC100: kWh
A101: 0 | C101: Electricity - Israel | D101: kWh | E101: 0.6628969407 | F101: CO2 emissions for electricity 2017 including losses&WTT | J101: 0.1 | K101: =Translate!$A$267 -> CO2 emissions for electricity 2017 including losses&WTT | L101: =Translate!$A$267 -> CO2 emissions for electricity 2017 including losses&WTT | M101: =Translate!$A$267 -> CO2 emissions for electricity 2017 including losses&WTT | N101: =Translate!$A$267 -> CO2 emissions for electricity 2017 including losses&WTT | X101: 0.6628969407 | AB101: kWh | AC101: kWh
A102: 0 | C102: Electricity - Japan | D102: kWh | E102: 0.6274657294 | F102: CO2 emissions for electricity 2017 including losses&WTT | J102: 0.1 | K102: =Translate!$A$267 -> CO2 emissions for electricity 2017 including losses&WTT | L102: =Translate!$A$267 -> CO2 emissions for electricity 2017 including losses&WTT | M102: =Translate!$A$267 -> CO2 emissions for electricity 2017 including losses&WTT | N102: =Translate!$A$267 -> CO2 emissions for electricity 2017 including losses&WTT | X102: 0.6274657294 | AB102: kWh | AC102: kWh
A103: 0 | C103: Electricity - Korea | D103: kWh | E103: 0.6267980021 | F103: CO2 emissions for electricity 2017 including losses&WTT | J103: 0.1 | K103: =Translate!$A$267 -> CO2 emissions for electricity 2017 including losses&WTT | L103: =Translate!$A$267 -> CO2 emissions for electricity 2017 including losses&WTT | M103: =Translate!$A$267 -> CO2 emissions for electricity 2017 including losses&WTT | N103: =Translate!$A$267 -> CO2 emissions for electricity 2017 including losses&WTT | X103: 0.6267980021 | AB103: kWh | AC103: kWh
A104: 0 | C104: Electricity - New Zealand | D104: kWh | E104: 0.1633752378 | F104: CO2 emissions for electricity 2017 including losses&WTT | J104: 0.1 | K104: =Translate!$A$267 -> CO2 emissions for electricity 2017 including losses&WTT | L104: =Translate!$A$267 -> CO2 emissions for electricity 2017 including losses&WTT | M104: =Translate!$A$267 -> CO2 emissions for electricity 2017 including losses&WTT | N104: =Translate!$A$267 -> CO2 emissions for electricity 2017 including losses&WTT | X104: 0.1633752378 | AB104: kWh | AC104: kWh
A105: 0 | C105: Electricity - Algeria | D105: kWh | E105: 0.6623094161 | F105: CO2 emissions for electricity 2017 including losses&WTT | J105: 0.1 | K105: =Translate!$A$267 -> CO2 emissions for electricity 2017 including losses&WTT | L105: =Translate!$A$267 -> CO2 emissions for electricity 2017 including losses&WTT | M105: =Translate!$A$267 -> CO2 emissions for electricity 2017 including losses&WTT | N105: =Translate!$A$267 -> CO2 emissions for electricity 2017 including losses&WTT | X105: 0.6623094161 | AB105: kWh | AC105: kWh
A106: 0 | C106: Electricity - Angola | D106: kWh | E106: 0.6066777218 | F106: CO2 emissions for electricity 2017 including losses&WTT | J106: 0.1 | K106: =Translate!$A$267 -> CO2 emissions for electricity 2017 including losses&WTT | L106: =Translate!$A$267 -> CO2 emissions for electricity 2017 including losses&WTT | M106: =Translate!$A$267 -> CO2 emissions for electricity 2017 including losses&WTT | N106: =Translate!$A$267 -> CO2 emissions for electricity 2017 including losses&WTT | X106: 0.6066777218 | AB106: kWh | AC106: kWh
A107: 0 | C107: Electricity - Benin | D107: kWh | E107: 0.8500438066 | F107: CO2 emissions for electricity 2017 including losses&WTT | J107: 0.1 | K107: =Translate!$A$267 -> CO2 emissions for electricity 2017 including losses&WTT | L107: =Translate!$A$267 -> CO2 emissions for electricity 2017 including losses&WTT | M107: =Translate!$A$267 -> CO2 emissions for electricity 2017 including losses&WTT | N107: =Translate!$A$267 -> CO2 emissions for electricity 2017 including losses&WTT | X107: 0.8500438066 | AB107: kWh | AC107: kWh
A108: 0 | C108: Electricity - Botswana | D108: kWh | E108: 1.716182727 | F108: CO2 emissions for electricity 2017 including losses&WTT | J108: 0.1 | K108: =Translate!$A$267 -> CO2 emissions for electricity 2017 including losses&WTT | L108: =Translate!$A$267 -> CO2 emissions for electricity 2017 including losses&WTT | M108: =Translate!$A$267 -> CO2 emissions for electricity 2017 including losses&WTT | N108: =Translate!$A$267 -> CO2 emissions for electricity 2017 including losses&WTT | X108: 1.716182727 | AB108: kWh | AC108: kWh
A109: 0 | C109: Electricity - Cameroon | D109: kWh | E109: 0.3895732796 | F109: CO2 emissions for electricity 2017 including losses&WTT | J109: 0.1 | K109: =Translate!$A$267 -> CO2 emissions for electricity 2017 including losses&WTT | L109: =Translate!$A$267 -> CO2 emissions for electricity 2017 including losses&WTT | M109: =Translate!$A$267 -> CO2 emissions for electricity 2017 including losses&WTT | N109: =Translate!$A$267 -> CO2 emissions for electricity 2017 including losses&WTT | X109: 0.3895732796 | AB109: kWh | AC109: kWh
A110: 0 | C110: Electricity - Congo | D110: kWh | E110: 0.5174084535 | F110: CO2 emissions for electricity 2017 including losses&WTT | J110: 0.1 | K110: =Translate!$A$267 -> CO2 emissions for electricity 2017 including losses&WTT | L110: =Translate!$A$267 -> CO2 emissions for electricity 2017 including losses&WTT | M110: =Translate!$A$267 -> CO2 emissions for electricity 2017 including losses&WTT | N110: =Translate!$A$267 -> CO2 emissions for electricity 2017 including losses&WTT | X110: 0.5174084535 | AB110: kWh | AC110: kWh
A111: =IF(ISBLANK(H111),OFFSET(A111,-1,0),OFFSET(A111,-1,0)+1) -> 0 | C111: Electricity - Democratic Republic of the Congo | D111: =INDEX(AB111:AC111,MATCH($F$3,$AB$6:$AC$6,0)) -> kWh | E111: =IF(F111=H111,G111,INDEX(P111:AD111,MATCH($F111,$P$6:$AD$6,0))) -> 0.02043217666 | F111: =IF(ISBLANK(H111),INDEX(K111:N111,$D$4),H111) -> CO2 emissions for electricity 2017 including losses&WTT | J111: 0.1 | K111: =Translate!$A$267 -> CO2 emissions for electricity 2017 including losses&WTT | L111: =Translate!$A$267 -> CO2 emissions for electricity 2017 including losses&WTT | M111: =Translate!$A$267 -> CO2 emissions for electricity 2017 including losses&WTT | N111: =Translate!$A$267 -> CO2 emissions for electricity 2017 including losses&WTT | X111: 0.02043217666 | AB111: kWh | AC111: kWh
A112: 0 | C112: Electricity - Côte d'Ivoire | D112: kWh | E112: 0.5118392237 | F112: CO2 emissions for electricity 2017 including losses&WTT | J112: 0.1 | K112: =Translate!$A$267 -> CO2 emissions for electricity 2017 including losses&WTT | L112: =Translate!$A$267 -> CO2 emissions for electricity 2017 including losses&WTT | M112: =Translate!$A$267 -> CO2 emissions for electricity 2017 including losses&WTT | N112: =Translate!$A$267 -> CO2 emissions for electricity 2017 including losses&WTT | X112: 0.5118392237 | AB112: kWh | AC112: kWh
A113: 0 | C113: Electricity - Egypt | D113: kWh | E113: 0.583522176 | F113: CO2 emissions for electricity 2017 including losses&WTT | J113: 0.1 | K113: =Translate!$A$267 -> CO2 emissions for electricity 2017 including losses&WTT | L113: =Translate!$A$267 -> CO2 emissions for electricity 2017 including losses&WTT | M113: =Translate!$A$267 -> CO2 emissions for electricity 2017 including losses&WTT | N113: =Translate!$A$267 -> CO2 emissions for electricity 2017 including losses&WTT | X113: 0.583522176 | AB113: kWh | AC113: kWh
A114: 0 | C114: Electricity - Eritrea | D114: kWh | E114: 1.097821749 | F114: CO2 emissions for electricity 2017 including losses&WTT | J114: 0.1 | K114: =Translate!$A$267 -> CO2 emissions for electricity 2017 including losses&WTT | L114: =Translate!$A$267 -> CO2 emissions for electricity 2017 including losses&WTT | M114: =Translate!$A$267 -> CO2 emissions for electricity 2017 including losses&WTT | N114: =Translate!$A$267 -> CO2 emissions for electricity 2017 including losses&WTT | X114: 1.097821749 | AB114: kWh | AC114: kWh
A115: 0 | C115: Electricity - Ethiopia | D115: kWh | E115: 0.01942940965 | F115: CO2 emissions for electricity 2017 including losses&WTT | J115: 0.1 | K115: =Translate!$A$267 -> CO2 emissions for electricity 2017 including losses&WTT | L115: =Translate!$A$267 -> CO2 emissions for electricity 2017 including losses&WTT | M115: =Translate!$A$267 -> CO2 emissions for electricity 2017 including losses&WTT | N115: =Translate!$A$267 -> CO2 emissions for electricity 2017 including losses&WTT | X115: 0.01942940965 | AB115: kWh | AC115: kWh
A116: 0 | C116: Electricity - Gabon | D116: kWh | E116: 0.5615497153 | F116: CO2 emissions for electricity 2017 including losses&WTT | J116: 0.1 | K116: =Translate!$A$267 -> CO2 emissions for electricity 2017 including losses&WTT | L116: =Translate!$A$267 -> CO2 emissions for electricity 2017 including losses&WTT | M116: =Translate!$A$267 -> CO2 emissions for electricity 2017 including losses&WTT | N116: =Translate!$A$267 -> CO2 emissions for electricity 2017 including losses&WTT | X116: 0.5615497153 | AB116: kWh | AC116: kWh
A117: 0 | C117: Electricity - Ghana | D117: kWh | E117: 0.3686510947 | F117: CO2 emissions for electricity 2017 including losses&WTT | J117: 0.1 | K117: =Translate!$A$267 -> CO2 emissions for electricity 2017 including losses&WTT | L117: =Translate!$A$267 -> CO2 emissions for electricity 2017 including losses&WTT | M117: =Translate!$A$267 -> CO2 emissions for electricity 2017 including losses&WTT | N117: =Translate!$A$267 -> CO2 emissions for electricity 2017 including losses&WTT | X117: 0.3686510947 | AB117: kWh | AC117: kWh
A118: 0 | C118: Electricity - Kenya | D118: kWh | E118: 0.2804009686 | F118: CO2 emissions for electricity 2017 including losses&WTT | J118: 0.1 | K118: =Translate!$A$267 -> CO2 emissions for electricity 2017 including losses&WTT | L118: =Translate!$A$267 -> CO2 emissions for electricity 2017 including losses&WTT | M118: =Translate!$A$267 -> CO2 emissions for electricity 2017 including losses&WTT | N118: =Translate!$A$267 -> CO2 emissions for electricity 2017 including losses&WTT | X118: 0.2804009686 | AB118: kWh | AC118: kWh
A119: 0 | C119: Electricity - Libya | D119: kWh | E119: 0.7876610186 | F119: CO2 emissions for electricity 2017 including losses&WTT | J119: 0.1 | K119: =Translate!$A$267 -> CO2 emissions for electricity 2017 including losses&WTT | L119: =Translate!$A$267 -> CO2 emissions for electricity 2017 including losses&WTT | M119: =Translate!$A$267 -> CO2 emissions for electricity 2017 including losses&WTT | N119: =Translate!$A$267 -> CO2 emissions for electricity 2017 including losses&WTT | X119: 0.7876610186 | AB119: kWh | AC119: kWh
A120: 0 | C120: Electricity - Morocco | D120: kWh | E120: 0.8746782063 | F120: CO2 emissions for electricity 2017 including losses&WTT | J120: 0.1 | K120: =Translate!$A$267 -> CO2 emissions for electricity 2017 including losses&WTT | L120: =Translate!$A$267 -> CO2 emissions for electricity 2017 including losses&WTT | M120: =Translate!$A$267 -> CO2 emissions for electricity 2017 including losses&WTT | N120: =Translate!$A$267 -> CO2 emissions for electricity 2017 including losses&WTT | X120: 0.8746782063 | AB120: kWh | AC120: kWh
A121: 0 | C121: Electricity - Mozambique | D121: kWh | E121: 0.107300665 | F121: CO2 emissions for electricity 2017 including losses&WTT | J121: 0.1 | K121: =Translate!$A$267 -> CO2 emissions for electricity 2017 including losses&WTT | L121: =Translate!$A$267 -> CO2 emissions for electricity 2017 including losses&WTT | M121: =Translate!$A$267 -> CO2 emissions for electricity 2017 including losses&WTT | N121: =Translate!$A$267 -> CO2 emissions for electricity 2017 including losses&WTT | X121: 0.107300665 | AB121: kWh | AC121: kWh
A122: 0 | C122: Electricity - Namibia | D122: kWh | E122: 0.08150524412 | F122: CO2 emissions for electricity 2017 including losses&WTT | J122: 0.1 | K122: =Translate!$A$267 -> CO2 emissions for electricity 2017 including losses&WTT | L122: =Translate!$A$267 -> CO2 emissions for electricity 2017 including losses&WTT | M122: =Translate!$A$267 -> CO2 emissions for electricity 2017 including losses&WTT | N122: =Translate!$A$267 -> CO2 emissions for electricity 2017 including losses&WTT | X122: 0.08150524412 | AB122: kWh | AC122: kWh
A123: =IF(ISBLANK(H123),OFFSET(A123,-1,0),OFFSET(A123,-1,0)+1) -> 0 | C123: Electricity - Niger | D123: =INDEX(AB123:AC123,MATCH($F$3,$AB$6:$AC$6,0)) -> kWh | E123: =IF(F123=H123,G123,INDEX(P123:AD123,MATCH($F123,$P$6:$AD$6,0))) -> 1.22688913 | F123: =IF(ISBLANK(H123),INDEX(K123:N123,$D$4),H123) -> CO2 emissions for electricity 2017 including losses&WTT | J123: 0.1 | K123: =Translate!$A$267 -> CO2 emissions for electricity 2017 including losses&WTT | L123: =Translate!$A$267 -> CO2 emissions for electricity 2017 including losses&WTT | M123: =Translate!$A$267 -> CO2 emissions for electricity 2017 including losses&WTT | N123: =Translate!$A$267 -> CO2 emissions for electricity 2017 including losses&WTT | X123: 1.22688913 | AB123: kWh | AC123: kWh
A124: 0 | C124: Electricity - Nigeria | D124: kWh | E124: 0.558074424 | F124: CO2 emissions for electricity 2017 including losses&WTT | J124: 0.1 | K124: =Translate!$A$267 -> CO2 emissions for electricity 2017 including losses&WTT | L124: =Translate!$A$267 -> CO2 emissions for electricity 2017 including losses&WTT | M124: =Translate!$A$267 -> CO2 emissions for electricity 2017 including losses&WTT | N124: =Translate!$A$267 -> CO2 emissions for electricity 2017 including losses&WTT | X124: 0.558074424 | AB124: kWh | AC124: kWh
A125: 0 | C125: Electricity - Senegal | D125: kWh | E125: 0.8575153098 | F125: CO2 emissions for electricity 2017 including losses&WTT | J125: 0.1 | K125: =Translate!$A$267 -> CO2 emissions for electricity 2017 including losses&WTT | L125: =Translate!$A$267 -> CO2 emissions for electricity 2017 including losses&WTT | M125: =Translate!$A$267 -> CO2 emissions for electricity 2017 including losses&WTT | N125: =Translate!$A$267 -> CO2 emissions for electricity 2017 including losses&WTT | X125: 0.8575153098 | AB125: kWh | AC125: kWh
A126: 0 | C126: Electricity - South Africa | D126: kWh | E126: 1.057947301 | F126: CO2 emissions for electricity 2017 including losses&WTT | J126: 0.1 | K126: =Translate!$A$267 -> CO2 emissions for electricity 2017 including losses&WTT | L126: =Translate!$A$267 -> CO2 emissions for electricity 2017 including losses&WTT | M126: =Translate!$A$267 -> CO2 emissions for electricity 2017 including losses&WTT | N126: =Translate!$A$267 -> CO2 emissions for electricity 2017 including losses&WTT | X126: 1.057947301 | AB126: kWh | AC126: kWh
A127: =IF(ISBLANK(H127),OFFSET(A127,-1,0),OFFSET(A127,-1,0)+1) -> 0 | C127: Electricity - Sudan | D127: =INDEX(AB127:AC127,MATCH($F$3,$AB$6:$AC$6,0)) -> kWh | E127: =IF(F127=H127,G127,INDEX(P127:AD127,MATCH($F127,$P$6:$AD$6,0))) -> 0.4685471111 | F127: =IF(ISBLANK(H127),INDEX(K127:N127,$D$4),H127) -> CO2 emissions for electricity 2017 including losses&WTT | J127: 0.1 | K127: =Translate!$A$267 -> CO2 emissions for electricity 2017 including losses&WTT | L127: =Translate!$A$267 -> CO2 emissions for electricity 2017 including losses&WTT | M127: =Translate!$A$267 -> CO2 emissions for electricity 2017 including losses&WTT | N127: =Translate!$A$267 -> CO2 emissions for electricity 2017 including losses&WTT | X127: 0.4685471111 | AB127: kWh | AC127: kWh
A128: 0 | C128: Electricity - Sudan | D128: kWh | E128: 0.4685471111 | F128: CO2 emissions for electricity 2017 including losses&WTT | J128: 0.1 | K128: =Translate!$A$267 -> CO2 emissions for electricity 2017 including losses&WTT | L128: =Translate!$A$267 -> CO2 emissions for electricity 2017 including losses&WTT | M128: =Translate!$A$267 -> CO2 emissions for electricity 2017 including losses&WTT | N128: =Translate!$A$267 -> CO2 emissions for electricity 2017 including losses&WTT | X128: 0.4685471111 | AB128: kWh | AC128: kWh
A129: 0 | C129: Electricity - United Rep. of Tanzania | D129: kWh | E129: 0.4229092504 | F129: CO2 emissions for electricity 2017 including losses&WTT | J129: 0.1 | K129: =Translate!$A$267 -> CO2 emissions for electricity 2017 including losses&WTT | L129: =Translate!$A$267 -> CO2 emissions for electricity 2017 including losses&WTT | M129: =Translate!$A$267 -> CO2 emissions for electricity 2017 including losses&WTT | N129: =Translate!$A$267 -> CO2 emissions for electricity 2017 including losses&WTT | X129: 0.4229092504 | AB129: kWh | AC129: kWh
A130: 0 | C130: Electricity - Togo | D130: kWh | E130: 0.1336612069 | F130: CO2 emissions for electricity 2017 including losses&WTT | J130: 0.1 | K130: =Translate!$A$267 -> CO2 emissions for electricity 2017 including losses&WTT | L130: =Translate!$A$267 -> CO2 emissions for electricity 2017 including losses&WTT | M130: =Translate!$A$267 -> CO2 emissions for electricity 2017 including losses&WTT | N130: =Translate!$A$267 -> CO2 emissions for electricity 2017 including losses&WTT | X130: 0.1336612069 | AB130: kWh | AC130: kWh
A131: 0 | C131: Electricity - Tunisia | D131: kWh | E131: 0.5870554257 | F131: CO2 emissions for electricity 2017 including losses&WTT | J131: 0.1 | K131: =Translate!$A$267 -> CO2 emissions for electricity 2017 including losses&WTT | L131: =Translate!$A$267 -> CO2 emissions for electricity 2017 including losses&WTT | M131: =Translate!$A$267 -> CO2 emissions for electricity 2017 including losses&WTT | N131: =Translate!$A$267 -> CO2 emissions for electricity 2017 including losses&WTT | X131: 0.5870554257 | AB131: kWh | AC131: kWh
A132: 0 | C132: Electricity - Zambia | D132: kWh | E132: 0.1742716602 | F132: CO2 emissions for electricity 2017 including losses&WTT | J132: 0.1 | K132: =Translate!$A$267 -> CO2 emissions for electricity 2017 including losses&WTT | L132: =Translate!$A$267 -> CO2 emissions for electricity 2017 including losses&WTT | M132: =Translate!$A$267 -> CO2 emissions for electricity 2017 including losses&WTT | N132: =Translate!$A$267 -> CO2 emissions for electricity 2017 including losses&WTT | X132: 0.1742716602 | AB132: kWh | AC132: kWh
A133: 0 | C133: Electricity - Zimbabwe | D133: kWh | E133: 0.8823101803 | F133: CO2 emissions for electricity 2017 including losses&WTT | J133: 0.1 | K133: =Translate!$A$267 -> CO2 emissions for electricity 2017 including losses&WTT | L133: =Translate!$A$267 -> CO2 emissions for electricity 2017 including losses&WTT | M133: =Translate!$A$267 -> CO2 emissions for electricity 2017 including losses&WTT | N133: =Translate!$A$267 -> CO2 emissions for electricity 2017 including losses&WTT | X133: 0.8823101803 | AB133: kWh | AC133: kWh
A134: 0 | C134: Electricity - Bahrain | D134: kWh | E134: 0.8191027374 | F134: CO2 emissions for electricity 2017 including losses&WTT | J134: 0.1 | K134: =Translate!$A$267 -> CO2 emissions for electricity 2017 including losses&WTT | L134: =Translate!$A$267 -> CO2 emissions for electricity 2017 including losses&WTT | M134: =Translate!$A$267 -> CO2 emissions for electricity 2017 including losses&WTT | N134: =Translate!$A$267 -> CO2 emissions for electricity 2017 including losses&WTT | X134: 0.8191027374 | AB134: kWh | AC134: kWh
A135: 0 | C135: Electricity - Iran | D135: kWh | E135: 0.6778767853 | F135: CO2 emissions for electricity 2017 including losses&WTT | J135: 0.1 | K135: =Translate!$A$267 -> CO2 emissions for electricity 2017 including losses&WTT | L135: =Translate!$A$267 -> CO2 emissions for electricity 2017 including losses&WTT | M135: =Translate!$A$267 -> CO2 emissions for electricity 2017 including losses&WTT | N135: =Translate!$A$267 -> CO2 emissions for electricity 2017 including losses&WTT | X135: 0.6778767853 | AB135: kWh | AC135: kWh
A136: 0 | C136: Electricity - Iraq | D136: kWh | E136: 1.512750557 | F136: CO2 emissions for electricity 2017 including losses&WTT | J136: 0.1 | K136: =Translate!$A$267 -> CO2 emissions for electricity 2017 including losses&WTT | L136: =Translate!$A$267 -> CO2 emissions for electricity 2017 including losses&WTT | M136: =Translate!$A$267 -> CO2 emissions for electricity 2017 including losses&WTT | N136: =Translate!$A$267 -> CO2 emissions for electricity 2017 including losses&WTT | X136: 1.512750557 | AB136: kWh | AC136: kWh
A137: 0 | C137: Electricity - Jordan | D137: kWh | E137: 0.6375541908 | F137: CO2 emissions for electricity 2017 including losses&WTT | J137: 0.1 | K137: =Translate!$A$267 -> CO2 emissions for electricity 2017 including losses&WTT | L137: =Translate!$A$267 -> CO2 emissions for electricity 2017 including losses&WTT | M137: =Translate!$A$267 -> CO2 emissions for electricity 2017 including losses&WTT | N137: =Translate!$A$267 -> CO2 emissions for electricity 2017 including losses&WTT | X137: 0.6375541908 | AB137: kWh | AC137: kWh
A138: 0 | C138: Electricity - Kuwait | D138: kWh | E138: 0.7820482827 | F138: CO2 emissions for electricity 2017 including losses&WTT | J138: 0.1 | K138: =Translate!$A$267 -> CO2 emissions for electricity 2017 including losses&WTT | L138: =Translate!$A$267 -> CO2 emissions for electricity 2017 including losses&WTT | M138: =Translate!$A$267 -> CO2 emissions for electricity 2017 including losses&WTT | N138: =Translate!$A$267 -> CO2 emissions for electricity 2017 including losses&WTT | X138: 0.7820482827 | AB138: kWh | AC138: kWh
A139: 0 | C139: Electricity - Lebanon | D139: kWh | E139: 0.9813098266 | F139: CO2 emissions for electricity 2017 including losses&WTT | J139: 0.1 | K139: =Translate!$A$267 -> CO2 emissions for electricity 2017 including losses&WTT | L139: =Translate!$A$267 -> CO2 emissions for electricity 2017 including losses&WTT | M139: =Translate!$A$267 -> CO2 emissions for electricity 2017 including losses&WTT | N139: =Translate!$A$267 -> CO2 emissions for electricity 2017 including losses&WTT | X139: 0.9813098266 | AB139: kWh | AC139: kWh
A140: 0 | C140: Electricity - Oman | D140: kWh | E140: 0.5879493107 | F140: CO2 emissions for electricity 2017 including losses&WTT | J140: 0.1 | K140: =Translate!$A$267 -> CO2 emissions for electricity 2017 including losses&WTT | L140: =Translate!$A$267 -> CO2 emissions for electricity 2017 including losses&WTT | M140: =Translate!$A$267 -> CO2 emissions for electricity 2017 including losses&WTT | N140: =Translate!$A$267 -> CO2 emissions for electricity 2017 including losses&WTT | X140: 0.5879493107 | AB140: kWh | AC140: kWh
A141: 0 | C141: Electricity - Qatar | D141: kWh | E141: 0.6051 | F141: CO2 emissions for electricity 2017 including losses&WTT | J141: 0.1 | K141: =Translate!$A$267 -> CO2 emissions for electricity 2017 including losses&WTT | L141: =Translate!$A$267 -> CO2 emissions for electricity 2017 including losses&WTT | M141: =Translate!$A$267 -> CO2 emissions for electricity 2017 including losses&WTT | N141: =Translate!$A$267 -> CO2 emissions for electricity 2017 including losses&WTT | X141: 0.6051 | AB141: kWh | AC141: kWh
A142: 0 | C142: Electricity - Saudi Arabia | D142: kWh | E142: 0.8792550397 | F142: CO2 emissions for electricity 2017 including losses&WTT | J142: 0.1 | K142: =Translate!$A$267 -> CO2 emissions for electricity 2017 including losses&WTT | L142: =Translate!$A$267 -> CO2 emissions for electricity 2017 including losses&WTT | M142: =Translate!$A$267 -> CO2 emissions for electricity 2017 including losses&WTT | N142: =Translate!$A$267 -> CO2 emissions for electricity 2017 including losses&WTT | X142: 0.8792550397 | AB142: kWh | AC142: kWh
A143: 0 | C143: Electricity - Syrian Arab Republic | D143: kWh | E143: 0.8468550397 | F143: CO2 emissions for electricity 2017 including losses&WTT | J143: 0.1 | K143: =Translate!$A$267 -> CO2 emissions for electricity 2017 including losses&WTT | L143: =Translate!$A$267 -> CO2 emissions for electricity 2017 including losses&WTT | M143: =Translate!$A$267 -> CO2 emissions for electricity 2017 including losses&WTT | N143: =Translate!$A$267 -> CO2 emissions for electricity 2017 including losses&WTT | X143: 0.8468550397 | AB143: kWh | AC143: kWh
A144: =IF(ISBLANK(H144),OFFSET(A144,-1,0),OFFSET(A144,-1,0)+1) -> 0 | C144: Electricity - United Arab Emirates | D144: kWh | E144: =IF(F144=H144,G144,INDEX(P144:AD144,MATCH($F144,$P$6:$AD$6,0))) -> 0.8069193931 | F144: =IF(ISBLANK(H144),INDEX(K144:N144,$D$4),H144) -> CO2 emissions for electricity 2017 including losses&WTT | J144: 0.1 | K144: =Translate!$A$267 -> CO2 emissions for electricity 2017 including losses&WTT | L144: =Translate!$A$267 -> CO2 emissions for electricity 2017 including losses&WTT | M144: =Translate!$A$267 -> CO2 emissions for electricity 2017 including losses&WTT | N144: =Translate!$A$267 -> CO2 emissions for electricity 2017 including losses&WTT | X144: 0.8069193931 | AB144: kWh | AC144: kWh
A145: 0 | C145: Electricity - Yemen | D145: kWh | E145: 0.8945479308 | F145: CO2 emissions for electricity 2017 including losses&WTT | J145: 0.1 | K145: =Translate!$A$267 -> CO2 emissions for electricity 2017 including losses&WTT | L145: =Translate!$A$267 -> CO2 emissions for electricity 2017 including losses&WTT | M145: =Translate!$A$267 -> CO2 emissions for electricity 2017 including losses&WTT | N145: =Translate!$A$267 -> CO2 emissions for electricity 2017 including losses&WTT | X145: 0.8945479308 | AB145: kWh | AC145: kWh
A146: 0 | C146: Electricity - Argentina | D146: kWh | E146: 0.4756429335 | F146: CO2 emissions for electricity 2017 including losses&WTT | J146: 0.1 | K146: =Translate!$A$267 -> CO2 emissions for electricity 2017 including losses&WTT | L146: =Translate!$A$267 -> CO2 emissions for electricity 2017 including losses&WTT | M146: =Translate!$A$267 -> CO2 emissions for electricity 2017 including losses&WTT | N146: =Translate!$A$267 -> CO2 emissions for electricity 2017 including losses&WTT | X146: 0.4756429335 | AB146: kWh | AC146: kWh
A147: 0 | C147: Electricity - Bolivia | D147: kWh | E147: 0.5631210759 | F147: CO2 emissions for electricity 2017 including losses&WTT | J147: 0.1 | K147: =Translate!$A$267 -> CO2 emissions for electricity 2017 including losses&WTT | L147: =Translate!$A$267 -> CO2 emissions for electricity 2017 including losses&WTT | M147: =Translate!$A$267 -> CO2 emissions for electricity 2017 including losses&WTT | N147: =Translate!$A$267 -> CO2 emissions for electricity 2017 including losses&WTT | X147: 0.5631210759 | AB147: kWh | AC147: kWh
A148: 0 | C148: Electricity - Brazil | D148: kWh | E148: 0.1905397065 | F148: CO2 emissions for electricity 2017 including losses&WTT | J148: 0.1 | K148: =Translate!$A$267 -> CO2 emissions for electricity 2017 including losses&WTT | L148: =Translate!$A$267 -> CO2 emissions for electricity 2017 including losses&WTT | M148: =Translate!$A$267 -> CO2 emissions for electricity 2017 including losses&WTT | N148: =Translate!$A$267 -> CO2 emissions for electricity 2017 including losses&WTT | X148: 0.1905397065 | AB148: kWh | AC148: kWh
A149: 0 | C149: Electricity - Colombia | D149: kWh | E149: 0.1825620541 | F149: CO2 emissions for electricity 2017 including losses&WTT | J149: 0.1 | K149: =Translate!$A$267 -> CO2 emissions for electricity 2017 including losses&WTT | L149: =Translate!$A$267 -> CO2 emissions for electricity 2017 including losses&WTT | M149: =Translate!$A$267 -> CO2 emissions for electricity 2017 including losses&WTT | N149: =Translate!$A$267 -> CO2 emissions for electricity 2017 including losses&WTT | X149: 0.1825620541 | AB149: kWh | AC149: kWh
A150: 0 | C150: Electricity - Costa Rica | D150: kWh | E150: 0.02835126006 | F150: CO2 emissions for electricity 2017 including losses&WTT | J150: 0.1 | K150: =Translate!$A$267 -> CO2 emissions for electricity 2017 including losses&WTT | L150: =Translate!$A$267 -> CO2 emissions for electricity 2017 including losses&WTT | M150: =Translate!$A$267 -> CO2 emissions for electricity 2017 including losses&WTT | N150: =Translate!$A$267 -> CO2 emissions for electricity 2017 including losses&WTT | X150: 0.02835126006 | AB150: kWh | AC150: kWh
A151: 0 | C151: Electricity - Cuba | D151: kWh | E151: 0.7222580115 | F151: CO2 emissions for electricity 2017 including losses&WTT | J151: 0.1 | K151: =Translate!$A$267 -> CO2 emissions for electricity 2017 including losses&WTT | L151: =Translate!$A$267 -> CO2 emissions for electricity 2017 including losses&WTT | M151: =Translate!$A$267 -> CO2 emissions for electricity 2017 including losses&WTT | N151: =Translate!$A$267 -> CO2 emissions for electricity 2017 including losses&WTT | X151: 0.7222580115 | AB151: kWh | AC151: kWh
A152: 0 | C152: Electricity - Dominican Republic | D152: kWh | E152: 0.6879106109 | F152: CO2 emissions for electricity 2017 including losses&WTT | J152: 0.1 | K152: =Translate!$A$267 -> CO2 emissions for electricity 2017 including losses&WTT | L152: =Translate!$A$267 -> CO2 emissions for electricity 2017 including losses&WTT | M152: =Translate!$A$267 -> CO2 emissions for electricity 2017 including losses&WTT | N152: =Translate!$A$267 -> CO2 emissions for electricity 2017 including losses&WTT | X152: 0.6879106109 | AB152: kWh | AC152: kWh
A153: 0 | C153: Electricity - Ecuador | D153: kWh | E153: 0.2519220119 | F153: CO2 emissions for electricity 2017 including losses&WTT | J153: 0.1 | K153: =Translate!$A$267 -> CO2 emissions for electricity 2017 including losses&WTT | L153: =Translate!$A$267 -> CO2 emissions for electricity 2017 including losses&WTT | M153: =Translate!$A$267 -> CO2 emissions for electricity 2017 including losses&WTT | N153: =Translate!$A$267 -> CO2 emissions for electricity 2017 including losses&WTT | X153: 0.2519220119 | AB153: kWh | AC153: kWh
A154: 0 | C154: Electricity - El Salvador | D154: kWh | E154: 0.2710422092 | F154: CO2 emissions for electricity 2017 including losses&WTT | J154: 0.1 | K154: =Translate!$A$267 -> CO2 emissions for electricity 2017 including losses&WTT | L154: =Translate!$A$267 -> CO2 emissions for electricity 2017 including losses&WTT | M154: =Translate!$A$267 -> CO2 emissions for electricity 2017 including losses&WTT | N154: =Translate!$A$267 -> CO2 emissions for electricity 2017 including losses&WTT | X154: 0.2710422092 | AB154: kWh | AC154: kWh
A155: 0 | C155: Electricity - Guatemala | D155: kWh | E155: 0.4344825617 | F155: CO2 emissions for electricity 2017 including losses&WTT | J155: 0.1 | K155: =Translate!$A$267 -> CO2 emissions for electricity 2017 including losses&WTT | L155: =Translate!$A$267 -> CO2 emissions for electricity 2017 including losses&WTT | M155: =Translate!$A$267 -> CO2 emissions for electricity 2017 including losses&WTT | N155: =Translate!$A$267 -> CO2 emissions for electricity 2017 including losses&WTT | X155: 0.4344825617 | AB155: kWh | AC155: kWh
A156: 0 | C156: Electricity - Haiti | D156: kWh | E156: 1.585915341 | F156: CO2 emissions for electricity 2017 including losses&WTT | J156: 0.1 | K156: =Translate!$A$267 -> CO2 emissions for electricity 2017 including losses&WTT | L156: =Translate!$A$267 -> CO2 emissions for electricity 2017 including losses&WTT | M156: =Translate!$A$267 -> CO2 emissions for electricity 2017 including losses&WTT | N156: =Translate!$A$267 -> CO2 emissions for electricity 2017 including losses&WTT | X156: 1.585915341 | AB156: kWh | AC156: kWh
A157: 0 | C157: Electricity - Honduras | D157: kWh | E157: 0.4466537721 | F157: CO2 emissions for electricity 2017 including losses&WTT | J157: 0.1 | K157: =Translate!$A$267 -> CO2 emissions for electricity 2017 including losses&WTT | L157: =Translate!$A$267 -> CO2 emissions for electricity 2017 including losses&WTT | M157: =Translate!$A$267 -> CO2 emissions for electricity 2017 including losses&WTT | N157: =Translate!$A$267 -> CO2 emissions for electricity 2017 including losses&WTT | X157: 0.4466537721 | AB157: kWh | AC157: kWh
A158: 0 | C158: Electricity - Jamaica | D158: kWh | E158: 0.8626196849 | F158: CO2 emissions for electricity 2017 including losses&WTT | J158: 0.1 | K158: =Translate!$A$267 -> CO2 emissions for electricity 2017 including losses&WTT | L158: =Translate!$A$267 -> CO2 emissions for electricity 2017 including losses&WTT | M158: =Translate!$A$267 -> CO2 emissions for electricity 2017 including losses&WTT | N158: =Translate!$A$267 -> CO2 emissions for electricity 2017 including losses&WTT | X158: 0.8626196849 | AB158: kWh | AC158: kWh
A159: 0 | C159: Electricity - Nicaragua | D159: kWh | E159: 0.4892222713 | F159: CO2 emissions for electricity 2017 including losses&WTT | J159: 0.1 | K159: =Translate!$A$267 -> CO2 emissions for electricity 2017 including losses&WTT | L159: =Translate!$A$267 -> CO2 emissions for electricity 2017 including losses&WTT | M159: =Translate!$A$267 -> CO2 emissions for electricity 2017 including losses&WTT | N159: =Translate!$A$267 -> CO2 emissions for electricity 2017 including losses&WTT | X159: 0.4892222713 | AB159: kWh | AC159: kWh
A160: 0 | C160: Electricity - Panama | D160: kWh | E160: 0.2614069586 | F160: CO2 emissions for electricity 2017 including losses&WTT | J160: 0.1 | K160: =Translate!$A$267 -> CO2 emissions for electricity 2017 including losses&WTT | L160: =Translate!$A$267 -> CO2 emissions for electricity 2017 including losses&WTT | M160: =Translate!$A$267 -> CO2 emissions for electricity 2017 including losses&WTT | N160: =Translate!$A$267 -> CO2 emissions for electricity 2017 including losses&WTT | X160: 0.2614069586 | AB160: kWh | AC160: kWh
A161: =IF(ISBLANK(H161),OFFSET(A161,-1,0),OFFSET(A161,-1,0)+1) -> 0 | C161: Electricity - Paraguay | D161: =INDEX(AB161:AC161,MATCH($F$3,$AB$6:$AC$6,0)) -> kWh | E161: =IF(F161=H161,G161,INDEX(P161:AD161,MATCH($F161,$P$6:$AD$6,0))) -> 0.01900365245 | F161: =IF(ISBLANK(H161),INDEX(K161:N161,$D$4),H161) -> CO2 emissions for electricity 2017 including losses&WTT | J161: 0.1 | K161: =Translate!$A$267 -> CO2 emissions for electricity 2017 including losses&WTT | L161: =Translate!$A$267 -> CO2 emissions for electricity 2017 including losses&WTT | M161: =Translate!$A$267 -> CO2 emissions for electricity 2017 including losses&WTT | N161: =Translate!$A$267 -> CO2 emissions for electricity 2017 including losses&WTT | X161: 0.01900365245 | AB161: kWh | AC161: kWh
A162: 0 | C162: Electricity - Peru | D162: kWh | E162: 0.2980878113 | F162: CO2 emissions for electricity 2017 including losses&WTT | J162: 0.1 | K162: =Translate!$A$267 -> CO2 emissions for electricity 2017 including losses&WTT | L162: =Translate!$A$267 -> CO2 emissions for electricity 2017 including losses&WTT | M162: =Translate!$A$267 -> CO2 emissions for electricity 2017 including losses&WTT | N162: =Translate!$A$267 -> CO2 emissions for electricity 2017 including losses&WTT | X162: 0.2980878113 | AB162: kWh | AC162: kWh
A163: 0 | C163: Electricity - Trinidad and Tobago | D163: kWh | E163: 0.5645051391 | F163: CO2 emissions for electricity 2017 including losses&WTT | J163: 0.1 | K163: =Translate!$A$267 -> CO2 emissions for electricity 2017 including losses&WTT | L163: =Translate!$A$267 -> CO2 emissions for electricity 2017 including losses&WTT | M163: =Translate!$A$267 -> CO2 emissions for electricity 2017 including losses&WTT | N163: =Translate!$A$267 -> CO2 emissions for electricity 2017 including losses&WTT | X163: 0.5645051391 | AB163: kWh | AC163: kWh
A164: 0 | C164: Electricity - Uruguay | D164: kWh | E164: 0.07081741841 | F164: CO2 emissions for electricity 2017 including losses&WTT | J164: 0.1 | K164: =Translate!$A$267 -> CO2 emissions for electricity 2017 including losses&WTT | L164: =Translate!$A$267 -> CO2 emissions for electricity 2017 including losses&WTT | M164: =Translate!$A$267 -> CO2 emissions for electricity 2017 including losses&WTT | N164: =Translate!$A$267 -> CO2 emissions for electricity 2017 including losses&WTT | X164: 0.07081741841 | AB164: kWh | AC164: kWh
A165: 0 | C165: Electricity - Venezuela | D165: kWh | E165: 0.4292691374 | F165: CO2 emissions for electricity 2017 including losses&WTT | J165: 0.1 | K165: =Translate!$A$267 -> CO2 emissions for electricity 2017 including losses&WTT | L165: =Translate!$A$267 -> CO2 emissions for electricity 2017 including losses&WTT | M165: =Translate!$A$267 -> CO2 emissions for electricity 2017 including losses&WTT | N165: =Translate!$A$267 -> CO2 emissions for electricity 2017 including losses&WTT | X165: 0.4292691374 | AB165: kWh | AC165: kWh
A166: 0 | C166: Electricity - Bangladesh | D166: kWh | E166: 0.6499917357 | F166: CO2 emissions for electricity 2017 including losses&WTT | J166: 0.1 | K166: =Translate!$A$267 -> CO2 emissions for electricity 2017 including losses&WTT | L166: =Translate!$A$267 -> CO2 emissions for electricity 2017 including losses&WTT | M166: =Translate!$A$267 -> CO2 emissions for electricity 2017 including losses&WTT | N166: =Translate!$A$267 -> CO2 emissions for electricity 2017 including losses&WTT | X166: 0.6499917357 | AB166: kWh | AC166: kWh
A167: 0 | C167: Electricity - Brunei Darussalam | D167: kWh | E167: 0.8008137599 | F167: CO2 emissions for electricity 2017 including losses&WTT | J167: 0.1 | K167: =Translate!$A$267 -> CO2 emissions for electricity 2017 including losses&WTT | L167: =Translate!$A$267 -> CO2 emissions for electricity 2017 including losses&WTT | M167: =Translate!$A$267 -> CO2 emissions for electricity 2017 including losses&WTT | N167: =Translate!$A$267 -> CO2 emissions for electricity 2017 including losses&WTT | X167: 0.8008137599 | AB167: kWh | AC167: kWh
A168: 0 | C168: Electricity - Cambodia | D168: kWh | E168: 0.752189597 | F168: CO2 emissions for electricity 2017 including losses&WTT | J168: 0.1 | K168: =Translate!$A$267 -> CO2 emissions for electricity 2017 including losses&WTT | L168: =Translate!$A$267 -> CO2 emissions for electricity 2017 including losses&WTT | M168: =Translate!$A$267 -> CO2 emissions for electricity 2017 including losses&WTT | N168: =Translate!$A$267 -> CO2 emissions for electricity 2017 including losses&WTT | X168: 0.752189597 | AB168: kWh | AC168: kWh
A169: 0 | C169: Electricity - People's Rep. of China | D169: kWh | E169: 0.726143641 | F169: CO2 emissions for electricity 2017 including losses&WTT | J169: 0.1 | K169: =Translate!$A$267 -> CO2 emissions for electricity 2017 including losses&WTT | L169: =Translate!$A$267 -> CO2 emissions for electricity 2017 including losses&WTT | M169: =Translate!$A$267 -> CO2 emissions for electricity 2017 including losses&WTT | N169: =Translate!$A$267 -> CO2 emissions for electricity 2017 including losses&WTT | X169: 0.726143641 | AB169: kWh | AC169: kWh
A170: 0 | C170: Electricity - Chinese Taipei | D170: kWh | E170: 0.7320446707 | F170: CO2 emissions for electricity 2017 including losses&WTT | J170: 0.1 | K170: =Translate!$A$267 -> CO2 emissions for electricity 2017 including losses&WTT | L170: =Translate!$A$267 -> CO2 emissions for electricity 2017 including losses&WTT | M170: =Translate!$A$267 -> CO2 emissions for electricity 2017 including losses&WTT | N170: =Translate!$A$267 -> CO2 emissions for electricity 2017 including losses&WTT | X170: 0.7320446707 | AB170: kWh | AC170: kWh
A171: 0 | C171: Electricity - India | D171: kWh | E171: 0.9316782034 | F171: CO2 emissions for electricity 2017 including losses&WTT | J171: 0.1 | K171: =Translate!$A$267 -> CO2 emissions for electricity 2017 including losses&WTT | L171: =Translate!$A$267 -> CO2 emissions for electricity 2017 including losses&WTT | M171: =Translate!$A$267 -> CO2 emissions for electricity 2017 including losses&WTT | N171: =Translate!$A$267 -> CO2 emissions for electricity 2017 including losses&WTT | X171: 0.9316782034 | AB171: kWh | AC171: kWh
A172: 0 | C172: Electricity - Indonesia | D172: kWh | E172: 0.9201657294 | F172: CO2 emissions for electricity 2017 including losses&WTT | J172: 0.1 | K172: =Translate!$A$267 -> CO2 emissions for electricity 2017 including losses&WTT | L172: =Translate!$A$267 -> CO2 emissions for electricity 2017 including losses&WTT | M172: =Translate!$A$267 -> CO2 emissions for electricity 2017 including losses&WTT | N172: =Translate!$A$267 -> CO2 emissions for electricity 2017 including losses&WTT | X172: 0.9201657294 | AB172: kWh | AC172: kWh
A173: 0 | C173: Electricity - DPR of Korea | D173: kWh | E173: 0.2879450373 | F173: CO2 emissions for electricity 2017 including losses&WTT | J173: 0.1 | K173: =Translate!$A$267 -> CO2 emissions for electricity 2017 including losses&WTT | L173: =Translate!$A$267 -> CO2 emissions for electricity 2017 including losses&WTT | M173: =Translate!$A$267 -> CO2 emissions for electricity 2017 including losses&WTT | N173: =Translate!$A$267 -> CO2 emissions for electricity 2017 including losses&WTT | X173: 0.2879450373 | AB173: kWh | AC173: kWh
A174: 0 | C174: Electricity - Malaysia | D174: kWh | E174: 0.7740861091 | F174: CO2 emissions for electricity 2017 including losses&WTT | J174: 0.1 | K174: =Translate!$A$267 -> CO2 emissions for electricity 2017 including losses&WTT | L174: =Translate!$A$267 -> CO2 emissions for electricity 2017 including losses&WTT | M174: =Translate!$A$267 -> CO2 emissions for electricity 2017 including losses&WTT | N174: =Translate!$A$267 -> CO2 emissions for electricity 2017 including losses&WTT | X174: 0.7740861091 | AB174: kWh | AC174: kWh
A175: =IF(ISBLANK(H175),OFFSET(A175,-1,0),OFFSET(A175,-1,0)+1) -> 0 | C175: Electricity - Mongolia | D175: =INDEX(AB175:AC175,MATCH($F$3,$AB$6:$AC$6,0)) -> kWh | E175: =IF(F175=H175,G175,INDEX(P175:AD175,MATCH($F175,$P$6:$AD$6,0))) -> 1.494254122 | F175: =IF(ISBLANK(H175),INDEX(K175:N175,$D$4),H175) -> CO2 emissions for electricity 2017 including losses&WTT | J175: 0.1 | K175: =Translate!$A$267 -> CO2 emissions for electricity 2017 including losses&WTT | L175: =Translate!$A$267 -> CO2 emissions for electricity 2017 including losses&WTT | M175: =Translate!$A$267 -> CO2 emissions for electricity 2017 including losses&WTT | N175: =Translate!$A$267 -> CO2 emissions for electricity 2017 including losses&WTT | X175: 1.494254122 | AB175: kWh | AC175: kWh
A176: 0 | C176: Electricity - Myanmar | D176: kWh | E176: 0.4561187494 | F176: CO2 emissions for electricity 2017 including losses&WTT | J176: 0.1 | K176: =Translate!$A$267 -> CO2 emissions for electricity 2017 including losses&WTT | L176: =Translate!$A$267 -> CO2 emissions for electricity 2017 including losses&WTT | M176: =Translate!$A$267 -> CO2 emissions for electricity 2017 including losses&WTT | N176: =Translate!$A$267 -> CO2 emissions for electricity 2017 including losses&WTT | X176: 0.4561187494 | AB176: kWh | AC176: kWh
A177: 0 | C177: Electricity - Nepal | D177: kWh | E177: 0.01900107782 | F177: CO2 emissions for electricity 2017 including losses&WTT | J177: 0.1 | K177: =Translate!$A$267 -> CO2 emissions for electricity 2017 including losses&WTT | L177: =Translate!$A$267 -> CO2 emissions for electricity 2017 including losses&WTT | M177: =Translate!$A$267 -> CO2 emissions for electricity 2017 including losses&WTT | N177: =Translate!$A$267 -> CO2 emissions for electricity 2017 including losses&WTT | X177: 0.01900107782 | AB177: kWh | AC177: kWh
A178: 0 | C178: Electricity - Pakistan | D178: kWh | E178: 0.5610026966 | F178: CO2 emissions for electricity 2017 including losses&WTT | J178: 0.1 | K178: =Translate!$A$267 -> CO2 emissions for electricity 2017 including losses&WTT | L178: =Translate!$A$267 -> CO2 emissions for electricity 2017 including losses&WTT | M178: =Translate!$A$267 -> CO2 emissions for electricity 2017 including losses&WTT | N178: =Translate!$A$267 -> CO2 emissions for electricity 2017 including losses&WTT | X178: 0.5610026966 | AB178: kWh | AC178: kWh
A179: 0 | C179: Electricity - Philippines | D179: kWh | E179: 0.8111739388 | F179: CO2 emissions for electricity 2017 including losses&WTT | J179: 0.1 | K179: =Translate!$A$267 -> CO2 emissions for electricity 2017 including losses&WTT | L179: =Translate!$A$267 -> CO2 emissions for electricity 2017 including losses&WTT | M179: =Translate!$A$267 -> CO2 emissions for electricity 2017 including losses&WTT | N179: =Translate!$A$267 -> CO2 emissions for electricity 2017 including losses&WTT | X179: 0.8111739388 | AB179: kWh | AC179: kWh
A180: 0 | C180: Electricity - Singapore | D180: kWh | E180: 0.4998425799 | F180: CO2 emissions for electricity 2017 including losses&WTT | J180: 0.1 | K180: =Translate!$A$267 -> CO2 emissions for electricity 2017 including losses&WTT | L180: =Translate!$A$267 -> CO2 emissions for electricity 2017 including losses&WTT | M180: =Translate!$A$267 -> CO2 emissions for electricity 2017 including losses&WTT | N180: =Translate!$A$267 -> CO2 emissions for electricity 2017 including losses&WTT | X180: 0.4998425799 | AB180: kWh | AC180: kWh
A181: 0 | C181: Electricity - Sri Lanka | D181: kWh | E181: 0.7350494685 | F181: CO2 emissions for electricity 2017 including losses&WTT | J181: 0.1 | K181: =Translate!$A$267 -> CO2 emissions for electricity 2017 including losses&WTT | L181: =Translate!$A$267 -> CO2 emissions for electricity 2017 including losses&WTT | M181: =Translate!$A$267 -> CO2 emissions for electricity 2017 including losses&WTT | N181: =Translate!$A$267 -> CO2 emissions for electricity 2017 including losses&WTT | X181: 0.7350494685 | AB181: kWh | AC181: kWh
A182: 0 | C182: Electricity - Thailand | D182: kWh | E182: 0.5986560885 | F182: CO2 emissions for electricity 2017 including losses&WTT | J182: 0.1 | K182: =Translate!$A$267 -> CO2 emissions for electricity 2017 including losses&WTT | L182: =Translate!$A$267 -> CO2 emissions for electricity 2017 including losses&WTT | M182: =Translate!$A$267 -> CO2 emissions for electricity 2017 including losses&WTT | N182: =Translate!$A$267 -> CO2 emissions for electricity 2017 including losses&WTT | X182: 0.5986560885 | AB182: kWh | AC182: kWh
A183: 0 | C183: Electricity - Viet Nam | D183: kWh | E183: 0.4428496217 | F183: CO2 emissions for electricity 2017 including losses&WTT | J183: 0.1 | K183: =Translate!$A$267 -> CO2 emissions for electricity 2017 including losses&WTT | L183: =Translate!$A$267 -> CO2 emissions for electricity 2017 including losses&WTT | M183: =Translate!$A$267 -> CO2 emissions for electricity 2017 including losses&WTT | N183: =Translate!$A$267 -> CO2 emissions for electricity 2017 including losses&WTT | X183: 0.4428496217 | AB183: kWh | AC183: kWh
A184: 0 | C184: =$C$45&" - "&Lists!B61 -> Electricity - AKGD (ASCC Alaska Grid) | D184: kWh | E184: 0.4739923002 | F184: EPA | J184: 0.1 | K184: EPA | L184: EPA | M184: EPA | N184: EPA | Y184: 0.4739923002 | AB184: kWh | AC184: kWh
A185: 0 | C185: =$C$45&" - "&Lists!B62 -> Electricity - AKMS (ASCC Miscellaneous) | D185: kWh | E185: 0.238988553 | F185: EPA | J185: 0.1 | K185: EPA | L185: EPA | M185: EPA | N185: EPA | Y185: 0.238988553 | AB185: kWh | AC185: kWh
A186: 0 | C186: =$C$45&" - "&Lists!B63 -> Electricity - AZNM (WECC Southwest) | D186: kWh | E186: 0.466122479 | F186: EPA | J186: 0.1 | K186: EPA | L186: EPA | M186: EPA | N186: EPA | Y186: 0.466122479 | AB186: kWh | AC186: kWh
A187: 0 | C187: =$C$45&" - "&Lists!B64 -> Electricity - CAMX (WECC California) | D187: kWh | E187: 0.2261518994 | F187: EPA | J187: 0.1 | K187: EPA | L187: EPA | M187: EPA | N187: EPA | Y187: 0.2261518994 | AB187: kWh | AC187: kWh
A188: 0 | C188: =$C$45&" - "&Lists!B65 -> Electricity - ERCT (ERCOT All) | D188: kWh | E188: 0.4245915955 | F188: EPA | J188: 0.1 | K188: EPA | L188: EPA | M188: EPA | N188: EPA | Y188: 0.4245915955 | AB188: kWh | AC188: kWh
A189: 0 | C189: =$C$45&" - "&Lists!B66 -> Electricity - FRCC (FRCC All) | D189: kWh | E189: 0.4246369547 | F189: EPA | J189: 0.1 | K189: EPA | L189: EPA | M189: EPA | N189: EPA | Y189: 0.4246369547 | AB189: kWh | AC189: kWh
A190: 0 | C190: =$C$45&" - "&Lists!B67 -> Electricity - HIMS (HICC Miscellaneous) | D190: kWh | E190: 0.5075739839 | F190: EPA | J190: 0.1 | K190: EPA | L190: EPA | M190: EPA | N190: EPA | Y190: 0.5075739839 | AB190: kWh | AC190: kWh
A191: 0 | C191: =$C$45&" - "&Lists!B68 -> Electricity - HIOA (HICC Oahu) | D191: kWh | E191: 0.7631481284 | F191: EPA | J191: 0.1 | K191: EPA | L191: EPA | M191: EPA | N191: EPA | Y191: 0.7631481284 | AB191: kWh | AC191: kWh
A192: 0 | C192: =$C$45&" - "&Lists!B69 -> Electricity - MROE (MRO East) | D192: kWh | E192: 0.7664321344 | F192: EPA | J192: 0.1 | K192: EPA | L192: EPA | M192: EPA | N192: EPA | Y192: 0.7664321344 | AB192: kWh | AC192: kWh
A193: 0 | C193: =$C$45&" - "&Lists!B70 -> Electricity - MROW (MRO West) | D193: kWh | E193: 0.5666452701 | F193: EPA | J193: 0.1 | K193: EPA | L193: EPA | M193: EPA | N193: EPA | Y193: 0.5666452701 | AB193: kWh | AC193: kWh
A194: 0 | C194: =$C$45&" - "&Lists!B71 -> Electricity - NEWE (NPCC New England) | D194: kWh | E194: 0.2393491586 | F194: EPA | J194: 0.1 | K194: EPA | L194: EPA | M194: EPA | N194: EPA | Y194: 0.2393491586 | AB194: kWh | AC194: kWh
A195: 0 | C195: =$C$45&" - "&Lists!B72 -> Electricity - NWPP (WECC Northwest) | D195: kWh | E195: 0.2917980016 | F195: EPA | J195: 0.1 | K195: EPA | L195: EPA | M195: EPA | N195: EPA | Y195: 0.2917980016 | AB195: kWh | AC195: kWh
A196: 0 | C196: =$C$45&" - "&Lists!B73 -> Electricity - NYCW (NPCC NYC/Westchester) | D196: kWh | E196: 0.2711822452 | F196: EPA | J196: 0.1 | K196: EPA | L196: EPA | M196: EPA | N196: EPA | Y196: 0.2711822452 | AB196: kWh | AC196: kWh
A197: 0 | C197: =$C$45&" - "&Lists!B74 -> Electricity - NYLI (NPCC Long Island) | D197: kWh | E197: 0.5411987589 | F197: EPA | J197: 0.1 | K197: EPA | L197: EPA | M197: EPA | N197: EPA | Y197: 0.5411987589 | AB197: kWh | AC197: kWh
C198: =$C$45&" - "&Lists!B75 -> Electricity - NYUP (NPCC Upstate NY) | D198: kWh | E198: 0.1152894786 | F198: EPA | J198: 0.1 | K198: EPA | L198: EPA | M198: EPA | N198: EPA | Y198: 0.1152894786 | AB198: kWh | AC198: kWh
A199: =IF(ISBLANK(H199),OFFSET(A199,-1,0),OFFSET(A199,-1,0)+1) -> 0 | C199: =$C$45&" - "&Lists!B76 -> Electricity - RFCE (RFC East) | D199: kWh | E199: 0.3265635604 | F199: EPA | J199: 0.1 | K199: EPA | L199: EPA | M199: EPA | N199: EPA | Y199: 0.3265635604 | AB199: kWh | AC199: kWh
A200: 0 | C200: =$C$45&" - "&Lists!B77 -> Electricity - RFCM (RFC Michigan) | D200: kWh | E200: 0.5993038941 | F200: EPA | J200: 0.1 | K200: EPA | L200: EPA | M200: EPA | N200: EPA | Y200: 0.5993038941 | AB200: kWh | AC200: kWh
A201: 0 | C201: =$C$45&" - "&Lists!B78 -> Electricity - RFCW (RFC West) | D201: kWh | E201: 0.5325691711 | F201: EPA | J201: 0.1 | K201: EPA | L201: EPA | M201: EPA | N201: EPA | Y201: 0.5325691711 | AB201: kWh | AC201: kWh
A202: 0 | C202: =$C$45&" - "&Lists!B79 -> Electricity - RMPA (WECC Rockies) | D202: kWh | E202: 0.5815321595 | F202: EPA | J202: 0.1 | K202: EPA | L202: EPA | M202: EPA | N202: EPA | Y202: 0.5815321595 | AB202: kWh | AC202: kWh
... 171 more rows

Sheet Logos (hidden)
G10: =Translate!$A$275 -> Insert your logo here
B12: =Translate!$A$274 -> Size | C12: 1 | J12: =Translate!$A$276 -> The logo have to fit in the white box

Sheet Sheets (hidden)
A1: =Translate!$A$277 -> Subprojects | B1: =Translate!$A$278 -> Projects | C1: =Translate!$A$279 -> Both | D1: =Translate!$A$36 -> Results | E1: =Translate!$A$37 -> Comparison

Sheet Lists (hidden)
A1: =Translate!$A$280 -> Techniques | B1: =Translate!$A$299 -> Countries | C1: =Translate!$A$473 -> RailFreightElectric | D1: =Translate!$A$254 -> Material type | G1: =Translate!$A$477 -> new_recycled_reused
A2: =Translate!A281 -> Bored piles | B2: =Translate!$A$300 -> -Select the project country | C2: =Translate!$A$474&B2 -> Rail - Average freight - electric - -Select the project country | D2: =Translate!$A$73 -> Concrete / Slurry / Grout mix | E2: =Translate!$A$117 -> made on site | F2: =Translate!$A$91 -> Default | G2: =Translate!$A$478 -> -new or recycled- | H2: =Translate!$A$479 -> Enter the number of working days | I2: =Translate!A163 -> Yes | J2: Deutsch
A3: =Translate!A282 -> Displacement piles | B3: =Translate!$A$301 -> ---OECD Europe | C3: =Translate!$A$474&B3 -> Rail - Average freight - electric - ---OECD Europe | D3: =Translate!$A$138 -> Steel | E3: =Translate!$A$475 -> made at plant | F3: =Translate!$A$476 -> Manually turned OFF | G3: =Translate!$A$111 -> -reused- | H3: =Translate!$A$480 -> Enter the average number of people working on the project | I3: =Translate!A164 -> No | J3: English
A4: =Translate!A283 -> Micropiles/Minipiles | B4: =Translate!$A$302 -> Austria | C4: =Translate!$A$474&B4 -> Rail - Average freight - electric - Austria | D4: =Translate!$A$118 -> Other | H4: =Translate!$A$481 -> Select a country | J4: Français
A5: =Translate!A284 -> Diaphragm and slurry walls | B5: =Translate!$A$303 -> Belgium | C5: =Translate!$A$474&B5 -> Rail - Average freight - electric - Belgium | H5: =Translate!$A$482 -> emissions are relatively high | J5: Español
A6: =Translate!A285 -> Sheet pile walls | B6: =Translate!$A$304 -> Czech Republic | C6: =Translate!$A$474&B6 -> Rail - Average freight - electric - Czech Republic | H6: =Translate!$A$483 -> emissions are relatively low | J6: Italiano
A7: =Translate!A286 -> Pile walls | B7: =Translate!$A$305 -> Denmark | C7: =Translate!$A$474&B7 -> Rail - Average freight - electric - Denmark | H7: =Translate!$A$484 -> (Primary source) | J7: Nederlands
A8: =Translate!A287 -> Anchors | B8: =Translate!$A$306 -> Estonia | C8: =Translate!$A$474&B8 -> Rail - Average freight - electric - Estonia | H8: =Translate!$A$485 -> (Secondary source)
A9: =Translate!A288 -> Soil Nails | B9: =Translate!$A$307 -> Finland | C9: =Translate!$A$474&B9 -> Rail - Average freight - electric - Finland | H9: =Translate!A486 -> General Principles : emission sources are split into two categories : - primary emission sources (represented in colors) - secondary emission sources (represented in gray) The method recommends to start with the primary emission sources,with the secondary emission sources being automatically estimated. Then you may want to fine tune the calculation using specific activity data for the secondary emission sources also.
A10: =Translate!A289 -> Dynamic compaction | B10: =Translate!$A$308 -> France | C10: =Translate!$A$474&B10 -> Rail - Average freight - electric - France | H10: =Translate!A487 -> New Subproject sheet
A11: =Translate!A290 -> Vibro compaction | B11: =Translate!$A$309 -> Germany | C11: =Translate!$A$474&B11 -> Rail - Average freight - electric - Germany | H11: =Translate!A488 -> New Project sheet
A12: =Translate!A291 -> Grouting | B12: =Translate!$A$310 -> Greece | C12: =Translate!$A$474&B12 -> Rail - Average freight - electric - Greece | H12: =Translate!A489 -> New Comparison sheet
A13: =Translate!A292 -> Jet Grouting | B13: =Translate!$A$311 -> Hungary | C13: =Translate!$A$474&B13 -> Rail - Average freight - electric - Hungary | H13: =Translate!A490 -> New Results sheet
A14: =Translate!A293 -> Stone Columns | B14: =Translate!$A$312 -> Iceland | C14: =Translate!$A$474&B14 -> Rail - Average freight - electric - Iceland | H14: =Translate!A491 -> Load your logo
A15: =Translate!A294 -> Soil Mixing | B15: =Translate!$A$313 -> Ireland | C15: =Translate!$A$474&B15 -> Rail - Average freight - electric - Ireland | H15: =Translate!A492 -> Set the size
A16: =Translate!A295 -> Vertical Drains | B16: =Translate!$A$314 -> Italy | C16: =Translate!$A$474&B16 -> Rail - Average freight - electric - Italy | H16: =Translate!A493 -> When your image fit in the white box, click here to import the logo
A17: =Translate!A296 -> Dewatering | B17: =Translate!$A$315 -> Luxembourg | C17: =Translate!$A$474&B17 -> Rail - Average freight - electric - Luxembourg | H17: =Translate!A494 -> Start
A18: =Translate!A118 -> Other | B18: =Translate!$A$316 -> Netherlands | C18: =Translate!$A$474&B18 -> Rail - Average freight - electric - Netherlands | H18: =Translate!A495 -> ACCEPT
B19: =Translate!$A$317 -> Norway | C19: =Translate!$A$474&B19 -> Rail - Average freight - electric - Norway
B20: =Translate!$A$318 -> Poland | C20: =Translate!$A$474&B20 -> Rail - Average freight - electric - Poland
B21: =Translate!$A$319 -> Portugal | C21: =Translate!$A$474&B21 -> Rail - Average freight - electric - Portugal
B22: =Translate!$A$320 -> Slovak Republic | C22: =Translate!$A$474&B22 -> Rail - Average freight - electric - Slovak Republic
B23: =Translate!$A$321 -> Slovenia | C23: =Translate!$A$474&B23 -> Rail - Average freight - electric - Slovenia
B24: =Translate!$A$322 -> Spain | C24: =Translate!$A$474&B24 -> Rail - Average freight - electric - Spain
B25: =Translate!$A$323 -> Sweden | C25: =Translate!$A$474&B25 -> Rail - Average freight - electric - Sweden
B26: =Translate!$A$324 -> Switzerland | C26: =Translate!$A$474&B26 -> Rail - Average freight - electric - Switzerland
B27: =Translate!$A$325 -> Turkey | C27: =Translate!$A$474&B27 -> Rail - Average freight - electric - Turkey
B28: =Translate!$A$326 -> United Kingdom | C28: =Translate!$A$474&B28 -> Rail - Average freight - electric - United Kingdom
C29: =Translate!$A$474&B29 -> Rail - Average freight - electric -
B30: =Translate!$A$327 -> ---Non-OECD Europe and Eurasia | C30: =Translate!$A$474&B30 -> Rail - Average freight - electric - ---Non-OECD Europe and Eurasia
B31: =Translate!$A$328 -> Albania | C31: =Translate!$A$474&B31 -> Rail - Average freight - electric - Albania
B32: =Translate!$A$329 -> Armenia | C32: =Translate!$A$474&B32 -> Rail - Average freight - electric - Armenia
B33: =Translate!$A$330 -> Azerbaijan | C33: =Translate!$A$474&B33 -> Rail - Average freight - electric - Azerbaijan
B34: =Translate!$A$331 -> Belarus | C34: =Translate!$A$474&B34 -> Rail - Average freight - electric - Belarus
B35: =Translate!$A$332 -> Bosnia and Herzegovina | C35: =Translate!$A$474&B35 -> Rail - Average freight - electric - Bosnia and Herzegovina
B36: =Translate!$A$333 -> Bulgaria | C36: =Translate!$A$474&B36 -> Rail - Average freight - electric - Bulgaria
B37: =Translate!$A$334 -> Croatia | C37: =Translate!$A$474&B37 -> Rail - Average freight - electric - Croatia
B38: =Translate!$A$335 -> Cyprus | C38: =Translate!$A$474&B38 -> Rail - Average freight - electric - Cyprus
B39: =Translate!$A$336 -> Georgia | C39: =Translate!$A$474&B39 -> Rail - Average freight - electric - Georgia
B40: =Translate!$A$337 -> Gibraltar | C40: =Translate!$A$474&B40 -> Rail - Average freight - electric - Gibraltar
B41: =Translate!$A$338 -> Kazakhstan | C41: =Translate!$A$474&B41 -> Rail - Average freight - electric - Kazakhstan
B42: =Translate!$A$339 -> Kyrgyzstan | C42: =Translate!$A$474&B42 -> Rail - Average freight - electric - Kyrgyzstan
B43: =Translate!$A$340 -> Latvia | C43: =Translate!$A$474&B43 -> Rail - Average freight - electric - Latvia
B44: =Translate!$A$341 -> Lithuania | C44: =Translate!$A$474&B44 -> Rail - Average freight - electric - Lithuania
B45: =Translate!$A$342 -> FYR of Macedonia | C45: =Translate!$A$474&B45 -> Rail - Average freight - electric - FYR of Macedonia
B46: =Translate!$A$343 -> Malta | C46: =Translate!$A$474&B46 -> Rail - Average freight - electric - Malta
B47: =Translate!$A$344 -> Republic of Moldova | C47: =Translate!$A$474&B47 -> Rail - Average freight - electric - Republic of Moldova
B48: =Translate!$A$345 -> Romania | C48: =Translate!$A$474&B48 -> Rail - Average freight - electric - Romania
B49: =Translate!$A$346 -> Russian Federation | C49: =Translate!$A$474&B49 -> Rail - Average freight - electric - Russian Federation
B50: =Translate!$A$347 -> Serbia | C50: =Translate!$A$474&B50 -> Rail - Average freight - electric - Serbia
B51: =Translate!$A$348 -> Tajikistan | C51: =Translate!$A$474&B51 -> Rail - Average freight - electric - Tajikistan
B52: =Translate!$A$349 -> Turkmenistan | C52: =Translate!$A$474&B52 -> Rail - Average freight - electric - Turkmenistan
B53: =Translate!$A$350 -> Ukraine | C53: =Translate!$A$474&B53 -> Rail - Average freight - electric - Ukraine
B54: =Translate!$A$351 -> Uzbekistan | C54: =Translate!$A$474&B54 -> Rail - Average freight - electric - Uzbekistan
C55: =Translate!$A$474&B55 -> Rail - Average freight - electric -
B56: =Translate!$A$352 -> ---OECD America | C56: =Translate!$A$474&B56 -> Rail - Average freight - electric - ---OECD America
B57: =Translate!$A$353 -> Canada | C57: =Translate!$A$474&B57 -> Rail - Average freight - electric - Canada
B58: =Translate!$A$354 -> Chile | C58: =Translate!$A$474&B58 -> Rail - Average freight - electric - Chile
B59: =Translate!$A$355 -> Mexico | C59: =Translate!$A$474&B59 -> Rail - Average freight - electric - Mexico
B60: =Translate!$A356 -> United States | C60: =Translate!$A$474&B60 -> Rail - Average freight - electric - United States
B61: =Translate!$A357 -> AKGD (ASCC Alaska Grid) | C61: =Translate!$A$474&B88 -> Rail - Average freight - electric - ---OECD Asia Oceania
B62: =Translate!$A358 -> AKMS (ASCC Miscellaneous) | C62: =Translate!$A$474&B89 -> Rail - Average freight - electric - Australia
B63: =Translate!$A359 -> AZNM (WECC Southwest) | C63: =Translate!$A$474&B90 -> Rail - Average freight - electric - Israel
B64: =Translate!$A360 -> CAMX (WECC California) | C64: =Translate!$A$474&B91 -> Rail - Average freight - electric - Japan
B65: =Translate!$A361 -> ERCT (ERCOT All) | C65: =Translate!$A$474&B92 -> Rail - Average freight - electric - Korea
B66: =Translate!$A362 -> FRCC (FRCC All) | C66: =Translate!$A$474&B93 -> Rail - Average freight - electric - New Zealand
B67: =Translate!$A363 -> HIMS (HICC Miscellaneous) | C67: =Translate!$A$474&B94 -> Rail - Average freight - electric -
B68: =Translate!$A364 -> HIOA (HICC Oahu) | C68: =Translate!$A$474&B95 -> Rail - Average freight - electric - ---Africa
B69: =Translate!$A365 -> MROE (MRO East) | C69: =Translate!$A$474&B96 -> Rail - Average freight - electric - Algeria
B70: =Translate!$A366 -> MROW (MRO West) | C70: =Translate!$A$474&B97 -> Rail - Average freight - electric - Angola
B71: =Translate!$A367 -> NEWE (NPCC New England) | C71: =Translate!$A$474&B98 -> Rail - Average freight - electric - Benin
B72: =Translate!$A368 -> NWPP (WECC Northwest) | C72: =Translate!$A$474&B99 -> Rail - Average freight - electric - Botswana
B73: =Translate!$A369 -> NYCW (NPCC NYC/Westchester) | C73: =Translate!$A$474&B100 -> Rail - Average freight - electric - Cameroon
B74: =Translate!$A370 -> NYLI (NPCC Long Island) | C74: =Translate!$A$474&B101 -> Rail - Average freight - electric - Congo
B75: =Translate!$A371 -> NYUP (NPCC Upstate NY) | C75: =Translate!$A$474&B102 -> Rail - Average freight - electric - Dem. Rep. of Congo
B76: =Translate!$A372 -> RFCE (RFC East) | C76: =Translate!$A$474&B103 -> Rail - Average freight - electric - Côte d'Ivoire
B77: =Translate!$A373 -> RFCM (RFC Michigan) | C77: =Translate!$A$474&B104 -> Rail - Average freight - electric - Egypt
B78: =Translate!$A374 -> RFCW (RFC West) | C78: =Translate!$A$474&B105 -> Rail - Average freight - electric - Eritrea
B79: =Translate!$A375 -> RMPA (WECC Rockies) | C79: =Translate!$A$474&B106 -> Rail - Average freight - electric - Ethiopia
B80: =Translate!$A376 -> SPNO (SPP North) | C80: =Translate!$A$474&B107 -> Rail - Average freight - electric - Gabon
B81: =Translate!$A377 -> SPSO (SPP South) | C81: =Translate!$A$474&B108 -> Rail - Average freight - electric - Ghana
B82: =Translate!$A378 -> SRMV (SERC Mississippi Valley) | C82: =Translate!$A$474&B109 -> Rail - Average freight - electric - Kenya
B83: =Translate!$A379 -> SRMW (SERC Midwest) | C83: =Translate!$A$474&B110 -> Rail - Average freight - electric - Libyan Arab Jamahiriya
B84: =Translate!$A380 -> SRSO (SERC South) | C84: =Translate!$A$474&B111 -> Rail - Average freight - electric - Morocco
B85: =Translate!$A381 -> SRTV (SERC Tennessee Valley) | C85: =Translate!$A$474&B112 -> Rail - Average freight - electric - Mozambique
B86: =Translate!$A382 -> SRVC (SERC Virginia/Carolina) | C86: =Translate!$A$474&B113 -> Rail - Average freight - electric - Namibia
B87: US Average | C87: =Translate!$A$474&B115 -> Rail - Average freight - electric - Nigeria
B88: =Translate!$A$383 -> ---OECD Asia Oceania | C88: =Translate!$A$474&B116 -> Rail - Average freight - electric - Senegal
B89: =Translate!$A$384 -> Australia | C89: =Translate!$A$474&B117 -> Rail - Average freight - electric - South Africa
B90: =Translate!$A$385 -> Israel | C90: =Translate!$A$474&B119 -> Rail - Average freight - electric - Sudan
B91: =Translate!$A$386 -> Japan | C91: =Translate!$A$474&B120 -> Rail - Average freight - electric - United Rep. of Tanzania
B92: =Translate!$A$387 -> Korea | C92: =Translate!$A$474&B121 -> Rail - Average freight - electric - Togo
B93: =Translate!$A$388 -> New Zealand | C93: =Translate!$A$474&B122 -> Rail - Average freight - electric - Tunisia
C94: =Translate!$A$474&B123 -> Rail - Average freight - electric - Zambia
B95: =Translate!$A$389 -> ---Africa | C95: =Translate!$A$474&B124 -> Rail - Average freight - electric - Zimbabwe
B96: =Translate!$A$390 -> Algeria | C96: =Translate!$A$474&B125 -> Rail - Average freight - electric - Other Africa
B97: =Translate!$A$391 -> Angola | C97: =Translate!$A$474&B126 -> Rail - Average freight - electric -
B98: =Translate!$A$392 -> Benin | C98: =Translate!$A$474&B127 -> Rail - Average freight - electric - ---Middle East
B99: =Translate!$A$393 -> Botswana | C99: =Translate!$A$474&B128 -> Rail - Average freight - electric - Bahrain
B100: =Translate!$A$394 -> Cameroon | C100: =Translate!$A$474&B129 -> Rail - Average freight - electric - Islamic Rep. of Iran
B101: =Translate!$A$395 -> Congo | C101: =Translate!$A$474&B130 -> Rail - Average freight - electric - Iraq
B102: =Translate!$A$396 -> Dem. Rep. of Congo | C102: =Translate!$A$474&B131 -> Rail - Average freight - electric - Jordan
B103: =Translate!$A$397 -> Côte d'Ivoire | C103: =Translate!$A$474&B132 -> Rail - Average freight - electric - Kuwait
B104: =Translate!$A$398 -> Egypt | C104: =Translate!$A$474&B133 -> Rail - Average freight - electric - Lebanon
B105: =Translate!$A$399 -> Eritrea | C105: =Translate!$A$474&B134 -> Rail - Average freight - electric - Oman
B106: =Translate!$A$400 -> Ethiopia | C106: =Translate!$A$474&B135 -> Rail - Average freight - electric - Qatar
B107: =Translate!$A$401 -> Gabon | C107: =Translate!$A$474&B136 -> Rail - Average freight - electric - Saudi Arabia
B108: =Translate!$A$402 -> Ghana | C108: =Translate!$A$474&B137 -> Rail - Average freight - electric - Syrian Arab Republic
B109: =Translate!$A$403 -> Kenya | C109: =Translate!$A$474&B138 -> Rail - Average freight - electric - United Arab Emirates
B110: =Translate!$A$404 -> Libyan Arab Jamahiriya | C110: =Translate!$A$474&B139 -> Rail - Average freight - electric - Yemen
B111: =Translate!$A$405 -> Morocco | C111: =Translate!$A$474&B140 -> Rail - Average freight - electric -
B112: =Translate!$A$406 -> Mozambique | C112: =Translate!$A$474&B141 -> Rail - Average freight - electric - ---Latin America
B113: =Translate!$A$407 -> Namibia | C113: =Translate!$A$474&B142 -> Rail - Average freight - electric - Argentina
B114: Niger | C114: =Translate!$A$474&B143 -> Rail - Average freight - electric - Bolivia
B115: =Translate!$A$408 -> Nigeria | C115: =Translate!$A$474&B144 -> Rail - Average freight - electric - Brazil
B116: =Translate!$A$409 -> Senegal | C116: =Translate!$A$474&B145 -> Rail - Average freight - electric - Colombia
B117: =Translate!$A$410 -> South Africa | C117: =Translate!$A$474&B146 -> Rail - Average freight - electric - Costa Rica
B118: South Sudan | C118: =Translate!$A$474&B147 -> Rail - Average freight - electric - Cuba
B119: =Translate!$A$411 -> Sudan | C119: =Translate!$A$474&B148 -> Rail - Average freight - electric - Dominican Republic
B120: =Translate!$A$412 -> United Rep. of Tanzania | C120: =Translate!$A$474&B149 -> Rail - Average freight - electric - Ecuador
B121: =Translate!$A$413 -> Togo | C121: =Translate!$A$474&B150 -> Rail - Average freight - electric - El Salvador
B122: =Translate!$A$414 -> Tunisia | C122: =Translate!$A$474&B151 -> Rail - Average freight - electric - Guatemala
B123: =Translate!$A$415 -> Zambia | C123: =Translate!$A$474&B152 -> Rail - Average freight - electric - Haiti
B124: =Translate!$A$416 -> Zimbabwe | C124: =Translate!$A$474&B153 -> Rail - Average freight - electric - Honduras
B125: =Translate!$A$417 -> Other Africa | C125: =Translate!$A$474&B154 -> Rail - Average freight - electric - Jamaica
C126: =Translate!$A$474&B155 -> Rail - Average freight - electric - Nicaragua
B127: =Translate!$A$418 -> ---Middle East | C127: =Translate!$A$474&B156 -> Rail - Average freight - electric - Panama
B128: =Translate!$A$419 -> Bahrain | C128: =Translate!$A$474&B158 -> Rail - Average freight - electric - Peru
B129: =Translate!$A$420 -> Islamic Rep. of Iran | C129: =Translate!$A$474&B159 -> Rail - Average freight - electric - Trinidad and Tobago
B130: =Translate!$A$421 -> Iraq | C130: =Translate!$A$474&B160 -> Rail - Average freight - electric - Uruguay
B131: =Translate!$A$422 -> Jordan | C131: =Translate!$A$474&B161 -> Rail - Average freight - electric - Venezuela
B132: =Translate!$A$423 -> Kuwait | C132: =Translate!$A$474&B162 -> Rail - Average freight - electric - Other Latin America
B133: =Translate!$A$424 -> Lebanon | C133: =Translate!$A$474&B163 -> Rail - Average freight - electric -
B134: =Translate!$A$425 -> Oman | C134: =Translate!$A$474&B164 -> Rail - Average freight - electric - ---Asia
B135: =Translate!$A$426 -> Qatar | C135: =Translate!$A$474&B165 -> Rail - Average freight - electric - Bangladesh
B136: =Translate!$A$427 -> Saudi Arabia | C136: =Translate!$A$474&B166 -> Rail - Average freight - electric - Brunei Darussalam
B137: =Translate!$A$428 -> Syrian Arab Republic | C137: =Translate!$A$474&B167 -> Rail - Average freight - electric - Cambodia
B138: =Translate!$A$429 -> United Arab Emirates | C138: =Translate!$A$474&B168 -> Rail - Average freight - electric - China
B139: =Translate!$A$430 -> Yemen | C139: =Translate!$A$474&B169 -> Rail - Average freight - electric - Chinese Taipei
C140: =Translate!$A$474&B170 -> Rail - Average freight - electric - India
B141: =Translate!$A$431 -> ---Latin America | C141: =Translate!$A$474&B171 -> Rail - Average freight - electric - Indonesia
B142: =Translate!$A$432 -> Argentina | C142: =Translate!$A$474&B172 -> Rail - Average freight - electric - DPR of Korea
B143: =Translate!$A$433 -> Bolivia | C143: =Translate!$A$474&B173 -> Rail - Average freight - electric - Malaysia
B144: =Translate!$A$434 -> Brazil | C144: =Translate!$A$474&B174 -> Rail - Average freight - electric - Mongolia
B145: =Translate!$A$435 -> Colombia | C145: =Translate!$A$474&B175 -> Rail - Average freight - electric - Myanmar
B146: =Translate!$A$436 -> Costa Rica | C146: =Translate!$A$474&B176 -> Rail - Average freight - electric - Nepal
B147: =Translate!$A$437 -> Cuba | C147: =Translate!$A$474&B177 -> Rail - Average freight - electric - Pakistan
B148: =Translate!$A$438 -> Dominican Republic | C148: =Translate!$A$474&B178 -> Rail - Average freight - electric - Philippines
B149: =Translate!$A$439 -> Ecuador | C149: =Translate!$A$474&B179 -> Rail - Average freight - electric - Singapore
B150: =Translate!$A$440 -> El Salvador | C150: =Translate!$A$474&B180 -> Rail - Average freight - electric - Sri Lanka
B151: =Translate!$A$441 -> Guatemala | C151: =Translate!$A$474&B181 -> Rail - Average freight - electric - Thailand
B152: =Translate!$A$442 -> Haiti | C152: =Translate!$A$474&B182 -> Rail - Average freight - electric - Vietnam
B153: =Translate!$A$443 -> Honduras | C153: =Translate!$A$474&B183 -> Rail - Average freight - electric - Other Asia
B154: =Translate!$A$444 -> Jamaica
B155: =Translate!$A$446 -> Nicaragua
B156: =Translate!$A$447 -> Panama
B157: Paraguay
B158: =Translate!$A$448 -> Peru
B159: =Translate!$A$449 -> Trinidad and Tobago
B160: =Translate!$A$450 -> Uruguay
B161: =Translate!$A$451 -> Venezuela
B162: =Translate!$A$452 -> Other Latin America
B164: =Translate!$A$453 -> ---Asia
B165: =Translate!$A$454 -> Bangladesh
B166: =Translate!$A$455 -> Brunei Darussalam
B167: =Translate!$A$456 -> Cambodia
B168: =Translate!$A$457 -> China
B169: =Translate!$A$458 -> Chinese Taipei
B170: =Translate!$A$459 -> India
B171: =Translate!$A$460 -> Indonesia
B172: =Translate!$A$461 -> DPR of Korea
B173: =Translate!$A$462 -> Malaysia
B174: =Translate!$A$463 -> Mongolia
B175: =Translate!$A$464 -> Myanmar
B176: =Translate!$A$465 -> Nepal
B177: =Translate!$A$466 -> Pakistan
B178: =Translate!$A$467 -> Philippines
B179: =Translate!$A$468 -> Singapore
B180: =Translate!$A$469 -> Sri Lanka
B181: =Translate!$A$470 -> Thailand
B182: =Translate!$A$471 -> Vietnam
B183: =Translate!$A$472 -> Other Asia

Sheet Translate (hidden)
A1: 2 | E1: Español
A2: Used | B2: Deutsch | C2: English | D2: Français | E2: Español | F2: Italiano | G2: Nederlands
A3: =INDEX(B3:I3,1,$A$1) -> EFFC DFI Carbon Calculator Tool | B3: EFFC DFI CO2-Rechner | C3: EFFC DFI Carbon Calculator Tool | D3: EFFC DFI outil calculateur carbone | E3: EFFC DFI Herramienta para el cálculo de la Huella de Carbono EFFC DFI | F3: EFFC DFI Carbon Calculator | G3: EFFC DFI Carbon Calculator Tool | J3: 1
A4: TITLE | B4: TITEL | C4: TITLE | D4: TITRE | E4: TÍTULO | F4: TITOLO | G4: TITEL | J4: 1
A5: AUTHORS | B5: AUTOREN | C5: AUTHORS | D5: AUTEURS | E5: AUTORES | F5: AUTORI | G5: AUTEURS | J5: 1
A6: VERSION NUMBER | B6: VERSIONSNUMMER | C6: VERSION NUMBER | D6: VERSION | E6: Número de versión | F6: Versione | G6: VERSIENUMMER | J6: 1
A7: Copyright | B7: Urheberrecht bei | C7: Copyright | D7: Droit d'auteur | E7: Derechos de autor | F7: Copyright | G7: AUTEURSRECHT | J7: 1
A8: DATE | B8: DATUM | C8: DATE | D8: DATE | E8: FECHA | F8: DATA | G8: DATUM | J8: 1
A9: WHAT IS THIS TOOL ? | B9: WOFÜR IST DAS TOOL? | C9: WHAT IS THIS TOOL ? | D9: CONTEXTE | E9: ¿QUÉ ES ESTA HERRAMIENTA? | F9: COS'E 'QUESTO STRUMENTO? | G9: Waar is de tool voor bedoeld? | J9: 1
A10: HOW TO USE THIS TOOL ? SOME QUICK TIPS | B10: WIE VERWENDET MAN DAS TOOL? EINE KURZREFERENZ | C10: HOW TO USE THIS TOOL ? SOME QUICK TIPS | D10: COMMENT UTILISER CET OUTIL? QUELQUES CONSEILS RAPIDES | E10: COMO USAR ESTA HERRAMIENTA? ALGUNOS CONSEJOS RÁPIDOS | F10: Come utilizzare questo strumento? ALCUNI SUGGERIMENTI VELOCI | G10: Hoe moet deze tool gebruikt worden? Een paar snelle tips | J10: 1
A11: =INDEX(B11:I11,1,$A$1) -> Activities covered | B11: Umfasste Arbeiten | C11: Activities covered | D11: Activités couvertes | E11: Las actividades cubiertas | F11: Attivitàcoperte | G11: Activiteiten die vallen | J11: 1
A12: Color code | B12: Farbschema | C12: Color code | D12: Code couleur | E12: Código de colores | F12: Codice del colore | G12: Kleurcode | J12: 1
A13: In all worksheets | B13: In allen Blättern | C13: In all worksheets | D13: Dans toutes les feuilles | E13: En todas las hojas de trabajo | F13: In tutti i fogli | G13: In alle werkbladen | J13: 1
A14: This excel spreadsheet is a carbon emission calculator for deep foundation techniques and projects. | B14: Dieses Excel-Tool ist ein CO2-Emissionsrechner für Verfahren und Projekte des Spezialtiefbaus. | C14: This excel spreadsheet is a carbon emission calculator for deep foundation techniques and projects. | D14: Cette outil Excel est un calculateur d'empreinte carbone pour les différentes techniques de fondations profondes. | E14: Esta hoja de cálculo Excel es una calculadora de emisiones de carbono para las técnicas de cimentación profundas y proyectos | F14: Questo foglio di calcolo Excel è un calcolatore di emissioni di CO2 per progetti e lavori relativi alle fondazioni profonde | G14: Deze tool berekent de CO2-uitstoot van funderingstechnieken en -projecten | J14: 1
A15: It has been developed to support EFFC and DFI members in calculating the carbon footprint of their projects, compare solutions and value technical innovation to reduce GHG emissions. | B15: Es wurde entwickelt, um EFFC- und DFI-Mitglieder bei der CO2-Bilanzierung ihrer Projekte zu unterstützen und um Varianten und Innovationen zur Verringerung der Treibhausgasemissionen zu vergleichen. | C15: It has been developed to support EFFC and DFI members in calculating the carbon footprint of their projects, compare solutions and value technical innovation to reduce GHG emissions. | D15: Il a été développé pour aider les membres EFFC et DFI dans le calcul de l'empreinte carbone de leurs projets, comparer les solutions et valoriser l'innovation technique pour réduire les émissions de GES. | E15: Se ha desarrollado para apoyar a los miembros de EFFC y DFI en el cálculo de la huella de carbono de sus proyectos, comparar soluciones e innovaciones con valor técnico para reducir las emisiones de GEI. | F15: E 'stato sviluppato per supportare i membri EFFC e DFI per calcolare quante emissioni di CO2 vengono prodotte nei loro lavori e per confrontare soluzioni e innovazioni tecniche al fine di ridurre le emissioni di gas serra. | G15: Het is ontwikkeld om de leden van EFFC en DFI te kunnen ondersteunen bij de berekening van de carbon footprint van hun projecten, de vergelijking van oplossingen en het bepalen van de impact van technische innovaties op de reductie van broeikasgassen | J15: 1
A16: On behalf of EFFC DFI, Carbone 4 developed a specific methodology and this tool to ensure coherence and comparability between various companies calculation | B16: Im Auftrag der EFFC DFI hat Carbone 4 eine spezifische Methodik sowie dieses Tool entwickelt, um Kohärenz und Vergleichbarkeit zwischen den Berechnungen verschiedener Unternehmen zu gewährleisten. | C16: On behalf of EFFC DFI, Carbone 4 developed a specific methodology and this tool to ensure coherence and comparability between various companies calculation | D16: Au nom de EFFC DFI, Carbone 4 a développé une méthodologie spécifique et cet outil pour assurer la cohérence et la comparabilité entre les calculs de différentes compagnies | E16: En nombre de EFFC DFI, Carbone 4 desarrolló una metodología específica y esta herramienta para garantizar la coherencia y la comparabilidad entre el cálculo de varias empresas | F16: Carbone 4, per conto di EFFC DFI, ha sviluppato una metodologia oltre a questo strumento specifico, per cercare di confrontare in maniera coerente i vari metodi di calcolo creati dalle varie aziende | G16: Namens EFFC DFI, ontwikkelde Carbone 4 een specifieke methodologie en tool om inzicht te geven in de samenhang en vergelijkbaarheid tussen de verschillende berekeningen van bedrijven | J16: 1
A17: Functionalities: calculation of the carbon footprint using standard or specific values, comparisons of projects, construction of complex project by adding simple techniques one to another. | B17: Funktionalitäten: Berechnung der CO2-Bilanz mit Standard- oder spezifischen Werten, Vergleich von Projekten, Berechnung von komplexen Projekten durch Addition der einzelnen Verfahren. | C17: Functionalities: calculation of the carbon footprint using standard or specific values, comparisons of projects, construction of complex project by adding simple techniques one to another. | D17: Fonctionnalités: calcul de l'empreinte carbone en utilisant des valeurs standards ou spécifiques, comparaisons de projets, construction de projets complexes en ajoutant des techniques simples une à l'autre. | E17: Funcionalidades: el cálculo de la huella de carbono utilizando valores estándar o específicos, comparaciones de proyectos, la construcción de proyectos complejos mediante la adición de técnicas simples a otro. | F17: Funzionalità: calcolo delle emissioni di CO2 con l'uso di valori o specifiche standard mediante il confronto e l'esecuzione di lavori, anche complessi, con l'aggiunta ogni volta di semplici tecniche di lavoro. | G17: Functionaliteiten: berekenen van de carbon footprint met behulp van standaard of specifieke waarden, vergelijken van projecten en technieken, opbouwen van complexe projecten bestaande uit verschillende technieken | J17: 1
A18: 1) Please first make sure that you have the latest version of the tool - check EFFC relevant webpage. | B18: 1) Bitte überprüfen Sie zuerst auf der entsprechenden EFFC-Homepage, ob Sie die neueste Version des Tools haben. | C18: 1) Please first make sure that you have the latest version of the tool - check EFFC relevant webpage. | D18: 1) Veuillez d'abord vérifier que vous disposez la dernière version de l'outil - vérifiersur la page web EFFC correspondante. | E18: 1) Por favor, primero asegúrese de que dispone de la última versión de la herramienta - revisa la correspondiente página web de EFFC. | F18: 1) Per prima cosa assicurarsi di avere la versione più recente del software - controllare la relativa pagina EFFC . | G18: 1) Zorg er allereerst voor dat u de nieuwste versie van de tool heeft, check daarom eerst de website van EFFC | J18: 1
A19: 2) Ensure you are trained to use this tool and understand its capabilities and limitations. Read the user guide and associated methodological document. | B19: 2) Stellen Sie sicher, dass Sie ausreichend geschult wurden, um dieses Tool zu verwenden und seine Möglichkeiten und Grenzen zu verstehen. Lesen Sie die Bedienungsanleitung und die zugehörige Beschreibung der Methodik. | C19: 2) Ensure you are trained to use this tool and understand its capabilities and limitations. Read the user guide and associated methodological document. | D19: 2) Assurez-vous d'être formé(e) pour utiliser cet outil et comprendre ses capacités et ses limites. Lisez le guide utilisateur et document méthodologique associé. | E19: 2) Asegúrese de que está capacitado para usar esta herramienta y entender sus potencialidades y limitaciones. Lea el manual del usuario y el documento metodológico asociado. | F19: 2) Assicurarsi di aver compreso l'uso di questo software e di esser capaci di utilizzarlo, mediante addestramento e comprendendone le potenzialità e limiti. Leggere il manuale d'uso e il relativo documento metodologico. | G19: 2) Zorg ervoor dat u op de hoogte bent van de mogelijkheden en beperkingen van de tool. Lees daarom de gebruiksaanwijzing en de beschrijving van de achterliggende methode aandachtig door | J19: 1
A20: =INDEX(B20:I20,1,$A$1) -> 3) Load your own logo in the tool | B20: 3) Laden Sie Ihr eigenes Logo in das Tool | C20: 3) Load your own logo in the tool | D20: 3) Chargez votre propre logo dans l'outil | E20: 3) Cargue su propio logotipo en la herramienta | F20: 3) Carica il logo della tua azienda nel programma | G20: 3) Laad uw eigen logo in het gereedschap | J20: 0
A21: 4) Create one or more new subprojects using the "New Subproject sheet" button located in the HOME worksheet | B21: 4) Erstellen Sie ein oder mehrere neue Teilprojekte mit dem "Neues Teilprojekt-Blatt"-Schalter des HOME-Arbeitsblattes. | C21: 4) Create one or more new subprojects using the "New Subproject sheet" button located in the HOME worksheet | D21: 4) Créer un ou plusieurs nouveaux sous-projets à l'aide du bouton "Nouvelle feuille sous-projet" situé dans la feuille de calcul HOME | E21: 4) Cree uno o más subproyectos nuevos utilizando el boton "Hoja de nuevo subproyecto" situado en la hoja de cálculo HOME | F21: 4) Creare uno o più sottoprogetti nuovi utilizzando il "Nuovo foglio di Sottoprogetto" pulsante che si trova nel foglio di lavoro HOME | G21: 4) Maak een of meer nieuwe deelprojecten aan met behulp van de knop "Nieuw Deelproject" in het HOME werkblad | J21: 1
A22: a) Enter all information relative to your different projects in the yellow tabs. You can add, duplicate or remove as many yellow tabs as you like. | B22: a) Geben Sie alle Informationen zu Ihren Projekte in die gelben Zellen ein. Sie können gelbe Zellen beliebig hinzufügen, kopieren oder löschen. | C22: a) Enter all information relative to your different projects in the yellow tabs. You can add, duplicate or remove as many yellow tabs as you like. | D22: a) Entrez toutes les informations relatives à vos différents projets dans les onglets jaunes. Vous pouvez ajouter, dupliquer ou supprimer autant d'onglets jaunes que vous le souhaitez. | E22: a) Introduzca toda la información relativa a sus distintos proyectos en las pestañas amarillas. Usted puede agregar, duplicar o eliminar tantas pestañas amarillas como quiera. | F22: a) Inserire tutte le informazioni relative ai vostri progetti nelle schede gialle. È possibile aggiungere, rimuovere o duplicare il maggior numero di schede gialle che vuoi. | G22: a) Voer alle informatie met betrekking tot uw deelproject(en) in de gele tabs in. U kunt zoveel gele tabs toevoegen, kopiëren of verwijderen als u wilt | J22: 1
A23: b) The input data for a given project are prioritised according to the technique used. | B23: b) Die Eingabedaten für ein gegebenes Projekt werden entsprechend dem angewandten Verfahren priorisiert. | C23: b) The input data for a given project are prioritised according to the technique used. | D23: b) Les données d'entrée pour un projet donné sont hiérarchisées en fonction de la technique utilisée. | E23: b) Los datos de entrada para un proyecto dado se priorizan según la técnica utilizada. | F23: b) i dati inseriti in un determinato progetto sono peculiari alle tecnologie utilizzate. | G23: b) Nadat de toegepaste techniek voor het (deel)project is geselecteerd kunnen de gegevens worden ingevoerd | J23: 1
A24: 5) Create one or more new projects using the "New Project sheet" button located in the HOME worksheet | B24: 5) Erstellen Sie ein oder mehrere neue Projekte mit dem "Neues Projekt-Blatt"-Schalter des HOME-Arbeitsblattes. | C24: 5) Create one or more new projects using the "New Project sheet" button located in the HOME worksheet | D24: 5) Créer un ou plusieurs nouveaux projets en utilisant le bouton "Nouvelle feuille Projet" situé dans la feuille de calcul HOME | E24: 5) Crear uno ó más proyectos nuevos utilizando el botón "Hoja de Nuevo Proyecto" localizado en la hoja INICIO | F24: 5) Creare uno o più nuovi progetti con il "Nuovo foglio di progetto" con pulsante che si trova nel foglio di lavoro HOME | G24: 5) Maak een of meer nieuwe projecten aan met behulp van de knop "Nieuw Project" in het HOME werkblad | J24: 1
A25: A project is an ensemble of subprojects and projects | B25: Ein Projekt setzt sich aus mehreren Teilprojekten und Projekten zusammen | C25: A project is an ensemble of subprojects and projects | D25: Un projet est un ensemble de sous-projets et de projets | E25: Un proyecto es un conjunto de sub-proyectos y proyectos | F25: Un progetto è un insieme di sottoprogetti e di progetti | G25: a) Een project is een geheel van deelprojecten en projecten | J25: 1
A26: 6) Export the result in a A4 PDF document | B26: 6) Exportieren Sie das Ergebnis in ein A4-PDF-Dokument | C26: 6) Export the result in a A4 PDF document | D26: 6) Exporter le résultat dans un document PDF A4 | E26: 6) Exportar el resultado en un documento PDF en A4 | F26: 6) Esportare i risultati in un documento PDF A4 | G26: 6) Exporteer het resultaat in een A4 PDF-document | J26: 1
A27: 7) Compare different alternatives in the "Comparison" worksheet | B27: 7) Vergleichen Sie Alternativen mit dem Arbeitsblatt "Vergleich" | C27: 7) Compare different alternatives in the "Comparison" worksheet | D27: 7) Comparer les différentes alternatives dans la feuille de calcul "Comparison" | E27: 7) Comparar diferentes alternativas en hoja "comparación" | F27: 7) Confrontare diverse alternative nel foglio di lavoro "Confronto" | G27: 7) Vergelijk verschillende alternatieven in het werkblad "Vergelijking" | J27: 0
A28: v4.0 | B28: v4.0 | C28: =B28 -> v4.0 | D28: =C28 -> v4.0 | E28: =D28 -> v4.0 | F28: =E28 -> v4.0 | G28: =F28 -> v4.0 | J28: 0
A29: EFFC & DFI, 2012. All rights reserved. | B29: EFFC & DFI, 2012. Alle Rechte vorbehalten. | C29: EFFC & DFI, 2012. All rights reserved. | D29: EFFC & DFI, 2012. Tous droits réservés. | E29: EFFC y DFI, 2012. Todos los derechos reservados. | F29: EFFC e DFI, 2012. Tutti i diritti riservati. | G29: EFFC & DFI, 2012. Alle rechten voorbehouden. | J29: 1
A30: Project input data (to be filled by user) | B30: Projekt-Eingabedaten (vom Benutzer auszufüllen) | C30: Project input data (to be filled by user) | D30: Données d'entrée du projet (à remplir par l'utilisateur) | E30: Datos de entrada del proyecto (a rellenar por el usuario) | F30: Dati di input del progetto (da compilare a cura dell'utente) | G30: Witte cellen: invoervelden (in te vullen door de gebruiker) | J30: 1
A31: Coloured cells : non editable cells | B31: Farbige Zellen: Nicht editierbare Zellen | C31: Coloured cells : non editable cells | D31: Cellules de couleur: cellules non modifiables | E31: celulas coloreadas: células no editables | F31: Celle colorate: celle non modificabili | G31: Gekleurde cellen: niet bewerkbare cellen | J31: 1
A32: EFFC DFI Project Carbon Calculator | B32: EFFC DFI Projekt-CO2-Rechner | C32: EFFC DFI Project Carbon Calculator | D32: EFFC DFI - Calculateur carbone de projets | E32: EFFC DFI Proyecto calculadora de carbono | F32: EFFC DFI Progetto del Calcolatore emissioni Co2 | G32: EFFC DFI Project Carbon Calculator | J32: 1
A33: Kind of Worksheet | B33: Art des Arbeitsblatts | C33: Kind of Worksheet | D33: Type de feuille de calcul | E33: Tipo de hoja de cálculo | F33: Tipo di foglio di lavoro | G33: Soort werkblad | J33: 1
A34: Subproject | B34: Teilprojekt | C34: Subproject | D34: Sous-projet | E34: Subproyecto | F34: Sottoprogetto | G34: Deelproject | J34: 1
A35: Project | B35: Projekt | C35: Project | D35: Projet | E35: Proyecto | F35: Progetto | G35: Project | J35: 1
A36: Results | B36: Ergebnisse | C36: Results | D36: Résultats | E36: Resultados | F36: Risultati | G36: Resultaten | J36: 1
A37: Comparison | B37: Vergleich | C37: Comparison | D37: Comparaison | E37: Comparación | F37: Confronto | G37: Vergelijking | J37: 1
A38: A subproject sheet is a spreadsheet in which you enter all activity data regarding one technique. | B38: Ein Teilprojekt-Arbeitsblatt ist ein Arbeitsblatt, in dem Sie alle Daten eines Verfahrens eingeben. | C38: A subproject sheet is a spreadsheet in which you enter all activity data regarding one technique. | D38: Une feuille sous-projet est une feuille de calcul dans laquelle vous entrez toutes les données d'activité relatives à une technique. | E38: Una hoja de subproyecto es una hoja de cálculo en la que se introducen todos los datos por actividad con respecto a una técnica. | F38: Una cartella sottoprogetto è un foglio di calcolo in cui inserire tutti i dati di attività riguardanti una tecnica esecutiva / metodologia | G38: Een deelprojectblad is het werkblad waarin u alle gegevens over de activiteiten met betrekking tot een techniek invoert | J38: 1
A39: A project sheet is a results sheet where you compare and consolidate subproject & projects sheets | B39: Ein Projekt-Blatt ist ein Arbeitsblatt, um Ergebnisse von Teilprojekten und Projekten zu vergleichen und zusammenzuführen. | C39: A project sheet is a results sheet where you compare and consolidate subproject & projects sheets | D39: Une feuille de projet est une feuille où vous consolidez les feuilles de sous-projets et de projets | E39: Una hoja de proyecto es una hoja de resultados donde se comparan y consolidan las hojas de los subproyectos y proyectos | F39: Una cartella di progetto è un foglio in cui si confrontano i risultati e combinano fogli di sottoprogetti e progetti | G39: Een projectblad is het werkblad waar u deelprojecten & projecten kunt samenvoegen en vergelijken | J39: 1
A40: First time on this tool? Make sure your logo appears on the results page! | B40: Benutzen Sie dieses Tool zum ersten Mal? Achten Sie darauf, dass Ihr Logo auf der Ergebnisseite erscheint! | C40: First time on this tool? Make sure your logo appears on the results page! | D40: Première fois sur cet outil? Assurez-vous que votre logo apparaisse sur la page de résultats! | E40: Por primera vez en esta herramienta? Asegúrese de que su logotipo aparece en la página de resultados! | F40: La prima volta su questo strumento? Assicurarsi che il tuo logo appaia sulla pagina dei risultati! | G40: Gebruikt u de tool voor het eerst, voeg dan eerst uw logo toe voordat u aan de slag gaat, dan verschijnt het op elk werkblad! | J40: 1
A41: Purpose | B41: Zweck | C41: Purpose | D41: But | E41: Propósito | F41: Scopo | G41: Doel | J41: 1
A42: Calculate the carbon footprint of a part of a project | B42: Berechnung der CO2-Bilanz eines Teilprojekts | C42: Calculate the carbon footprint of a part of a project | D42: Calculer l'empreinte carbone d'une partie d'un projet | E42: Cálculo de la huella de carbono de una parte de un proyecto | F42: Calcolare l'impatto della CO2 di una parte di un progetto | G42: Bereken de carbon footprint van een project of een deel daarvan | J42: 1
A43: Total other sheets | B43: Anzahl an Blättern | C43: Total other sheets | D43: Total des autres feuilles | E43: Total de otras hojas | F43: Totale altri fogli | G43: Samenvoegen deelprojecten om de totale uitstoot weer te geven | J43: 1
A44: Extract the main data in a printable layout | B44: Erstellen einer Druckvorlage für die Hauptdaten | C44: Extract the main data in a printable layout | D44: Extraire les données principales d'une mise en page à imprimer | E44: Extraer los datos principales en un diseño imprimible | F44: Estrarre i dati principali in un formato stampabile | G44: Selecteer een project of deelproject om de resultaten overzichtelijk in 1 A4 weer te kunnen geven | J44: 1
A45: Compare different projects or subprojects | B45: Vergleich verschiedener Projekte oder Teilprojekte | C45: Compare different projects or subprojects | D45: Comparer les différents projets ou sous-projets | E45: Comparar diferentes proyectos o subproyectos | F45: Confronta i diversi progetti o sottoprogetti | G45: Vergelijk verschillende projecten of deelprojecten | J45: 1
A46: Create here your subproject sheets | B46: Erstellen Sie hier Ihr Teilprojekt-Arbeitsblatt | C46: Create here your subproject sheets | D46: Créez ici une feuille de sous-projets | E46: Crea aquí tus hojas de subproyectos | F46: Crea qui i fogli del sottoprogetto | G46: Maak hier uw deelprojectblad aan | J46: 1
A47: Name | B47: Name | C47: Name | D47: Nom | E47: Nombre | F47: Nome | G47: Naam | J47: 1
A48: Technique | B48: Verfahren | C48: Technique | D48: Technique | E48: Técnica | F48: Tecnica | G48: Techniek | J48: 1
A49: Copy from | B49: Kopieren von | C49: Copy from | D49: Copier à partir de | E49: Copia de | F49: Copia da | G49: Kopiëren van | J49: 1
A50: Create here your projects sheets | B50: Erstellen Sie hier Ihr Projekt-Blatt | C50: Create here your projects sheets | D50: Créez ici une feuille de projets | E50: Cree aquí tus hojas de proyectos | F50: Crea qui i fogli progetti | G50: Maak hier uw projectenblad aan | J50: 1
A51: Create here a results sheet | B51: Erstellen Sie hier eine Ergebnis-Blatt | C51: Create here a results sheet | D51: Créer ici une feuille de résultats | E51: Cree aquí una hoja de resultados | F51: Crea qui un foglio risultati | G51: Maak hier een resultatenblad aan | J51: 1
A52: Create here your comparison sheets | B52: Erstellen Sie hier Ihr Vergleichs-Blatt | C52: Create here your comparison sheets | D52: Créez ici une feuille de comparaison | E52: Cree aquí tus hojas de comparación | F52: Crea qui i fogli di confronto | G52: Maak hier uw vergelijkingsblad | J52: 1
A53: Load your own logo | B53: Laden Ihres eigenen Logos | C53: Load your own logo | D53: Chargez votre propre logo | E53: Cargue su propio logotipo | F53: Caricare il proprio logo | G53: Voeg hier uw eigen logo toe | J53: 1
A54: ERROR : ' | B54: FEHLER: ' | C54: ERROR : ' | D54: ERREUR: ' | E54: ERROR: ' | F54: ERRORE: ' | G54: FOUT: ' | J54: 1
A55: Leave empty to create an empty project | B55: Leer lassen, um ein leeres Projekt zu erstellen | C55: Leave empty to create an empty project | D55: Laissez vide pour créer un projet vierge | E55: Dejar en blanco para crear un proyecto vacío | F55: Lasciare vuoto per creare un progetto vuoto | G55: Laat leeg om een ​nieuw project te maken | J55: 1
A56: Input | B56: Eingabe | C56: Input | D56: Entrées | E56: Entrada | F56: Dato di ingresso | G56: Invoer | J56: 1
A57: Field activities data (USER SPECIFIED) | B57: Projektspezifische Daten (benutzerdefiniert) | C57: Field activities data (USER SPECIFIED) | D57: Données d'activité terrain (spécifié par l'utilisateur) | E57: Datos de actividades de campo (especificados por el usuario) | F57: Attività di campo dati (specificato dall'utente) | G57: Gegevens over de activiteiten | J57: 1
A58: Subproject sheets Project sheets | B58: Teilprojekt-Arbeitsblätter Projekt-Blätter | C58: Subproject sheets Project sheets | D58: Feuilles de sous-projets Feuilles de projets | E58: Hojas de Subproyecto Hojas de proyecto | F58: Fogli sottoprogetto Fogli progetto | G58: Deelprojectbladen Projectbladen | J58: 1
A59: Existing Subprojects | B59: Vorhandene Teilprojekte | C59: Existing Subprojects | D59: Les sous-projets existants | E59: Sub-proyectos existentes | F59: Sottoprogetti esistenti | G59: Bestaande Deelprojecten | J59: 1
A60: Existing Projects | B60: Vorhandene Projekte | C60: Existing Projects | D60: Les projets existants | E60: Proyectos existentes | F60: Progetti esistenti | G60: Bestaande projecten | J60: 1
A61: Results sheets | B61: Ergebnis-Blätter | C61: Results sheets | D61: Feuilles de résultats | E61: Hojas de Resultados | F61: Tabulati (fogli) dei risultati | G61: Resultatenblad | J61: 1
A62: Comparison sheets | B62: Vergleichs-Blätter | C62: Comparison sheets | D62: Feuilles de comparaison | E62: Hojas de comparación | F62: Confronto dei fogli | G62: Vergelijkingsblad | J62: 1
A63: duplication + | B63: Duplizierung + | C63: duplication + | D63: dupliquer + | E63: duplicación + | F63: duplicazione + | G63: duplicatie + | J63: 1
A64: Subproject name | B64: Name Teilprojekt | C64: Subproject name | D64: Nom du sous-projet | E64: Nombre del subproyecto | F64: Nome del sottoprogetto | G64: Naam deelproject | J64: 1
A65: Date of calculation | B65: Datum der Berechnung | C65: Date of calculation | D65: Date de calcul | E65: Fecha de cálculo | F65: Data del calcolo | G65: Datum van de berekening | J65: 1
A66: Author | B66: Autor | C66: Author | D66: Auteur | E66: Autor | F66: Autore | G66: Auteur | J66: 1
A67: =INDEX(B67:I67,1,$A$1) -> Working days | B67: Arbeitstage | C67: Working days | D67: Jours ouvrés | E67: Días de trabajo | F67: Giorni lavorativi | G67: Werkdagen | J67: 1
A68: Workforce | B68: Personalstand | C68: Workforce | D68: Personnel | E68: Personal | F68: Forza lavoro / personale | G68: Personeel | J68: 1
A69: Project value | B69: Projektwert | C69: Project value | D69: Chiffre d'affaire | E69: Importe del Proyecto | F69: Valore economico del progetto / commessa | G69: Projectwaarde | J69: 1
A70: Country | B70: Land | C70: Country | D70: Pays | E70: País | F70: Paese | G70: Land | J70: 1
A71: Functional unit 1 | B71: Funktionale Einheit 1 | C71: Functional unit 1 | D71: Unité fonctionnelle 1 | E71: Equipo 1 | F71: Unità funzionale 1 | G71: vul in: prestatie indicator 1 | J71: 1
A72: Functional unit 2 | B72: Funktionale Einheit 2 | C72: Functional unit 2 | D72: Unité fonctionnelle 2 | E72: Equipo 2 | F72: Unità funzionale 2 | G72: vul in: prestatie indicator 2 | J72: 1
A73: Concrete / Slurry / Grout mix | B73: Beton / Suspension / Mörtel | C73: Concrete / Slurry / Grout mix | D73: Mix Béton / Coulis | E73: hormigón / lodos / lechada | F73: Calcestruzzo / fanghi / miscele | G73: Beton / slib / Grout mix | J73: 1
A74: Quantity | B74: Menge | C74: Quantity | D74: Quantité | E74: Cantidad | F74: Quantità | G74: Hoeveelheid | J74: 1
A75: Cement | B75: Zement | C75: Cement | D75: Ciment | E75: Cemento | F75: Cemento | G75: Cement | J75: 1
A76: Total cementitious content | B76: Summe zementartiger Bestandteile | C76: Total cementitious content | D76: Teneur totale en ciment | E76: Total contenido de cemento | F76: Contenuto totale di cemento | G76: Totaal cementgebonden inhoud | J76: 1
A77: Secondary constituent | B77: Nebenbestandteile | C77: Secondary constituent | D77: Constituant secondaire | E77: Adiciones | F77: Componente secondaria | G77: Secundair bestanddeel | J77: 1
A78: Secondary constituent content | B78: Anteil an Nebenbestandteilen | C78: Secondary constituent content | D78: Contenu constituant secondaire | E78: Contenido de adiciones | F78: Contenuto del Costituente secondario | G78: Secundair bestanddeel inhoud | J78: 1
A79: Recycled content | B79: Recycling-Anteil | C79: Recycled content | D79: Contenu recyclé | E79: Contenido reciclado | F79: Contenuto di materiale riciclato | G79: Gerecyclede inhoud | J79: 1
A80: Simplified ratio | B80: Vereinfachter Anteil | C80: Simplified ratio | D80: Ratio simplifié | E80: Relación simplificada | F80: Rapporto semplificato | G80: Standaard verhouding | J80: 1
A81: Network electricity | B81: Netzstrom | C81: Network electricity | D81: Electricité de réseau | E81: Energía eléctrica | F81: Rete elettrica | G81: Elektriciteit van het net | J81: 1
A82: Coming by | B82: aus | C82: Coming by | D82: Venir en | E82: viaja en | F82: che viaggiano con | G82: Vervoerstype | J82: 1
A83: Machines weight | B83: Gerätegewicht | C83: Machines weight | D83: Poids des machines | E83: maquinas pesadas | F83: Peso delle attrezzature | G83: Gewicht machines | J83: 1
A84: Waste 1 | B84: Abfallstoff 1 | C84: Waste 1 | D84: Déchets 1 | E84: Residuos 1 | F84: Rifiuti 1 | G84: Afval 1 | J84: 1
A85: Waste 2 | B85: Abfallstoff 2 | C85: Waste 2 | D85: Déchets 2 | E85: Residuos 2 | F85: Rifiuti 2 | G85: Afval 2 | J85: 1
A86: Externaly calculated emissions | B86: von Dritten berechnete Emissionen | C86: Externaly calculated emissions | D86: Émissions calculées par ailleurs | E86: Emisiones calculadas externamente | F86: Emissioni calcolate esternamente | G86: Extern berekende emissies | J86: 1
A87: value | B87: Wert | C87: value | D87: valeur | E87: valor | F87: valore | G87: waarde | J87: 1
A88: Default concrete | B88: Standard-Beton | C88: Default concrete | D88: Béton par défaut | E88: Hormigón por defecto | F88: Valore di defaut del calcestruzzo | G88: Standaard beton | J88: 1
A89: Default value | B89: Standard-Wert | C89: Default value | D89: Valeur par défaut | E89: Valor por defecto | F89: Valore predefinito | G89: Standaard waarde | J89: 1
A90: do not apply | B90: unzutreffend | C90: do not apply | D90: non concerné | E90: no aplica | F90: Non applicabile | G90: niet van toepassing | J90: 1
A91: Default | B91: Standard | C91: Default | D91: Par défaut | E91: Defecto | F91: valore di default | G91: Standaard waarde | J91: 1
A92: OFF | B92: AUS | C92: OFF | D92: OFF | E92: APAGADO | F92: OFF | G92: OFF | J92: 1
A93: Number of roundtrips | B93: Anzahl der Umläufe | C93: Number of roundtrips | D93: Nombre d'allers-retours | E93: Número de viajes de ida y vuelta | F93: Numero dei viaggi in andata e ritorno | G93: Aantal retour transporten | J93: 1
A94: Full-time equivalent | B94: Vollzeitäquivalent | C94: Full-time equivalent | D94: Équivalent temps plein | E94: Equivalente a Tiempo Completo | F94: Equivalenti a tempo pieno | G94: voltijd | J94: 1
A95: € | B95: € | C95: € | D95: € | E95: € | F95: € | G95: € | J95: 1
A96: unit | B96: Einheit | C96: unit | D96: unité | E96: unidad | F96: unità | G96: eenheid | J96: 1
A97: Real Value | B97: Sachwert | C97: Real Value | D97: Valeur réelle | E97: Valor Real | F97: Valore reale | G97: Waarde | J97: 1
A98: kWh | B98: kWh | C98: kWh | D98: kWh | E98: kWh | F98: kWh | G98: kWh | J98: 1
A99: roundtrips | B99: Umläufe | C99: roundtrips | D99: allers-retours | E99: viajes de ida y vuelta | F99: andata e ritorno | G99: retour transporten | J99: 1
A100: every X day(s) | B100: alle X Tag(e) | C100: every X day(s) | D100: tous les X jour(s) | E100: cadaXdía | F100: ogni giorno X (s) | G100: elke X dag (en) | J100: 1
A101: t | B101: t | C101: t | D101: t | E101: t | F101: t | G101: t | J101: 1
A102: kgCO2e | B102: kgCO2e | C102: kgCO2e | D102: kgCO2e | E102: kgCO2e | F102: kgCO2e | G102: kgCO2e | J102: 1
A103: Sources | B103: Quellen | C103: Sources | D103: Sources | E103: Fuentes | F103: Fonti | G103: Bronnen | J103: 1
A104: Materials | B104: Stoffe | C104: Materials | D104: Matériaux | E104: Materiales | F104: Materiale | G104: Materialen | J104: 1
A105: Energy | B105: Energie | C105: Energy | D105: Énergie | E105: Energía | F105: Energia | G105: Energie (op bouwplaats) | J105: 1
A106: Freight | B106: Fracht | C106: Freight | D106: Transport de matériaux | E106: Carga | F106: Trasporto | G106: Vracht | J106: 1
A107: Mob/demob | B107: BE/BR | C107: Mob/demob | D107: Transport de machines | E107: portes ida/portes vuelta | F107: Installazione/ smobilizzo cantiere | G107: Aan- en afvoer (hulp)materieel | J107: 1
A108: People's transportation | B108: Personaltransport | C108: People's transportation | D108: Déplacements de personnes | E108: Transporte del personal | F108: Mezzi di trasporto del personale | G108: Transport personeel | J108: 1
A109: Assets | B109: Vermögenswerte | C109: Assets | D109: Immobilisations | E109: maquinaria | F109: Attività-beni? | G109: Materieel (levensduur) | J109: 1
A110: Waste | B110: Abfälle | C110: Waste | D110: Déchets | E110: Residuos | F110: Rifiuti | G110: Afval (transport) | J110: 1
A111: -reused- | B111: -wird verwertet- | C111: -reused- | D111: -Réutilisée- | E111: reutilizado | F111: -Riutilizzati- | G111: -Hergebruikt- | J111: 1
A112: Distance | B112: Entfernung | C112: Distance | D112: Distance | E112: Distancia | F112: Distanza | G112: Afstand | J112: 1
A113: Average distance | B113: Mittlere Entfernung | C113: Average distance | D113: Distance moyenne | E113: La distancia media | F113: Distanza media | G113: Gemiddelde afstand | J113: 0
A114: one way | B114: je Richtung | C114: one way | D114: aller | E114: de ida | F114: solo andata | G114: enkele reis | J114: 0
A115: tCO2e | B115: tCO2e | C115: tCO2e | D115: tCO2e | E115: tCO2e | F115: tCO2e | G115: tCO2e | J115: 1
A116: Lifetime | B116: Lebensdauer | C116: Lifetime | D116: Durée de vie | E116: tiempo de vida útil | F116: Vita tecnica | G116: Levensduur | J116: 0
A117: made on site | B117: vor Ort hergestellt | C117: made on site | D117: fabriqué sur place | E117: fabricado in situ | F117: Realizzato sul posto | G117: Gemaakt op de bouwplaats (in situ) | J117: 1
A118: Other | B118: Sonstige | C118: Other | D118: Autre | E118: Otro | F118: Altro | G118: Anders | J118: 1
A119: km | B119: km | C119: km | D119: km | E119: kilometros | F119: km | G119: km | J119: 1
A120: Type | B120: Typ | C120: Type | D120: Type | E120: Tipo | F120: Tipo | G120: Type | J120: 1
A121: years | B121: Jahre | C121: years | D121: ans | E121: años | F121: anni | G121: jaar | J121: 1
A122: =INDEX(B122:I122,1,$A$1) -> year | B122: Jahr | C122: year | D122: an | E122: año | F122: anno | G122: jaar | J122: 0
A123: Primary emission sources : | B123: Primäre Emissionsquellen: | C123: Primary emission sources : | D123: Sources d'émissions primaires: | E123: fuentes de emisión primarias | F123: Fonti di emissione primarie: | G123: Primaire emissiebronnen: | J123: 1
A124: Please enter activities data relative to the primary emission sources | B124: Bitte geben Sie die Daten der primären Emissionsquellen ein | C124: Please enter activities data relative to the primary emission sources | D124: Veuillez entrer les données des activités relatives aux sources d'émissions primaires | E124: Por favor, introduzca los datos de las actividades relativas a las fuentes de emisiones primarias | F124: Si prega di inserire i dati delle attività relativi alle fonti di emissione primarie | G124: Voer gegevens in betreffende de primaire emissiebronnen | J124: 1
A125: TOTAL GHG EMISSIONS | B125: Gesamte Treibhausgas-Emissionen | C125: TOTAL GHG EMISSIONS | D125: Émissions totales de GES | E125: Emisiones totales de GEI | F125: Emissioni totali di GHG | G125: Totale uitstoot van broeikasgassen | J125: 1
A126: Use time | B126: Betriebsdauer | C126: Use time | D126: Temps d'utilisation | E126: tiempo de uso | F126: Utilizzare il tempo | G126: Gebruiksduur | J126: 1
A127: Load | B127: Ladung | C127: Load | D127: Taux de charge | E127: Carga | F127: Carico | G127: Lading | J127: 1
A128: empty-return rate | B128: Anteil leerer Rückfahrten | C128: empty-return rate | D128: Taux de retour à vide | E128: tasa de retorno vacío | F128: Percetuale di vuotorelativa al viaggio di ritorno | G128: Tarief lege retour rit | J128: 1
A129: days | B129: Tage | C129: days | D129: jours | E129: días | G129: dagen | J129: 1
A130: travels | B130: Reisen | C130: travels | D130: trajets | E130: viajes | F130: viaggi | G130: transporten | J130: 1
A131: =INDEX(B131:I131,1,$A$1) -> Comments : | B131: Kommentare: | C131: Comments : | D131: Commentaires: | E131: Comentarios: | F131: Commenti: | G131: Commentaar: | J131: 1
A132: Primary emission sources | B132: Primäre Emissionsquellen | C132: Primary emission sources | D132: Sources d'émissions primaires | E132: fuentes de emisión primarias | F132: Fonti di emissione primarie | G132: Primaire emissiebronnen | J132: 1
A133: Secondary emission sources | B133: Sekundäre Emissionsquellen | C133: Secondary emission sources | D133: Sources d'émissions secondaires | E133: fuentes de emisión secundarías | F133: Fonti di emissioni secondarie | G133: Secundaire emissiebronnen | J133: 1
A134: Total | B134: Gesamt | C134: Total | D134: Total | E134: Total | F134: Totale | G134: Totaal | J134: 1
A135: Project name | B135: Name des Projekts | C135: Project name | D135: Nom du projet | E135: Nombre del proyecto | F135: Nome del progetto | G135: Projectnaam | J135: 1
A136: Materials detail | B136: Details Stoffe | C136: Materials detail | D136: Détail des matériaux | E136: detalle de los materiales | F136: Dettaglio dei materiali | G136: Materialen | J136: 2
A137: Turnover | B137: Umsatz | C137: Turnover | D137: Chiffre d'affaires | E137: Volumen de negocios | F137: Giro d'affari | G137: Omzet | J137: 1
A138: Steel | B138: Stahl | C138: Steel | D138: Acier | E138: Acero | F138: Acciaio | G138: Staal | J138: 1
A139: Select the subprojects and projects that you want to total | B139: Wählen Sie die zu addierenden Teilprojekte und Projekte aus | C139: Select the subprojects and projects that you want to total | D139: Sélectionnez les sous-projets et projets que vous souhaitez consolider | E139: Seleccione los sub-proyectos y proyectos que usted quiere totalizar | F139: Selezionare i sottoprogetti e i progetti per i quali si desidera calcolare il totale | G139: Selecteer de deelprojecten die samen een project vormen | J139: 1
A140: Functional units 1 are not the same | B140: Funktionale Einheiten 1 sind nicht gleich | C140: Functional units 1 are not the same | D140: Unités fonctionnelles 1 ne sont pas identiques | E140: Los equipos 1 no son los mismos | F140: Le unità funzionali 1 non sono uguali | G140: Prestatie indicatoren 1 zijn niet dezelfde | J140: 1
A141: Check the unit | B141: Überprüfen Sie die Einheit | C141: Check the unit | D141: Vérifiez l'unité | E141: Compruebe la unidad | F141: Controllare l'unità | G141: Controleer de eenheid | J141: 1
A142: Functional units 2 are not the same | B142: Funktionale Einheiten 2 sind nicht gleich | C142: Functional units 2 are not the same | D142: Les unités fonctionnelles 2 ne sont pas les mêmes | E142: Los equipos 2 no son los mismos | F142: Le unità funzionali 2 non sono uguali | G142: Prestatie indicatoren 2 zijn niet dezelfde | J142: 1
A143: unit problem | B143: Problem mit Einheiten | C143: unit problem | D143: Problème d'unité | E143: unidad problema | F143: Problema con le unità | G143: fout in eenheden | J143: 1
A144: select your project or subproject | B144: Wählen Sie Ihr Projekt oder Teilprojekt | C144: select your project or subproject | D144: sélectionnez votre projet ou sous-projet | E144: seleccione el proyecto o subproyecto | F144: selezionare il vostro progetto o sottoprogetto | G144: selecteer een project of deelproject | J144: 1
A145: Company | B145: Firma | C145: Company | D145: Entreprise | E145: Empresa | F145: Azienda | G145: Bedrijf | J145: 1
A146: User-defined emission factors | B146: Benutzerdefinierte Emissionsfaktoren | C146: User-defined emission factors | D146: Facteurs d'émission définis par l'utilisateur | E146: factores de emisión definidos por el usuario | F146: Fattori di emissione definiti dall'utente | G146: Door de gebruiker gedefinieerde emissiefactoren | J146: 1
A147: Additional percentage used | B147: Weiterer verwendeter Prozentsatz | C147: Additional percentage used | D147: Ratio utilisés | E147: Porcentaje adicional utilizado | F147: Maggiori percentuali utilizzate | G147: Gebruikte extra percentage | J147: 1
A148: Your Company name | B148: Ihr Firmenname | C148: Your Company name | D148: Nom de votre entreprise | E148: Nombre de su empresa | F148: Nome della azienda | G148: Uw bedrijfsnaam | J148: 1
J149: 1
A150: ratio per | B150: Verhältnis je | C150: ratio per | D150: ratio par | E150: ratio por | F150: rapporto per | G150: Uitstoot per | J150: 1
A151: Externally calculated emissions added | B151: Extern berechnete Emissionen ergänzt | C151: Externally calculated emissions added | D151: Ajout d'émissions calculées en dehors de l'outil | E151: Emisiones añadidas calculadas externamente | F151: Esternamente le emissioni calcolate aggiunto | G151: Extern berekende emissies toegevoegd | J151: 1
A152: Emission factor database | B152: Emissionsfaktoren-Datenbank | C152: Emission factor database | D152: Base de données de facteurs d'émission | E152: base de datos de factores de emisión | F152: Data base dei fattori di emissione | G152: Emissiefactor database | J152: 1
A153: added emission factors | B153: ergänzte Emissionsfaktoren | C153: added emission factors | D153: facteurs d'émission ajoutés | E153: factores de emisión añadidos | F153: fattori di emissione aggiunto | G153: toegevoegde emissiefactoren | J153: 1
A154: kgCO2e / | B154: kgCO2e / | C154: kgCO2e / | D154: kgCO2e / | E154: kgCO2e / | F154: kgCO2e / | G154: kgCO2e / | J154: 1
A155: =INDEX(B155:I155,1,$A$1) -> gCO2e / | B155: gCO2e / | C155: gCO2e / | D155: gCO2e / | E155: gCO2e / | F155: gCO2e / | G155: gCO2e / | J155: 1
A156: =INDEX(B156:I156,1,$A$1) -> Comparison sheet | B156: Vergleichs-Blatt | C156: Comparison sheet | D156: Feuille de comparaison | E156: hoja de comparación | F156: Confronto foglio | G156: Vergelijkingsblad | J156: 1
A157: Comparison sheet (1/2) | B157: Vergleichs-Blatt (1/2) | C157: Comparison sheet (1/2) | D157: Feuille de comparaison (1/2) | E157: hoja de comparación (1/2) | F157: Confronto foglio (1/2) | G157: Vergelijkingsblad (1/2) | J157: 1
A158: Comparison sheet (2/2) | B158: Vergleichs-Blatt (2/2) | C158: Comparison sheet (2/2) | D158: Feuille de comparaison (2/2) | E158: Hoja de comparación (2.2) | F158: Confronto foglio (2/2) | G158: Vergelijkingsblad (2/2) | J158: 1
A159: Primary sources emissions | B159: Emissionen aus Primärquellen | C159: Primary sources emissions | D159: Émissions des sources primaires | E159: fuentes de emisión primarias | F159: Fonti primarie di emissioni | G159: Uitstoot primaire bronnen | J159: 1
A160: Secondary sources emissions | B160: Emissionen aus Sekundärquellen | C160: Secondary sources emissions | D160: Émissions des sources secondaires | E160: fuentes de emisión secundarías | F160: Fonti secondarie di emissione | G160: Uitstoot secundaire bronnen | J160: 1
A161: Uncertainties | B161: Unsicherheiten | C161: Uncertainties | D161: Incertitudes | E161: incertidumbres | F161: Incertezze | G161: Onzekerheden | J161: 1
A162: Other materials | B162: Andere Stoffe | C162: Other materials | D162: Autres matériaux | E162: Otros materiales | F162: Altri materiali | G162: Andere materialen | J162: 1
A163: Yes | B163: Ja | C163: Yes | D163: Oui | E163: Sí | F163: Sì | G163: Ja | J163: 1
A164: =INDEX(B164:I164,1,$A$1) -> No | B164: Nein | C164: No | D164: Non | E164: No | F164: No | G164: Geen | J164: 0
A165: Other emission sources | B165: Weitere Emissionsquellen | C165: Other emission sources | D165: Autres sources d'émission | E165: Otras fuentes de emisión | F165: Altre fonti di emissione | G165: Andere emissiebronnen | J165: 1
A166: Select the subprojects and projects that you want to compare | B166: Wählen Sie die zu vergleichende Teilprojekte und Projekte aus | C166: Select the subprojects and projects that you want to compare | D166: Sélectionnez les sous-projets et projets que vous souhaitez comparer | E166: Seleccione los sub-proyectos y proyectos que desea comparar | F166: Selezionare i sottoprogetti e dei progetti che si desidera confrontare | G166: Selecteer de deelprojecten en projecten die u wilt vergelijken | J166: 1
A167: Projects emissions per | B167: Projekt Emissionen pro | C167: Projects emissions per | D167: Emissions par | E167: emisiones de proyectos por | F167: Progetti per le emissioni | G167: Uitstoot projecten per | J167: 1
A168: ratio variable : | B168: Verhältnis Variable: | C168: ratio variable : | D168: la variation du taux: | E168: ratio variable: | F168: rapporto variabile: | G168: Kies gewenste prestatie indicator | J168: 1
A169: Show other | B169: Weitere anzeigen | C169: Show other | D169: Montrer autres | E169: Mostrar otros | F169: Mostra altri | G169: Toon andere | J169: 1
A170: emission | B170: Emission | C170: emission | D170: émission | E170: emisión | F170: emissione | G170: emissie | J170: 1
A171: Functional units have to be the exactly the same | B171: Die Funktionalen Einheiten müssen gleich sein | C171: Functional units have to be the exactly the same | D171: Les unités fonctionnelles doivent être exactement les mêmes | E171: Los equipos tienen que ser exactamente los mismos | F171: Unità funzionali devono essere esattamente uguali | G171: Prestatie indicatoren moeten wel precies hetzelfde zijn | J171: 1
A172: Projects emission repartitions | B172: Verteilung der Projekt-Emission | C172: Projects emission repartitions | D172: Répartitions des émissions des projets | E172: Reparto de las emisiones de los Proyectos | F172: Ripartizione delle emissioni relative ai progetti | G172: Verhouding uitstoot projecten | J172: 2
A173: emissions repartition | B173: Emissionsverteilung | C173: emissions repartition | D173: répartition des émissions | E173: Reparto de las emisiones | F173: Ripatizione delle emissioni | G173: Verhouding uitstoot | J173: 2
A174: Emission factor data base | B174: Emissionsfaktor Datenbank | C174: Emission factor data base | D174: Facteur d'émission de données de base | E174: Base de datos de los factores de emisión | F174: Fattore di emissione dei dati di base | G174: Emissiefactor database | J174: 1
A175: Emission factor name | B175: Emissionsfaktor Name | C175: Emission factor name | D175: Nom du facteur d'émission | E175: Nombre del factor de emisión | F175: Fattore di emissione nome | G175: Emissiefactor naam | J175: 1
A176: Acrylic acid | B176: Acrylsäure | C176: Acrylic acid | D176: Acide acrylique | E176: Ácido acrílico | F176: Acido acrilico | G176: Acrylzuur | J176: 1
A177: Aggregate | B177: Zuschlagstoff | C177: Aggregate | D177: Granulats | E177: Gravas | F177: Aggregati | G177: Aggregaat | J177: 1
A178: Bentonite | B178: Bentonit | C178: Bentonite | D178: Bentonite | E178: Bentonita | F178: Bentonite | G178: Bentoniet | J178: 1
A179: Calcium chloride | B179: Calciumchlorid | C179: Calcium chloride | D179: Chlorure de calcium | E179: Cloruro de calcio | F179: Cloruro di calcio | G179: Calciumchloride | J179: 1
A180: =INDEX(B180:I180,1,$A$1) -> Carboxymethyl cellulose | B180: Carboxymethylzellulose | C180: Carboxymethyl cellulose | D180: Carboxymethyl cellulose | E180: Carboxymethyl cellulose | F180: Carboxymethyl cellulose | G180: Carboxymethyl cellulose | J180: 0
A181: CEM I | B181: CEM I | C181: CEM I | D181: CEM I | E181: CEM I | F181: CEM I | G181: CEM I | J181: 1
A182: GGbs | B182: Hüttensand | C182: GGbs | D182: GGB | E182: GGBS | F182: GGbs | G182: GGbs | J182: 1
A183: Fly Ash | B183: Flugasche | C183: Fly Ash | D183: Cendres volantes | E183: Las cenizas volantes | F183: Ceneri volanti | G183: Vliegas | J183: 1
A184: Limestone | B184: Kalkstein | C184: Limestone | D184: Calcaire | E184: Caliza | F184: Calcare | G184: Kalksteen | J184: 1
A185: minor additional constituent | B185: untergeordnete zusätzliche Bestandteile | C185: minor additional constituent | D185: constituant additionnel mineur | E185: componentes minoritarios | F185: Componenti aggiuntivi minori | G185: kleine deeltjes | J185: 1
A186: Chemicals inorganic | B186: anorganische Chemikalien | C186: Chemicals inorganic | D186: Produits chimiques inorganiques | E186: Productos químicos inorgánicos | F186: Prodotti chimici inorganici | G186: Anorganische chemicaliën | J186: 1
A187: =INDEX(B187:I187,1,$A$1) -> EPDM-rubber | B187: EPDM-Kautschuk | C187: EPDM-rubber | D187: EPDM-caoutchouc | E187: Caucho EPDM | F187: Gomme - EPDM | G187: EPDM-rubber | J187: 0
A188: =INDEX(B188:I188,1,$A$1) -> Polypropylene | B188: Polypropylen | C188: Polypropylene | D188: Polypropylène | E188: Polipropileno | F188: Polypropylene | G188: Polypropyleen | J188: 0
A189: PVC pipes | B189: PVC-Rohre | C189: PVC pipes | D189: Tuyaux en PVC | E189: Tubos de PVC | F189: Tubi in PVC | G189: PVC-buizen | J189: 1
A190: Sand | B190: Sand | C190: Sand | D190: Sable | E190: Arena | F190: Sabbia | G190: Zand | J190: 1
A191: Sodium carbonate | B191: Natriumcarbonat | C191: Sodium carbonate | D191: Carbonate de sodium | E191: Carbonato de sodio | F191: Carbonato di sodio | G191: Natriumcarbonaat | J191: 1
A192: Steel sheets | B192: Stahlblech | C192: Steel sheets | D192: Tôles d'acier | E192: chapas de acero | F192: Lamiere di acciaio | G192: Staalplaten | J192: 1
A193: Steel rebars | B193: Bewehrungsstahl | C193: Steel rebars | D193: Armatures en acier | E193: Barras de acero corrugado | F193: Barre d'acciaio per armatura | G193: Stalen wapening | J193: 1
A194: Steel tubes | B194: Stahlrohre | C194: Steel tubes | D194: Tubes en acier | E194: Tubos de acero | F194: Tubi in acciaio | G194: Stalen buizen | J194: 1
A195: Steel wires | B195: Stahldrähte | C195: Steel wires | D195: Cables en acier | E195: Alambre de acero | F195: Barre di acciaio | G195: Staaldraden | J195: 1
A196: Synthetic polymer slurry | B196: Poplymerlösungen | C196: Synthetic polymer slurry | D196: Synthetic polymer slurry | E196: Synthetic polymer slurry | F196: Synthetic polymer slurry | G196: Synthetic polymer slurry | J196: 0
A197: =INDEX(B197:I197,1,$A$1) -> Cellulose-based polymer slurry | B197: Zellulosebasierte Polymerlösung | C197: Cellulose-based polymer slurry | D197: Cellulose-based polymer slurry | E197: Cellulose-based polymer slurry | F197: Cellulose-based polymer slurry | G197: Cellulose-based polymer slurry | J197: 0
A198: Water | B198: Wasser | C198: Water | D198: Eau | E198: Agua | F198: Acqua | G198: Water | J198: 1
A199: - recycled | B199: - wiederverwertet | C199: - recycled | D199: - recyclé | E199: - reciclados | F199: - riciclato | G199: - gerecycled | J199: 1
A200: Diesel | B200: Diesel | C200: Diesel | D200: Fioul | E200: Combustible ligero | F200: Gasolio | G200: Diesel / lichte stookolie | J200: 1
